Workbook

Sheet Intro
B3: 2026 Field Crop Budget Spreadsheet
B4: Introduction
B6: This spreadsheet contains the 2026 University of Tennessee row crop budgets. There are no protected cells in the spreadsheet, so the user should make sure that any changes made do not affect formulas. Input prices can be modified on the "Inputs, Herbicides, Insecticides, and Fungicides Tabs". Any changes made on the "Inputs, Herbicides, Insecticides, and Fungicides Tabs" will be reflected in all budgets where the input is utilized. Quantities and processes can be modified on individual budgets. This spreadsheet should not be considered representative of all circumstances and is provided as a template or guide that can be used to estimate commodity, production process, and operation specific budgets. Inputs used and prices for inputs vary tremendously from farm-to-farm, as such producers are encouraged to use their own inputs, input prices, and cost structures for planning purposes.
B9: If you have questions regarding this spreadsheet, please contact your local UT Extension Office or Dr. Aaron Smith (aaron.smith@utk.edu).
H11: Table of Contents
B13: Tab | C13: Description
B14: Inputs | C14: Contains commodity, non-chemical input prices, and other input data for all budgets
B15: Herbicides | C15: Contains commonly used herbicides and estimated prices
B16: Insecticides | C16: Contains estimates for insecticide costs
B17: Fungicides | C17: Contains estimates for fungicide costs
B18: Corn NT Non-Irr | C18: Corn, No-Till, Non-Irrigated, 175 Bushels/Acre Yield
B19: Corn CT Non-Irr | C19: Corn, Conventional Tillage, Non-Irrigated, 175 Bushels/Acre Yield
B20: Corn Irr | C20: Corn, No-Till, Irrigated, 250 Bushels/Acre Yield
B21: Soybean NT Non-Irr | C21: Soybean, No-Till, Non-Irrigated, 50 Bushels/Acre Yield
B22: Soybean Irr | C22: Soybean, No-Till, Irrigated, 65 Bushels/Acre Yield
B23: SRW Wheat | C23: Wheat, Non-Irrigated, 80 Bushels/Acre Yield
B24: Wheat & Soybean DC | C24: Wheat/Soybean Double Cropped, Non-Irrigated, 80 Bushels/Acre Yield and 45 Bushel/Acre Yield
B25: Wheat | C25: Wheat, Conventional Tillage, Non-Irrigated, 70 Bushels/Acre Yield
B26: Cotton NT | C26: Cotton, No-Till, Non-Irrigated, 1,150 lbs./Acre Yield
B27: Cotton CT | C27: Cotton, Conventional Tillage, Non-Irrigated, 1,150 lbs./Acre Yield
B28: Cotton IRR | C28: Cotton, No-Till, Irrigated, 1,500 lbs./Acre Yield
B29: G. Sorghum NT | C29: Grain Sorghum, No-Till, Non-Irrigated, 125 Bushels/Acre Yield
B30: Canola | C30: Canola, Conventional Tillage, Non-Irrigated, 50 Bushels/Acre Yield
B31: Footnotes | C31: Footnotes for the budgets
B32: Field Operations | C32: This worksheet contains cost estimates for crop operations based on machinery data
B33: Budget Summary | C33: Provides a summary of revenues, expenses, and profit for each commodity and production process
B34: Enterprise Summary | C34: Allows users to estimate revenue, expenses, and profit for specific acreage in their operations using individual budgets
B37: Note: All budgets contain yield estimates. Users can enter specific yields on each individual budget in order to represent yields specific to their farm (commodity and input prices should be modified in the "Inputs, Herbicides, Insecticides, and Fungicides Tabs").
B39: Disclaimer: Significant variability in inputs, prices, and production methods exist in the production of row crops. The information contained in this spreadsheet relies on estimates and assumptions that are "typical" in Tennessee row crop production. These budgets should not be construed as a reflection of all circumstances across the state as significant regional variability will occur. To improve accuracy, users are encouraged to use inputs, prices, and processes that are utilized on their specific farms.
B41: The University of Tennessee is an EEO/AA/Title VI/Title IX/Section 504/ADA/ADEA institution in the provision of its education and employment programs and services. All qualified applicants will receive equal consideration for employment and admission without regard to race, color, national origin, religion, sex, pregnancy, marital status, sexual orientation, gender identity, age, physical or mental disability, genetic information, veteran status, and parental status.

Sheet Inputs
E1: 2026 | F1: 2025
B2: Commodity Prices Received by Producers
B3: Corn | C3: 4.7 | D3: bu | E3: 4.7 | F3: 4.6
B4: Soybeans | C4: 10.7 | D4: bu | E4: 10.7 | F4: 10.4
B5: Wheat | C5: 5.5 | D5: bu | E5: 5.5 | F5: 5.85
B6: Grain Sorghum | C6: 4.55 | D6: bu | E6: 4.65 | F6: 4.7
B7: Cotton | C7: 0.69 | D7: lb. | E7: 0.69 | F7: 0.72
B9: Fuel, Interest Rates and Labor Costs
B10: Diesel Fuel ($/gal) | C10: 3 | D10: $/gal | E10: 3 | F10: 2.9
B11: Electricity ($/kwh) | C11: 0.12 | D11: $kwh | E11: 0.13 | F11: 0.1031
B12: Operator Labor ($/hr.) | C12: 20 | D12: $/hr. | E12: 20 | F12: 20
B13: Management Labor ($/hr.) | C13: 25 | D13: $/hr. | E13: 25 | F13: 25
B14: Operating Interest (%) | C14: 0.075 | D14: % | E14: 0.075 | F14: 0.08
B15: Fixed Capital Interest (%) | C15: 0.06 | D15: % | E15: 0.06 | F15: 0.065
B17: Crop Scout, Consulting, Cash Rent and Crop Insurance
B18: Crop Scout / Consulting Fee | C18: 10 | D18: acre | E18: 10 | F18: 10
B19: Crop Scouting-Cotton | C19: 12 | D19: acre | E19: 12 | F19: 12
B20: Drying ($/bu) | C20: 0.45 | D20: bu | E20: 0.45 | F20: 0.45
B21: Cotton Wrap ($/lb.) | C21: 0.017 | D21: lb. | E21: 0.017 | F21: 0.0165
B22: Irrigated Cropland Cash Rent | C22: 197 | D22: acre | E22: 197 | F22: 189
B23: Non-Irrigated Cropland Cash Rent | C23: 117 | D23: acre | E23: 117 | F23: 115
B24: Crop Insurance-Corn | C24: 20.17 | D24: acre | E24: 20.17 | F24: 16.66
B25: Crop Insurance-Soybean | C25: 10.55 | D25: acre | E25: 10.55 | F25: 10.02
B26: Crop Insurance-Wheat | C26: 9.66 | D26: acre | E26: 9.66 | F26: 9.9
B27: Crop Insurance-Grain Sorghum | C27: 6.27 | D27: acre | E27: 6.27 | F27: 4.22
B28: Crop Insurance-Cotton | C28: 10.45 | D28: acre | E28: 10.45 | F28: 11.15
B30: Property Taxes, Non-Machinery Insurance and Management Labor
B31: Property Taxes | C31: 0 | D31: $/acre | E31: 0 | F31: 0
B32: Insurance (Non-machinery and Non-crop) | C32: 0 | D32: $/acre | E32: 0 | F32: 0 | M32: Corn | S32: Beans
B33: Management Labor | C33: 25 | D33: $/acre | E33: 25 | F33: 25 | M33: 1. 6414 RR — $270.00 — 114 day | Q33: 270 | S33: 1. 4377 XF 60.0 — ENLIST —
M34: 2. 6418 U2P — $290.00 — 114 day | Q34: 290 | S34: 2. 1.4660 E3 — $63.00 | V34: 63
B35: Seed | M35: 3. 6374 U2P — $265.00 — 112 day | Q35: 265 | S35: 3. 4198 XF 60.0 — ENLIST —
B36: Corn | C36: 3.68 | D36: $/Thousand Seeds | E36: 3.68 | F36: 3.88 | M36: 4. 6473 — $332.00 — 114 day | Q36: 332 | S36: 4. 2.4760 E3 — $63.00 | V36: 63
B37: Soybean | C37: =63/140 -> 0.45 | D37: $/Thousand Seeds | E37: 0.45 | F37: 0.46 | M37: 5. 6574 — $326.00 — 115 day | Q37: 326 | S37: 5. 4272 XF 60.0 — ENLIST —
B38: Wheat | C38: 15.5 | D38: $/bu | E38: 15.5 | F38: 17 | M38: 6. 6473 RR — $280.00 — 114 day | Q38: 280 | S38: 6. 3.4870 E3 — $63.00 | V38: 63
B39: Grain Sorghum | C39: 0.3 | D39: $/Thousand Seeds | E39: 0.3 | F39: 0.32 | M39: 7. 6374 NGMO. — $200.00 — 113 day | Q39: 200 | S39: 7. 4551 XF 60.0
B40: Cotton | C40: 3.05 | D40: $/Thousand Seeds | E40: 3.05 | F40: 3.1 | M40: 8. 6574 NGMO. — $200.00 — 113 day | Q40: 200 | V40: =AVERAGE(V33:V39) -> 63
M41: 9. 6046 NGMO. — $200.00 — 110 day | Q41: 200
B43: Fertilizer | Q43: =AVERAGE(Q33:Q41) -> 262.5555556
B44: Urea | C44: 0.64 | D44: $/lb. | E44: 0.64 | F44: 0.52
B45: Ammonium Nitrate | C45: 0.76 | D45: $/lb. | E45: 0.76 | F45: 0.67
B46: UAN 28% | C46: 0.73 | D46: $/lb. | E46: 0.73 | F46: 0.55
B47: UAN 32% | C47: 0.74 | D47: $/lb. | E47: 0.74 | F47: 0.54
B48: P2O5 | C48: 0.73 | D48: $/lb. | E48: 0.73 | F48: 0.66
B49: DAP (18-46-0) | C49: 0.74 | D49: $/lb. | E49: 0.74 | F49: 0.58
B50: Potash | C50: 0.41 | D50: $/lb. | E50: 0.41 | F50: 0.36
B51: Lime | C51: 30 | D51: $/ton | E51: 30 | F51: 30
B52: Boron | C52: 0.72 | D52: $/lb. | E52: 0.72 | F52: 0.7
B53: Ammonium Sulfate | C53: 0.45 | D53: $/lb. | E53: 0.45 | F53: 0.3
B54: Zinc Sulfate | C54: 1.25 | D54: $/lb. | E54: 1.25 | F54: 1.67
B56: Irrigation
B57: Irrigation Energy Cost | C57: 6.8 | D57: $/acre-in | E57: 6.8 | F57: 6.75
B58: Irrigation System R&M & Labor | C58: 3.1 | D58: $/acre-in | E58: 3.1 | F58: 3
B59: Capital Recovery (Irrigation Equipment) | C59: 105 | D59: $/acre | E59: 105 | F59: 100

Sheet Herbicides
D1: 2026 | S1: 2025
A2: Herbicides | F2: 2025 | K2: oz
B3: Price/Unit | C3: Unit | J3: gal | K3: 128
A4: 2, 4-D | B4: 5.5 | C4: $/pt. | D4: 5.5 | E4: =26.5/128*K5 -> 3.3125 | F4: =62/(K3*2.5)*16 -> 3.1 | J4: qt | K4: 32 | S4: 3.31 | U4: =D4-S4 -> 2.19
A5: Accent Q | B5: 20 | C5: $/oz. | D5: 20 | F5: =430/18 -> 23.88888889 | G5: oz. | J5: pt. | K5: 16 | S5: 23.88888889 | U5: =D5-S5 -> -3.888888889
A6: Aim EC | B6: 6 | C6: $/oz. | D6: 6 | F6: =235/32 -> 7.34375 | G6: oz. | J6: lb. | K6: 16 | N6: =11.48/K5 -> 0.7175 | S6: 7.34375 | U6: -1.34375
A7: Anthem ATZ | S7: 0 | U7: 0
A8: Anthem Maxx | B8: 3.38 | C8: $/oz. | D8: 3.38 | E8: =478/K3 -> 3.734375 | S8: 3.73 | U8: -0.35
A9: Assure II | B9: 0.73 | C9: $/oz. | D9: 0.73 | F9: =284/(2.5*K3) -> 0.8875 | G9: oz. | S9: 0.8875 | U9: -0.1575
A10: Atrazine | B10: 4.5 | C10: $/qt. | D10: 4.5 | E10: =13.5/K3*K4 -> 3.375 | F10: =49/(2.5*K3) -> 0.153125 | G10: oz. | H10: =+F10*K4 -> 4.9 | S10: 3.38 | U10: 1.12
A11: Authority MTZ | B11: 2.38 | C11: $/oz. | D11: 2.38 | F11: =570/12/K6 -> 2.96875 | G11: oz. | P11: =5/128 -> 0.0390625 | S11: 2.96875 | U11: -0.58875
A12: Authority XL | B12: 4.5 | C12: $/oz. | D12: 4.5 | F12: =800/10/K6 -> 5 | G12: oz. | P12: =+P11*K4 -> 1.25 | S12: 5 | U12: -0.5
A13: Axial Bold | B13: 1.31 | C13: $/oz. | D13: 1.31 | F13: =485/(2.34*K3) -> 1.619257479 | G13: oz. | S13: 1.619257479 | U13: -0.3092574786
A14: Axiom | B14: 2.13 | C14: $/oz. | D14: 2.13 | F14: =960/(25*K6) -> 2.4 | G14: oz. | S14: 2.4 | U14: -0.27
A15: Azoxy 2SC | B15: 0.9 | C15: $/oz. | D15: 0.9 | E15: =41.5/K3 -> 0.32421875 | S15: 0.32 | U15: 0.58
A16: Azoxyprop | B16: 0.36 | C16: $/oz. | D16: 0.36 | E16: =+AVERAGE(44,48)/K3 -> 0.359375 | S16: 0.36 | U16: 0
A17: Banvel | B17: 5.5 | C17: $/pt. | D17: 5.5 | F17: =196/(2.5*K3) -> 0.6125 | G17: oz. | H17: =+F17*K5 -> 9.8 | S17: 9.8 | U17: -4.3
A18: Basagran | B18: 9.88 | C18: $/pt. | D18: 9.88 | F18: =196/(2.5*K3) -> 0.6125 | G18: oz. | H18: =F18*K5 -> 9.8 | S18: 9.8 | U18: 0.08
A19: Bicep II Magnum | B19: 11.75 | C19: $/qt. | D19: 11.75 | F19: =143/(2.5*K3) -> 0.446875 | G19: oz. | H19: =+F19*K4 -> 14.3 | S19: 14.3 | U19: -2.55
A20: Bifen 2EC | B20: 0.86 | C20: $/oz. | D20: 0.86 | E20: =+AVERAGE(45,51)/128 -> 0.375 | S20: 0.38 | U20: 0.48
A21: Boll Opener (Ethephon) | B21: 9 | C21: $/acre | D21: 9 | F21: =138*0.65/(2.5*K3) -> 0.2803125 | G21: oz. | S21: 8.97 | U21: 0.03
A22: Boundary | B22: 10.63 | C22: $/pt. | D22: 10.63 | F22: =251/(2.5*K3) -> 0.784375 | G22: oz. | H22: =F22*K5 -> 12.55 | S22: 12.55 | U22: -1.92
A23: Butyrac 200 | B23: 4 | C23: $/pt. | D23: 4 | F23: =44/(K3) -> 0.34375 | G23: oz. | H23: =F23*K5 -> 5.5 | S23: 5.5 | U23: -1.5
A24: Callisto | B24: 3.6 | C24: $/oz. | D24: 3.6 | F24: =396/(K3) -> 3.09375 | G24: oz. | S24: 3.09375 | T24: Unit? | U24: 0.50625
A25: Caparol 4L | B25: 3.75 | C25: $/pt. | D25: 3.75 | F25: =120/(2.5*K3) -> 0.375 | G25: oz. | H25: =F25*K5 -> 6 | S25: 6 | T25: Unit? | U25: -2.25
A26: Carfentrazone 2EC | B26: 4.35 | C26: $/oz. | D26: 4.35 | E26: 3 | S26: 3 | U26: 1.35
A27: Chlorimuron | B27: 11 | C27: $oz | D27: 11 | E27: 4.15 | S27: 4.15 | U27: 6.85
A28: Clarity 4EC | B28: 0.73 | C28: $/oz. | D28: 0.73 | F28: =230/(2.5*K3) -> 0.71875 | G28: oz. | H28: =F28*K5 -> 11.5 | S28: 0.71875 | U28: 0.01125
A29: Classic | B29: 12.9 | C29: $/oz. | D29: 12.9 | F29: =200/10 -> 20 | G29: oz. | S29: 20 | U29: -7.1
A30: Clethodim 2EC | B30: 0.51 | C30: $/oz. | D30: 0.51 | E30: =+AVERAGE(24.5,27.9)/128 -> 0.2046875 | S30: 0.2 | U30: 0.31
A31: Cobra | B31: 1.57 | C31: $/oz. | D31: 1.57 | F31: =630/(2.5*K3) -> 1.96875 | G31: oz. | S31: 1.96875 | U31: -0.39875
A32: Command 3ME | B32: 20 | C32: $/pt. | D32: 20 | E32: =AVERAGE(378,389)/K4 -> 11.984375 | F32: =475/(2.5*K3) -> 1.484375 | G32: oz. | H32: =F32*K5 -> 23.75 | S32: 23.75 | U32: -3.75
A33: Coragen® eVo | B33: 11 | C33: $/qt. | D33: 11 | S33: 11.98 | U33: -0.98
A34: Cotoran 4L | B34: 6.5 | C34: $/pt. | D34: 6.5 | F34: =125/(2.5*K3) -> 0.390625 | G34: oz. | H34: =F34*K5 -> 6.25 | S34: 6.25 | U34: 0.25
A35: Crossbow | B35: 11.25 | C35: $/qt. | D35: 11.25 | F35: =162.5/(2.5*K3) -> 0.5078125 | G35: oz. | H35: =F35*K4 -> 16.25 | S35: 16.25 | U35: -5
A36: Defoliant | B36: 18 | C36: $/acre | D36: 18 | G36: oz. | S36: 18 | U36: 0
A37: Degree Xtra | B37: 13.25 | C37: $/qt. | D37: 13.25 | F37: =151/(2.5*K3) -> 0.471875 | G37: oz. | H37: =F37*K4 -> 15.1 | S37: 15.1 | U37: -1.85
A38: Dicamba DMA totes | B38: 0.38 | C38: $/oz. | D38: 0.38 | E38: =AVERAGE(24.2,25.5)/128 -> 0.194140625 | S38: 0.19 | U38: 0.19
A39: Dicamba DGA totes | B39: 0.45 | C39: $/oz. | D39: 0.45 | E39: 0.2265625 | S39: 0.23 | U39: 0.22
A40: Direx 4L | B40: 2.88 | C40: $/pt. | D40: 2.88 | F40: =58/(2.5*K3) -> 0.18125 | G40: oz. | H40: =F40*K5 -> 2.9 | S40: 2.9 | U40: -0.02
A41: Distinct DF | B41: 2.8 | C41: $/oz. | D41: 2.8 | F41: =368/(7.5*K6) -> 3.066666667 | G41: oz. | S41: 3.066666667 | U41: -0.2666666667
A42: Dual Magnum | B42: 9.38 | C42: $/pt. | D42: 9.38 | F42: =218/(2.5*K3) -> 0.68125 | H42: =F42*K5 -> 10.9 | S42: 10.9 | U42: -1.52
A43: Dual II Magnum | B43: 11 | C43: $/pt. | D43: 11 | F43: =270/(2.5*K3) -> 0.84375 | H43: =F43*K5 -> 13.5 | S43: 13.5 | U43: -2.5
A44: Engenia | B44: 0.8296 | C44: $/oz. | D44: =1.22*0.68 -> 0.8296 | F44: =212.5/(2.5*K3) -> 0.6640625 | S44: 0.6640625 | T44: Unit? | U44: 0.1655375
A45: Enlist Duo | B45: 0.29890625 | C45: $/oz. | D45: =38.26/128 -> 0.29890625 | F45: =66.5/(2.5*K3) -> 0.2078125 | S45: 0.2078125 | U45: 0.09109375
A46: Enlist One | B46: 0.47 | C46: $/oz. | D46: 0.47 | E46: =AVERAGE(45.75,48.9)/128 -> 0.3697265625 | F46: =105/(2.5*K3) -> 0.328125 | S46: 0.37 | U46: 0.1
A47: Envoke | B47: 87 | C47: $/oz. | D47: 87 | F47: =380/3 -> 126.6666667 | S47: 126.6666667 | U47: -39.66666667
A48: Finesse Cereal and Fallow | B48: 17 | C48: $/oz. | D48: 17 | F48: =368/(20) -> 18.4 | G48: oz. | S48: 18.4 | U48: -1.4
A49: FirstRate | B49: 36 | C49: $/oz. | D49: 36 | F49: =611/(0.75*K6) -> 50.91666667 | G49: oz. | S49: 50.91666667 | U49: -14.91666667
A50: Firstshot SG | B50: 9.5 | C50: $/oz. | D50: 9.5 | F50: =199/(20) -> 9.95 | G50: oz. | S50: 9.95 | U50: -0.45
A51: Flexstar GT 3.5 | B51: 6.5 | C51: $/pt. | D51: 6.5 | F51: =153/(2.5*K3) -> 0.478125 | G51: oz. | H51: =F51*K5 -> 7.65 | S51: 7.65 | U51: -1.15
A52: Flexstar | B52: 9.38 | C52: $/pt. | D52: 9.38 | F52: =226/(2.5*K3) -> 0.70625 | H52: =F52*K5 -> 11.3 | S52: 11.3 | U52: -1.92
A53: Flumioxazin 51 | B53: 1.88 | C53: $/oz. | D53: 1.88 | E53: =+AVERAGE(14.75,16.4)/K3 -> 0.1216796875 | S53: 0.97 | U53: 0.91
A54: Flumioxazin 44% SC | B54: 2.27 | C54: $/oz. | D54: 2.27 | E54: =AVERAGE(124,132)/128 -> 1 | S54: 1 | U54: 1.27
A55: Fusilade DX | B55: 1.16 | C55: $/oz. | D55: 1.16 | F55: =179/K3 -> 1.3984375 | G55: oz. | S55: 1.3984375 | U55: -0.2384375
A56: Glufosinate 280SL | B56: 0.34 | C56: $/oz. | D56: 0.34 | E56: =+AVERAGE(16.5,17.9)/128 -> 0.134375 | S56: 0.13 | U56: 0.21
A57: Glyphosate | B57: 0.14 | C57: $/oz. | D57: 0.14 | E57: =+AVERAGE(13.5,14.4)/128 -> 0.108984375 | S57: 0.11 | U57: 0.03
A58: (continued) | U58: 0
U59: 0
A60: Herbicides | U60: 0
A61: Goal 2XL | B61: 7.5 | C61: $/pt. | D61: 7.5 | F61: =150/(2.5*K3) -> 0.46875 | G61: oz. | H61: =F61*K5 -> 7.5 | S61: 7.5 | U61: 0
A62: Gramoxone SL | B62: 0.17 | C62: $/oz. | D62: 0.17 | F62: =100/(2.5*K3) -> 0.3125 | G62: oz. | S62: 0.3125 | U62: -0.1425
A63: Grazon P + D | B63: 4.88 | C63: $/pt. | D63: 4.88 | F63: =98/(2.5*K3) -> 0.30625 | G63: oz. | H63: =F63*K5 -> 4.9 | S63: 4.9 | U63: -0.02
A64: Halex GT | B64: 6.5 | C64: $/pt. | D64: 6.5 | F64: =199/(2.5*K3) -> 0.621875 | G64: oz. | H64: =F64*K5 -> 9.95 | S64: 9.95 | U64: -3.45
A65: Harmony Extra Total Sol | B65: 12 | C65: $/oz. | D65: 12 | F65: =673.44/(48) -> 14.03 | G65: oz. | S65: 14.03 | U65: -2.03
A66: Harness Xtra 5.6 | B66: 15.75 | C66: $/qt. | D66: 15.75 | F66: =181/(2.5*K3) -> 0.565625 | G66: oz. | H66: =F66*K4 -> 18.1 | S66: 18.1 | U66: -2.35
A67: Imidacloprid 4F | B67: 0.78 | C67: $/oz. | D67: 0.78 | E67: =+AVERAGE(0.47,0.56) -> 0.515 | S67: 0.52 | U67: 0.26
A68: Lambda Cy | B68: 0.51 | C68: $/oz. | D68: 0.51 | E68: =+AVERAGE(26.4,32.35)/128 -> 0.2294921875 | S68: 0.23 | U68: 0.28
A69: Leadoff | B69: 5.5 | C69: $/oz. | D69: 5.5 | F69: =400/(60) -> 6.666666667 | G69: oz. | S69: 6.666666667 | U69: =D69-S69 -> -1.166666667
A70: Liberty 280 SL | B70: 0.44 | C70: $/oz. | D70: 0.44 | F70: =206/(2.5*K3) -> 0.64375 | G70: oz. | S70: 0.64375 | U70: -0.20375
A71: Mepex (Mepiquat Chloride) | B71: 2.3 | C71: $/acre | D71: 2.3 | F71: =0.07*K5 -> 1.12 | G71: oz. | S71: 2.24 | T71: acre | U71: 0.06
A72: Mesotrion | B72: 0.59 | C72: $/oz. | D72: 0.59 | E72: =+AVERAGE(43.9,47.5)/128 -> 0.35703125 | S72: 0.36 | U72: 0.23
A73: Metribuzin 75DF | B73: 1.13 | C73: $/oz. | D73: 1.13 | F73: =225/(10*K6) -> 1.40625 | G73: oz. | S73: 1.40625 | U73: -0.27625
A74: Metolachlor 8EC | B74: 0.51 | C74: $/oz. | D74: 0.51 | E74: =+AVERAGE(27.15,31.8)/128 -> 0.2302734375 | S74: 0.23 | U74: 0.28
A75: Miravis® NEO | B75: 1.76 | C75: $/oz. | D75: 1.76 | E75: =AVERAGE(15,174)/128 -> 0.73828125 | S75: 0.74 | U75: 1.02
A76: MSO | B76: 0.16 | C76: $/oz. | D76: 0.16 | E76: =AVERAGE(10.75,12.9)/128 -> 0.0923828125 | S76: 0.09 | U76: 0.07
A77: Outlook | B77: 1.13 | C77: $/oz. | D77: 1.13 | E77: =+AVERAGE(86,89)/128 -> 0.68359375 | F77: =458/(2.5*K3) -> 1.43125 | G77: oz. | S77: 0.68 | U77: 0.45
A78: Paraquat | B78: 0.16 | C78: $/oz. | D78: 0.16 | E78: =AVERAGE(15.5,17.5)/128 -> 0.12890625 | S78: 0.13 | U78: 0.03
A79: Permit | B79: 20 | C79: $/oz. | D79: 20 | F79: =530/20 -> 26.5 | G79: oz. | S79: 26.5 | U79: -6.5
A80: Pinzola | B80: 1 | C80: $/oz. | D80: 1 | E80: =AVERAGE(108,117)/128 -> 0.87890625 | S80: 0.88 | U80: 0.12
A81: Poast | B81: 14.25 | C81: $/pt. | D81: 14.25 | F81: =320/(2.5*K3) -> 1 | G81: oz. | H81: =F81*K5 -> 16 | S81: 16 | U81: -1.75
A82: Prefix | B82: 15.5 | C82: $/qt. | D82: 15.5 | F82: =189/(2.5*K3) -> 0.590625 | G82: oz. | H82: =F82*K4 -> 18.9 | S82: 18.9 | U82: -3.4
A83: Prowl H20 | B83: 6.75 | C83: $/pt. | D83: 6.75 | F83: =146/(2.5*K3) -> 0.45625 | G83: oz. | H83: =F83*K5 -> 7.3 | S83: 7.3 | U83: -0.55
A84: Priaxor® Xemium | B84: 4.02 | C84: $/oz. | D84: 4.02 | E84: =AVERAGE(342,364)/128 -> 2.7578125 | S84: 2.76 | U84: 1.26
A85: Propicon 3.6 | B85: 1.02 | C85: $/oz. | D85: 1.02 | E85: =AVERAGE(44.5,49)/128 -> 0.365234375 | S85: 0.37 | U85: 0.65
A86: Pursuit | B86: 3.48 | C86: $/oz. | D86: 3.48 | F86: =500/(128) -> 3.90625 | G86: oz. | S86: 3.90625 | U86: -0.42625
A87: Python WDG | B87: 19.25 | C87: $/oz. | D87: 19.25 | F87: =825/(2.5*K6) -> 20.625 | G87: oz. | S87: 20.625 | U87: -1.375
A88: Raptor | B88: 4 | C88: $/oz. | D88: 4 | F88: =645/(128) -> 5.0390625 | G88: oz. | S88: 5.0390625 | U88: -1.0390625
A89: Realm Q | B89: 4.5 | C89: $/oz. | D89: 4.5 | F89: =398/(80) -> 4.975 | G89: oz. | S89: 4.975 | U89: -0.475
A90: Reflex | B90: 7.25 | C90: $/pt. | D90: 7.25 | F90: =190/(2.64*K3) -> 0.5622632576 | G90: oz. | H90: =F90*K5 -> 8.996212121 | S90: 8.996212121 | U90: -1.746212121
A91: Resource | B91: 2.01 | C91: $/oz. | D91: 2.01 | F91: =283/(128) -> 2.2109375 | G91: oz. | S91: 2.2109375 | U91: -0.2009375
A92: Revytek® | B92: 3.16 | C92: $/oz. | D92: 3.16 | E92: =AVERAGE(292,308)/128 -> 2.34375 | S92: 2.34 | U92: 0.82
A93: Roundup PowerMax | B93: 0.2 | C93: $/oz. | D93: 0.2 | F93: =140/(2.5*K3) -> 0.4375 | G93: oz. | S93: 0.4375 | U93: -0.2375
A94: Scepter 70DG | B94: 5.19 | C94: $/oz. | D94: 5.19 | F94: =800/(8.75*K6) -> 5.714285714 | G94: oz. | S94: 5.714285714 | U94: -0.5242857143
A95: Select Max | B95: 0.86 | C95: $/oz. | D95: 0.86 | F95: =310/(2.5*K3) -> 0.96875 | G95: oz. | S95: 0.96875 | U95: -0.10875
A96: Sequence | B96: 6.5 | C96: $/pt. | D96: 6.5 | F96: =170/(2.5*K3) -> 0.53125 | G96: oz. | H96: =F96*K5 -> 8.5 | S96: 8.5 | U96: -2
A97: Sharpen | B97: 6.84 | C97: $/oz. | D97: 6.84 | E97: =+AVERAGE(720,740)/128 -> 5.703125 | F97: =993/(128) -> 7.7578125 | G97: oz. | S97: 5.7 | U97: 1.14
A98: Spur® | B98: 1.17 | C98: $/oz. | D98: 1.17 | E98: =AVERAGE(96,99)/128 -> 0.76171875 | S98: 0.76 | U98: 0.41
A99: Status® | B99: 5.05 | C99: $/oz. | D99: 5.05 | E99: =AVERAGE(3.55,3.72) -> 3.635 | S99: 3.64 | U99: 1.41
A100: Steadfast Q | B100: 12 | C100: $/oz. | D100: 12 | F100: =866/(60) -> 14.43333333 | G100: oz. | S100: 14.43333333 | U100: -2.433333333
A101: Storm | B101: 11.25 | C101: $/pt. | D101: 11.25 | F101: =284/(2.5*K3) -> 0.8875 | G101: oz. | H101: =F101*K5 -> 14.2 | S101: 14.2 | U101: -2.95
A102: Sulfentrazone 4 | B102: 1.13 | C102: $/oz. | D102: 1.13 | E102: =AVERAGE(66.7,72.9)/128 -> 0.5453125 | S102: 0.55 | U102: 0.58
A103: Surfactant | B103: 0.25 | C103: $/oz. | D103: 0.25 | E103: =10.5/K3 -> 0.08203125 | G103: oz. | S103: 0.08 | U103: 0.17
A104: Tebucon 3.6SC | B104: 0.59 | C104: $/oz. | D104: 0.59 | E104: =+AVERAGE(34,38)/128 -> 0.28125 | S104: 0.28 | U104: 0.31
A105: Treaty® Extra | B105: 6.25 | C105: $/oz. | D105: 6.25 | E105: =+AVERAGE(4.5,5.15) -> 4.825 | S105: 4.83 | U105: 1.42
A106: Treflan | B106: 4.38 | C106: $/pt. | D106: 4.38 | F106: =67.5/(2.5*K3) -> 0.2109375 | G106: oz. | H106: =F106*K5 -> 3.375 | S106: 3.375 | U106: 1.005
A107: Trivapro® | B107: 1.68 | C107: $/oz. | D107: 1.68 | E107: =AVERAGE(150,158)/128 -> 1.203125 | S107: 1.2 | U107: 0.48
A108: Ultra Blazer | B108: 8.13 | C108: $/pt. | D108: 8.13 | F108: =136/(2.5*K3) -> 0.425 | G108: oz. | H108: =F108*K5 -> 6.8 | S108: 6.8 | U108: 1.33
A109: Valor | B109: 2.81 | C109: $/oz. | D109: 2.81 | F109: =295/(5*K6) -> 3.6875 | G109: oz. | S109: 3.6875 | U109: -0.8775
A110: Veltyma® | B110: 3.31 | C110: $/oz. | D110: 3.31 | E110: =+AVERAGE(265,274)/128 -> 2.10546875 | S110: 2.11 | U110: 1.2
A111: Verdict | B111: 1.68 | C111: $/oz. | D111: 1.68 | F111: =684/(2.5*K3) -> 2.1375 | G111: oz. | S111: 2.1375 | U111: -0.4575
A112: Warrant | B112: 5.38 | C112: $/pt. | D112: 5.38 | F112: =123/(2.5*K3) -> 0.384375 | G112: oz. | H112: =F112*K5 -> 6.15 | S112: 6.15 | U112: -0.77
A113: Xtendimax | B113: 0.55 | C113: $/oz. | D113: 0.55 | S113: 0.3984375 | U113: 0.1515625
A114: Zidua® Pro | B114: 4.38 | C114: $/oz. | D114: 4.38 | E114: =AVERAGE(405,415)/128 -> 3.203125 | F114: =127.5/(2.5*K3) -> 0.3984375 | G114: oz. | S114: 3.2 | U114: 1.18

Sheet Fungicides
D1: 2026 | E1: 2025
A2: Fungicide Treatments
A3: Soybean-Foliar | B3: 18 | C3: $/acre | D3: 18 | E3: 15
A4: Wheat-Foliar | B4: 28 | C4: $/acre | D4: 28 | E4: 10
A5: Crop Oil Concentrate | B5: 2 | C5: $/qt. | D5: 2 | E5: 10.9
A6: Corn-Foliar | B6: 18 | C6: $/acre | D6: 18 | E6: 18
A7: Surfactant | B7: 2 | C7: $/gal | D7: 2 | E7: 10.5
B9: Price/Unit | C9: Unit
A10: Aftershock
A11: Alto
A12: Approach
A13: Approach Prima
A14: Caramba
A15: Domark
A16: Evito
A17: Folicur
A18: Fortix
A19: Headline
A20: Headline AMP
A21: Priaxor
A22: Priaxor D
A23: Proline
A24: Prosaro
A25: Quadris
A26: Quadris Top
A27: Quilt Xcel
A28: Stratego YLD
A29: Tilt
A30: Topguard
A31: Topsin-M
A32: TwinLine

Sheet Print (hidden)
B1: Irrigation
B2: Irrigation Energy Cost | C2: 6.8 | D2: $/acre-in
B3: Irrigation System R&M & Labor | C3: 3.1 | D3: $/acre-in
B4: Capital Recovery (Irrigation Equipment) | C4: 105 | D4: $/acre
B6: Fungicide Treatments
B7: Soybean-Foliar | C7: 18 | D7: $/acre
B8: Wheat-Foliar | C8: 28 | D8: $/acre
B9: Crop Oil Concentrate | C9: 2 | D9: $/qt.
B10: Corn-Foliar | C10: 18 | D10: $/acre
B11: Surfactant | C11: 2 | D11: $/gal
B13: Insecticide Treatments
B14: Soybean-Foliar | C14: 12 | D14: $/acre
B15: Cotton-Foliar | C15: 55 | D15: $/acre
B16: Grain Sorghum-Foliar | C16: 30 | D16: $/acre
B17: Wheat-Foliar | C17: 8 | D17: $/acre
B18: Maintenance Fee (Boll Weevil Eradication) | C18: 1.5 | D18: $/acre

Sheet Insecticides
D1: 2026 | E1: 2025
A2: Insecticide Treatments
A3: Soybean-Foliar | B3: 12 | C3: $/acre | D3: 12 | E3: 20
A4: Cotton-Foliar | B4: 55 | C4: $/acre | D4: 55 | E4: 65
A5: Grain Sorghum-Foliar | B5: 30 | C5: $/acre | D5: 30 | E5: 30
A6: Wheat-Foliar | B6: 8 | C6: $/acre | D6: 8 | E6: 5
A7: Maintenance Fee (Boll Weevil Eradication) | B7: 1.5 | C7: $/acre | D7: 1.5 | E7: 2
B9: Price/Unit | C9: Unit
A10: Abba
A11: Acramite
A12: Ammo
A13: Asana
A14: Athena
A15: Baythroid XL
A16: Belay
A17: Belt
A18: Belt
A19: Besiege
A20: Bidrin
A21: Blackhawk
A22: Brigade/Discipline/Fanfare
A23: Brigadier
A24: Carbine
A25: Centeic
A26: Colbalt
A27: Colbalt Advanced
A28: Comite
A29: Curacon
A30: Declare
A31: Delare
A32: Delta Gold
A33: Denim
A34: Diamon
A35: Dicofol
A36: Dimethoate
A37: Dimethoate
A38: Dimilin 2
A39: Double Take
A40: Double Take
A41: Endigo ZC
A42: Fyfanon
A43: Hero
A44: Imidacloprid
A45: Intrepid
A46: Intrepid Edge
A47: Intruder
A48: Justice
A49: Karate/Warrior II
A50: Lannate
A51: Larvin
A52: Leverage 360
A53: Lorsban
A54: Lorsban Advanced
A55: Malathion
A56: Methyl
A57: Mustang Max
A58: Oberon
A59: Orthene 90S
A60: Portal
A61: Pounce
A62: Prevathon
A63: Radiant
A64: Seven XLR
A65: Sevin
A66: Stallion
A67: Steward
A68: Transform
A69: Triple Crown
A70: Vydate
A71: Warrior II
A72: Zeal

Sheet Corn NT Non-Irr
B1: 2026 Corn, No-Till, Non-Irrigated Budget | L1: Table 1. Fertilizer & Lime3
E2: Unit | F2: Quantity | G2: Price | H2: Total | J2: Your Farm | L2: Fertilizer | M2: Description | N2: Quantity (lbs.) | O2: Price ($) | P2: Total ($/Acre) | Q2: Your Farm ($/Acre)
B3: Revenue1 | E3: Gross Revenue ($/Acre) | L3: Nitrogen | M3: Urea - Planting | N3: 60 | O3: =Inputs!C44 -> 0.64 | P3: =N3*O3 -> 38.4 | Q3: _________
C4: Corn | E4: Bu/acre | F4: 175 | G4: =Inputs!C3 -> 4.7 | H4: =F4*G4 -> 822.5 | J4: _________ | M4: UAN 32 - Side dress | N4: 120 | O4: =Inputs!C47 -> 0.74 | P4: =N4*O4 -> 88.8 | Q4: _________
C5: Government Payments | E5: $/acre | F5: 1 | G5: 0 | H5: =F5*G5 -> 0 | J5: _________ | L5: Phosphorous | M5: P2O5 | N5: 70 | O5: =Inputs!C48 -> 0.73 | P5: =+N5*O5 -> 51.1 | Q5: _________
C6: Other Revenue | E6: $/acre | F6: 1 | G6: 0 | H6: =F6*G6 -> 0 | J6: _________ | L6: Potassium | M6: K20 | N6: 70 | O6: =Inputs!C50 -> 0.41 | P6: =+N6*O6 -> 28.7 | Q6: _________
B7: Total Revenue | H7: =SUM(H4:H6) -> 822.5 | J7: _________ | L7: Zinc Sulfate | N7: 15 | O7: =+Inputs!C54 -> 1.25 | P7: =+N7*O7 -> 18.75 | Q7: _________
B8: Variable Expenses | L8: Boron | N8: 1 | O8: =Inputs!C52 -> 0.72 | P8: =+N8*O8 -> 0.72 | Q8: _________
C9: Seed2 | E9: Thous. | F9: 32 | G9: =+Inputs!C36 -> 3.68 | H9: =+F9*G9 -> 117.76 | J9: _________ | L9: Lime | N9: 1000 | O9: =+Inputs!C51 -> 30 | P9: =+N9/2000*O9 -> 15 | Q9: _________
C10: Fertilizer & Lime (Table 1) | E10: Acre | F10: 1 | G10: =+P12 -> 241.47 | H10: =+F10*G10 -> 241.47 | J10: _________ | L10: Other | N10: 0 | O10: 0 | P10: =N10*O10 -> 0 | Q10: _________
C11: Chemical (Table 2) | E11: Acre | F11: 1 | G11: =S28 -> 54.6 | H11: =F11*G11 -> 54.6 | J11: _________ | L11: Other | N11: 0 | O11: 0 | P11: =N11*O11 -> 0 | Q11: _________
C12: Crop Scout or Consultant | E12: Acre | F12: 1 | G12: =+Inputs!C18 -> 10 | H12: =F12*G12 -> 10 | J12: _________ | L12: Total | P12: =SUM(P3:P11) -> 241.47 | Q12: _________
C13: Repair & Maintenance (Table 3) | E13: Acre | F13: 1 | G13: =+Q44 -> 50.09324876 | H13: =+F13*G13 -> 50.09324876 | J13: _________
C14: Fuel, Oil & Filter (Table 3) | E14: Acre | F14: 1 | G14: =+R44 -> 22.82211684 | H14: 22.82211684 | J14: _________ | L14: Table 2. Chemicals4
C15: Operator Labor (Table 3) | E15: Acre | F15: 1 | G15: =+S44 -> 13.97576654 | H15: 13.97576654 | J15: _________ | L15: Chemical | M15: Function | N15: Description | O15: Unit | P15: Number of Apps. | Q15: Quantity | R15: Price | S15: Total ($/Acre) | T15: Your Farm ($/Acre)
C16: Crop Insurance6 | E16: Acre | F16: 1 | G16: =+Inputs!C24 -> 20.17 | H16: 20.17 | J16: _________ | L16: Herbicides | M16: Burndown | N16: Roundup PowerMax | O16: oz. | P16: 1 | Q16: 32 | R16: =+Herbicides!B93 -> 0.2 | S16: =P16*Q16*R16 -> 6.4 | T16: _________
C17: Machinery Rental | E17: Acre | F17: 1 | G17: 0 | H17: 0 | J17: _________ | M17: Pre-Emerge | N17: Atrazine | O17: qt. | P17: 1 | Q17: 1.8 | R17: =Herbicides!B10 -> 4.5 | S17: =P17*Q17*R17 -> 8.1 | T17: _________
C18: Custom Work | E18: Acre | F18: 1 | G18: 0 | H18: 0 | J18: _________ | N18: Other | P18: 0 | Q18: 0 | R18: 0 | S18: 0 | T18: _________
C19: Drying (Fuel/Electric) | E19: Bu | F19: =+F4 -> 175 | G19: 0 | H19: 0 | J19: _________ | M19: Post-Emerge | N19: Halex GT | O19: pt. | P19: 1 | Q19: 3.8 | R19: =Herbicides!B64 -> 6.5 | S19: 24.7 | T19: _________
C20: Other | E20: Acre | F20: 1 | G20: 0 | H20: =F20*G20 -> 0 | J20: _________ | N20: Atrazine | O20: qt. | P20: 1 | Q20: 2 | R20: =Herbicides!B10 -> 4.5 | S20: 9 | T20: _________
C21: Other | E21: Acre | F21: 1 | G21: 0 | H21: =F21*G21 -> 0 | J21: _________ | N21: Other | P21: 0 | Q21: 0 | R21: 0 | S21: 0 | T21: _________
C22: Operating Interest 7 | E22: % | F22: =SUM(H9:H21) -> 530.8911321 | G22: =+Inputs!C14 -> 0.075 | H22: =(F22*G22)/2 -> 19.90841746 | J22: _________ | M22: Harvest Aid | N22: Roundup PowerMax | O22: oz. | P22: 1 | Q22: 32 | R22: =Herbicides!B93 -> 0.2 | S22: 6.4 | T22: _________
B23: Total Variable Expenses | H23: =SUM(H9:H22) -> 550.7995496 | J23: _________ | N23: Other | P23: 0 | Q23: 0 | R23: 0 | S23: 0 | T23: _________
B24: Return Above Variable Expenses | H24: =H7-H23 -> 271.7004504 | J24: _________ | L24: Insecticides | N24: Other | P24: 0 | Q24: 0 | R24: 0 | S24: 0 | T24: _________
B25: Fixed Expenses | N25: Other | P25: 0 | Q25: 0 | R25: 0 | S25: 0 | T25: _________
C26: Machinery | L26: Fungicides | N26: Other | P26: 0 | Q26: 0 | R26: 0 | S26: 0 | T26: _________
C27: Capital Recovery (Table 3) | E27: Acre | F27: 1 | G27: =+P44 -> 123.0003421 | H27: =+F27*G27 -> 123.0003421 | J27: _________ | N27: Other | P27: 0 | Q27: 0 | R27: 0 | S27: =P27*Q27*R27 -> 0 | T27: _________
C28: Other Fixed Machinery Costs | E28: Acre | F28: 1 | G28: =+Inputs!C30 -> 0 | H28: =+F28*G28 -> 0 | J28: _________ | L28: Total | S28: =SUM(S16:S27) -> 54.6 | T28: _________
C29: General Overhead | E29: Acre | F29: 1 | G29: 20 | H29: =+F29*G29 -> 20 | J29: _________
C30: Cash Rent8 | E30: Acre | F30: 1 | G30: =+Inputs!C23 -> 117 | H30: 117 | J30: _________ | L30: Table 3. Machinery5
C31: Insurance (Non-Machinery) | E31: Acre | F31: 1 | G31: 0 | H31: 0 | J31: _________ | M31: Power Unit | N31: Implement | O31: Size | P31: Capital Recovery | Q31: Repairs & Maintenance | R31: Fuel, Oil & Filter | S31: Labor | T31: Total | U31: Your Farm ($/Acre)
C32: Management Labor10 | E32: Acre | F32: 1 | G32: =Inputs!C33 -> 25 | H32: =+F32*G32 -> 25 | J32: _________ | L32: Burndown | M32: SP Boom Sprayer | O32: 90' | P32: =+'Field Operations'!F11 -> 9.179604108 | Q32: =+'Field Operations'!G11 -> 0.2942877349 | R32: =+'Field Operations'!H11 -> 0.3847708333 | S32: =+'Field Operations'!I11 -> 0.318287037 | T32: =SUM(P32:S32) -> 10.17694971 | U32: _________
C33: Other | E33: Acre | F33: 1 | G33: 0 | H33: =+F33*G33 -> 0 | J33: _________ | L33: Fertilize | M33: Tractor, 215 hp | N33: Fertilize Spreader | P33: ='Field Operations'!F10 -> 5.248807987 | Q33: ='Field Operations'!G10 -> 1.66135077 | R33: ='Field Operations'!H10 -> 2.54419898 | S33: ='Field Operations'!I10 -> 1.683673469 | T33: 11.13803121 | U33: _________
B34: Total Fixed Expenses | H34: =+SUM(H27:H33) -> 285.0003421 | J34: _________ | L34: Plant | M34: Tractor, 215 hp | N34: Planter | O34: 16-row | P34: =+'Field Operations'!F8 -> 15.75385927 | Q34: =+'Field Operations'!G8 -> 2.938070049 | R34: =+'Field Operations'!H8 -> 2.397418269 | S34: =+'Field Operations'!I8 -> 1.586538462 | T34: =SUM(P34:S34) -> 22.67588605 | U34: _________
B35: Total Expenses | H35: =H23+H34 -> 835.7998917 | J35: _________ | L35: Weed Control | M35: SP Boom Sprayer | O35: 90' | P35: =+'Field Operations'!F11 -> 9.179604108 | Q35: =+'Field Operations'!G11 -> 0.2942877349 | R35: =+'Field Operations'!H11 -> 0.3847708333 | S35: =+'Field Operations'!I11 -> 0.318287037 | T35: =SUM(P35:S35) -> 10.17694971 | U35: _________
B36: Return Above Specified Expenses | H36: =H7-H35 -> -13.29989173 | J36: _________ | L36: Weed Control | M36: SP Boom Sprayer | O36: 90' | P36: =+'Field Operations'!F11 -> 9.179604108 | Q36: =+'Field Operations'!G11 -> 0.2942877349 | R36: =+'Field Operations'!H11 -> 0.3847708333 | S36: =+'Field Operations'!I11 -> 0.318287037 | T36: =SUM(P36:S36) -> 10.17694971 | U36: _________
G37: Cash Cost per Bushel | H37: =(SUM(H9:H22)+H30+H29)/F4 -> 3.930283141 | J37: _________ | L37: Weed Control | M37: SP Boom Sprayer | O37: 90' | P37: ='Field Operations'!F11 -> 9.179604108 | Q37: ='Field Operations'!G11 -> 0.2942877349 | R37: ='Field Operations'!H11 -> 0.3847708333 | S37: ='Field Operations'!I11 -> 0.318287037 | T37: =SUM(P37:S37) -> 10.17694971 | U37: _________
G38: Economic Cost per Bushel | H38: =H35/F4 -> 4.775999381 | J38: _________ | L38: Fertilize | M38: Tractor, 215 hp | N38: Fertilize Spreader | P38: =+'Field Operations'!F10 -> 5.248807987 | Q38: =+'Field Operations'!G10 -> 1.66135077 | R38: =+'Field Operations'!H10 -> 2.54419898 | S38: =+'Field Operations'!I10 -> 1.683673469 | T38: =SUM(P38:S38) -> 11.13803121 | U38: _________
L39: Fertilize | M39: Tractor, 215 hp | N39: Fertilize Spreader | P39: =+'Field Operations'!F10 -> 5.248807987 | Q39: =+'Field Operations'!G10 -> 1.66135077 | R39: =+'Field Operations'!H10 -> 2.54419898 | S39: =+'Field Operations'!I10 -> 1.683673469 | T39: =SUM(P39:S39) -> 11.13803121 | U39: _________
B40: Breakeven Price for Selected Yield | F40: Breakeven Yield for Selected Price | L40: Harvest | M40: Combine | N40: Corn Head | O40: 8-row | P40: =+'Field Operations'!F12 -> 40.09238289 | Q40: =+'Field Operations'!G12 -> 38.86883545 | R40: =+'Field Operations'!H12 -> 8.904696429 | S40: =+'Field Operations'!I12 -> 3.273809524 | T40: =SUM(P40:S40) -> 91.1397243 | U40: _________
B41: Yield | C41: Variable Cost | D41: Total Specified Cost | F41: Price | G41: Variable Cost | I41: Total Specified Cost | L41: Haul | M41: Tractor, 215 hp | N41: Grain Cart | O41: ='Field Operations'!E14 -> 800 bu | P41: =+'Field Operations'!F14 -> 7.009259565 | Q41: =+'Field Operations'!G14 -> 0.8751400134 | R41: =+'Field Operations'!H14 -> 1.558321875 | S41: =+'Field Operations'!I14 -> 1.03125 | T41: =SUM(P41:S41) -> 10.47397145 | U41: _________
B42: (bu) | C42: ($/bu) | D42: ($/bu) | F42: ($/bu) | G42: (bu) | I42: (bu) | L42: Haul | M42: ='Field Operations'!C16 -> Semi Tractor/Trailer | P42: ='Field Operations'!F16 -> 7.68 | Q42: ='Field Operations'!G16 -> 1.25 | R42: ='Field Operations'!H16 -> 0.79 | S42: ='Field Operations'!I16 -> 1.76 | T42: =SUM(P42:S42) -> 11.48 | U42: _________
B43: =SUM(B44-10) -> 125 | C43: =$H$23/B43 -> 4.406396397 | D43: =($H$23+$H$34)/B43 -> 6.686399134 | F43: =SUM(F44-0.25) -> 3.45 | G43: =+$H$23/F43 -> 159.6520434 | I43: =+($H$23+$H$34)/F43 -> 242.2608382 | L43: Other | P43: 0 | Q43: 0 | R43: 0 | S43: 0 | T43: =SUM(P43:S43) -> 0 | U43: _________
B44: =SUM(B45-10) -> 135 | C44: 4.079996664 | D44: 6.191110309 | F44: =SUM(F45-0.25) -> 3.7 | G44: 148.8647431 | I44: 225.8918626 | L44: Total | P44: =SUM(P32:P43) -> 123.0003421 | Q44: =SUM(Q32:Q43) -> 50.09324876 | R44: =SUM(R32:R43) -> 22.82211684 | S44: =SUM(S32:S43) -> 13.97576654 | T44: =SUM(T32:T43) -> 209.8914743 | U44: _________
B45: =SUM(B46-10) -> 145 | C45: 3.798617583 | D45: 5.764137184 | F45: =SUM(F46-0.25) -> 3.95 | G45: 139.442924 | I45: 211.5949093
B46: =SUM(B47-10) -> 155 | C46: 3.553545481 | D46: 5.392257366 | F46: =SUM(F47-0.25) -> 4.2 | G46: 131.1427499 | I46: 198.9999742
B47: =SUM(B48-10) -> 165 | C47: 3.338179089 | D47: 5.065453889 | F47: =SUM(F48-0.25) -> 4.45 | G47: 123.7751797 | I47: 187.8202004
B48: =+F4 -> 175 | C48: 3.147425998 | D48: 4.775999381 | F48: =+G4 -> 4.7 | G48: 117.1913935 | I48: 177.8297642
B49: =SUM(B48+10) -> 185 | C49: 2.977294863 | D49: 4.517837253 | F49: =SUM(F48+0.25) -> 4.95 | G49: 111.2726363 | I49: 168.848463
B50: =SUM(B49+10) -> 195 | C50: 2.824613075 | D50: 4.286153291 | F50: =SUM(F49+0.25) -> 5.2 | G50: 105.9229903 | I50: 160.7307484
B51: =SUM(B50+10) -> 205 | C51: 2.686827071 | D51: 4.077072643 | F51: =SUM(F50+0.25) -> 5.45 | G51: 101.0641375 | I51: 153.3577783
B52: =SUM(B51+10) -> 215 | C52: 2.56185837 | D52: 3.887441357 | F52: =SUM(F51+0.25) -> 5.7 | G52: 96.63149993 | I52: 146.63156
B53: =SUM(B52+10) -> 225 | C53: 2.447997998 | D53: 3.714666185 | F53: =SUM(F52+0.25) -> 5.95 | G53: 92.57135287 | I53: 140.47057

Sheet Corn CT Non-Irr
B1: 2026 Corn, Conventional Tillage, Non-Irrigated Budget | L1: Table 1. Fertilizer & Lime3
E2: Unit | F2: Quantity | G2: Price | H2: Total | J2: Your Farm | L2: Fertilizer | M2: Description | N2: Quantity (lbs.) | O2: Price ($) | P2: Total ($/Acre) | Q2: Your Farm ($/Acre)
B3: Revenue1 | E3: Gross Revenue ($/Acre) | L3: Nitrogen | M3: Urea - Planting | N3: 60 | O3: =Inputs!C44 -> 0.64 | P3: =N3*O3 -> 38.4 | Q3: _________
C4: Corn | E4: Bu/acre | F4: 175 | G4: =+Inputs!C3 -> 4.7 | H4: =F4*G4 -> 822.5 | J4: _________ | M4: UAN 32 - Side dress | N4: 120 | O4: =Inputs!C47 -> 0.74 | P4: =N4*O4 -> 88.8 | Q4: _________
C5: Government Payments | E5: $/acre | F5: 1 | G5: 0 | H5: =F5*G5 -> 0 | J5: _________ | L5: Phosphorous | M5: P2O5 | N5: 70 | O5: =Inputs!C48 -> 0.73 | P5: =+N5*O5 -> 51.1 | Q5: _________
C6: Other Revenue | E6: $/acre | F6: 1 | G6: 0 | H6: 0 | J6: _________ | L6: Potassium | M6: K20 | N6: 70 | O6: =Inputs!C50 -> 0.41 | P6: =+N6*O6 -> 28.7 | Q6: _________
B7: Total Revenue | H7: =SUM(H4:H6) -> 822.5 | J7: _________ | L7: Zinc Sulfate | N7: 15 | O7: =Inputs!C54 -> 1.25 | P7: =+N7*O7 -> 18.75 | Q7: _________
B8: Variable Expenses | L8: Boron | N8: 1 | O8: =Inputs!C52 -> 0.72 | P8: =+N8*O8 -> 0.72 | Q8: _________
C9: Seed2 | E9: Thous. | F9: 32 | G9: =+Inputs!C36 -> 3.68 | H9: =+F9*G9 -> 117.76 | J9: _________ | L9: Lime | N9: 1000 | O9: =Inputs!C51 -> 30 | P9: =N9/2000*O9 -> 15 | Q9: _________
C10: Fertilizer & Lime (Table 1) | E10: Acre | F10: 1 | G10: =+P12 -> 241.47 | H10: =+F10*G10 -> 241.47 | J10: _________ | L10: Other | N10: 0 | O10: 0 | P10: =N10*O10 -> 0 | Q10: _________
C11: Chemical (Table 2) | E11: Acre | F11: 1 | G11: =S27 -> 47.24 | H11: =F11*G11 -> 47.24 | J11: _________ | L11: Other | N11: 0 | O11: 0 | P11: =N11*O11 -> 0 | Q11: _________
C12: Crop Scout or Consultant | E12: Acre | F12: 1 | G12: =+Inputs!C18 -> 10 | H12: =F12*G12 -> 10 | J12: _________ | L12: Total | P12: =SUM(P3:P11) -> 241.47 | Q12: _________
C13: Repair & Maintenance (Table 3) | E13: Acre | F13: 1 | G13: =+Q45 -> 55.82122912 | H13: =+F13*G13 -> 55.82122912 | J13: _________
C14: Fuel, Oil & Filter (Table 3) | E14: Acre | F14: 1 | G14: =+R45 -> 31.67929938 | H14: 31.67929938 | J14: _________ | L14: Table 2. Chemicals4
C15: Operator Labor (Table 3) | E15: Acre | F15: 1 | G15: =+S45 -> 19.77352303 | H15: 19.77352303 | J15: _________ | L15: Chemical | M15: Function | N15: Description | O15: Unit | P15: Number of Apps. | Q15: Quantity | R15: Price | S15: Total ($/Acre) | T15: Your Farm ($/Acre)
C16: Crop Insurance6 | E16: Acre | F16: 1 | G16: =+Inputs!C24 -> 20.17 | H16: 20.17 | J16: _________ | L16: Herbicides | M16: Pre-Emerge | N16: Atrazine | O16: qt. | P16: 1 | Q16: 1.8 | R16: =Herbicides!B10 -> 4.5 | S16: =P16*Q16*R16 -> 8.1 | T16: _________
C17: Machinery Rental | E17: Acre | F17: 1 | G17: 0 | H17: 0 | J17: _________ | N17: Other | P17: 0 | Q17: 0 | R17: 0 | S17: =P17*Q17*R17 -> 0 | T17: _________
C18: Custom Work | E18: Acre | F18: 1 | G18: 0 | H18: 0 | J18: _________ | M18: Post-Emerge | N18: Halex GT | O18: pt. | P18: 1 | Q18: 3.8 | R18: =Herbicides!B64 -> 6.5 | S18: =P18*Q18*R18 -> 24.7 | T18: _________
C19: Drying (Fuel/Electric) | E19: Bu | F19: =+F4 -> 175 | G19: 0 | H19: 0 | J19: _________ | N19: Atrazine | O19: qt. | P19: 1 | Q19: 2 | R19: =Herbicides!B10 -> 4.5 | S19: 9 | T19: _________
C20: Other | E20: Acre | F20: 1 | G20: 0 | H20: =F20*G20 -> 0 | J20: _________ | N20: Other | P20: 0 | Q20: 0 | R20: 0 | S20: 0 | T20: _________
C21: Other | E21: Acre | F21: 1 | G21: 0 | H21: =F21*G21 -> 0 | J21: _________ | M21: Harvest Aid | N21: Gramoxone SL | O21: oz. | P21: 1 | Q21: 32 | R21: =Herbicides!B62 -> 0.17 | S21: 5.44 | T21: _________
C22: Operating Interest 7 | E22: % | F22: =SUM(H9:H21) -> 543.9140515 | G22: =+Inputs!C14 -> 0.075 | H22: =(F22*G22)/2 -> 20.39677693 | J22: _________ | N22: Other | P22: 0 | Q22: 0 | R22: 0 | S22: 0 | T22: _________
B23: Total Variable Expenses | H23: =SUM(H9:H22) -> 564.3108285 | J23: _________ | L23: Insecticides | N23: Other | P23: 0 | Q23: 0 | R23: 0 | S23: 0 | T23: _________
B24: Return Above Variable Expenses | H24: =H7-H23 -> 258.1891715 | J24: _________ | N24: Other | P24: 0 | Q24: 0 | R24: 0 | S24: 0 | T24: _________
B25: Fixed Expenses | L25: Fungicides | N25: Other | P25: 0 | Q25: 0 | R25: 0 | S25: 0 | T25: _________
C26: Machinery | N26: Other | P26: 0 | Q26: 0 | R26: 0 | S26: =P26*Q26*R26 -> 0 | T26: _________
C27: Capital Recovery (Table 3) | E27: Acre | F27: 1 | G27: =+P45 -> 140.0563716 | H27: =+F27*G27 -> 140.0563716 | J27: _________ | L27: Total | S27: =SUM(S16:S26) -> 47.24 | T27: _________
C28: Other Fixed Machinery Costs | E28: Acre | F28: 1 | G28: =+Inputs!C30 -> 0 | H28: =+F28*G28 -> 0 | J28: _________
C29: General Overhead | E29: Acre | F29: 1 | G29: 20 | H29: 20 | J29: _________ | L29: Table 3. Machinery5
C30: Cash Rent8 | E30: Acre | F30: 1 | G30: =+Inputs!C23 -> 117 | H30: =+F30*G30 -> 117 | J30: _________ | M30: Power Unit | N30: Implement | O30: Size | P30: Capital Recovery | Q30: Repairs & Maintenance | R30: Fuel, Oil & Filter | S30: Labor | T30: Total | U30: Your Farm ($/Acre)
C31: Insurance (Non-Machinery) | E31: Acre | F31: 1 | G31: 0 | H31: 0 | J31: _________ | L31: Chisel | M31: Tractor, 215 hp | N31: Chisel Plow | O31: 21' | P31: =+'Field Operations'!F4 -> 7.153539609 | Q31: =+'Field Operations'!G4 -> 2.123869033 | R31: =+'Field Operations'!H4 -> 3.492037815 | S31: =+'Field Operations'!I4 -> 2.31092437 | T31: =SUM(P31:S31) -> 15.08037083 | U31: _________
C32: Management Labor10 | E32: Acre | F32: 1 | G32: =Inputs!C33 -> 25 | H32: =+F32*G32 -> 25 | J32: _________ | L32: Disk | M32: Tractor, 215 hp | N32: Tandem Disk | O32: 29' | P32: =+'Field Operations'!F5 -> 11.61881621 | Q32: =+'Field Operations'!G5 -> 2.086710265 | R32: =+'Field Operations'!H5 -> 2.809685598 | S32: =+'Field Operations'!I5 -> 1.859364435 | T32: 18.37457651 | U32: _________
C33: Other | E33: Acre | F33: 1 | G33: 0 | H33: =+F33*G33 -> 0 | J33: _________ | L33: Prepare Seedbed | M33: Tractor, 215 hp | N33: Do-All | O33: 26.5' | P33: =+'Field Operations'!F6 -> 7.463277784 | Q33: =+'Field Operations'!G6 -> 1.811688795 | R33: =+'Field Operations'!H6 -> 2.940229953 | S33: =+'Field Operations'!I6 -> 1.945754717 | T33: =SUM(P33:S33) -> 14.16095125 | U33: _________
B34: Total Fixed Expenses | H34: =+SUM(H27:H33) -> 302.0563716 | J34: _________ | L34: Plant | M34: Tractor, 215 hp | N34: Planter | O34: 16-row | P34: =+'Field Operations'!F8 -> 15.75385927 | Q34: =+'Field Operations'!G8 -> 2.938070049 | R34: =+'Field Operations'!H8 -> 2.397418269 | S34: =+'Field Operations'!I8 -> 1.586538462 | T34: 22.67588605 | U34: _________
B35: Total Expenses | H35: =H23+H34 -> 866.3672001 | J35: _________ | L35: Fertilize | M35: Tractor, 215 hp | N35: Fertilize Spreader | P35: =+'Field Operations'!F10 -> 5.248807987 | Q35: =+'Field Operations'!G10 -> 1.66135077 | R35: =+'Field Operations'!H10 -> 2.54419898 | S35: =+'Field Operations'!I10 -> 1.683673469 | T35: 11.13803121 | U35: _________
B36: Return Above Specified Expenses | H36: =H7-H35 -> -43.86720008 | J36: _________ | L36: Fertilize | M36: Tractor, 215 hp | N36: Fertilize Spreader | P36: =+'Field Operations'!F10 -> 5.248807987 | Q36: =+'Field Operations'!G10 -> 1.66135077 | R36: =+'Field Operations'!H10 -> 2.54419898 | S36: =+'Field Operations'!I10 -> 1.683673469 | T36: =SUM(P36:S36) -> 11.13803121 | U36: _________
G37: Cash Cost per Bushel | H37: =(SUM(H9:H22)+H30+H29)/F4 -> 4.007490448 | J37: _________ | L37: Fertilize | M37: Tractor, 215 hp | N37: Fertilize Spreader | P37: ='Field Operations'!F10 -> 5.248807987 | Q37: ='Field Operations'!G10 -> 1.66135077 | R37: ='Field Operations'!H10 -> 2.54419898 | S37: ='Field Operations'!I10 -> 1.683673469 | T37: =SUM(P37:S37) -> 11.13803121 | U37: _________
G38: Economic Cost per Bushel | H38: =H35/F4 -> 4.950669715 | J38: _________ | L38: Weed Control | M38: SP Boom Sprayer | O38: 90' | P38: =P39 -> 9.179604108 | Q38: =Q39 -> 0.2942877349 | R38: 0.3847708333 | S38: 0.318287037 | T38: 10.17694971 | U38: _________
L39: Weed Control | M39: SP Boom Sprayer | O39: 90' | P39: =+'Field Operations'!F11 -> 9.179604108 | Q39: =+'Field Operations'!G11 -> 0.2942877349 | R39: =+'Field Operations'!H11 -> 0.3847708333 | S39: =+'Field Operations'!I11 -> 0.318287037 | T39: =SUM(P39:S39) -> 10.17694971 | U39: _________
B40: Breakeven Price for Selected Yield | F40: Breakeven Yield for Selected Price | L40: Weed Control | M40: SP Boom Sprayer | O40: 90' | P40: =+'Field Operations'!F11 -> 9.179604108 | Q40: =+'Field Operations'!G11 -> 0.2942877349 | R40: =+'Field Operations'!H11 -> 0.3847708333 | S40: =+'Field Operations'!I11 -> 0.318287037 | T40: =SUM(P40:S40) -> 10.17694971 | U40: _________
B41: Yield | C41: Variable Cost | D41: Total Specified Cost | F41: Price | G41: Variable Cost | I41: Total Specified Cost | L41: Harvest | M41: Combine | N41: Corn Head | O41: 8-row | P41: =+'Field Operations'!F12 -> 40.09238289 | Q41: =+'Field Operations'!G12 -> 38.86883545 | R41: =+'Field Operations'!H12 -> 8.904696429 | S41: =+'Field Operations'!I12 -> 3.273809524 | T41: =SUM(P41:S41) -> 91.1397243 | U41: _________
B42: (bu) | C42: ($/bu) | D42: ($/bu) | F42: ($/bu) | G42: (bu) | I42: (bu) | L42: Haul | M42: Tractor, 215 hp | N42: Grain Cart | O42: ='Field Operations'!E14 -> 800 bu | P42: =+'Field Operations'!F14 -> 7.009259565 | Q42: =+'Field Operations'!G14 -> 0.8751400134 | R42: =+'Field Operations'!H14 -> 1.558321875 | S42: =+'Field Operations'!I14 -> 1.03125 | T42: =SUM(P42:S42) -> 10.47397145 | U42: _________
B43: =SUM(B44-10) -> 125 | C43: =$H$23/B43 -> 4.514486628 | D43: =($H$23+$H$34)/B43 -> 6.930937601 | F43: =SUM(F44-0.25) -> 3.45 | G43: =+$H$23/F43 -> 163.5683561 | I43: =+($H$23+$H$34)/F43 -> 251.1209276 | L43: Haul | M43: ='Field Operations'!C16 -> Semi Tractor/Trailer | P43: ='Field Operations'!F16 -> 7.68 | Q43: ='Field Operations'!G16 -> 1.25 | R43: ='Field Operations'!H16 -> 0.79 | S43: ='Field Operations'!I16 -> 1.76 | T43: =SUM(P43:S43) -> 11.48 | U43: _________
B44: =SUM(B45-10) -> 135 | C44: 4.180080211 | D44: 6.417534815 | F44: =SUM(F45-0.25) -> 3.7 | G44: 152.5164401 | I44: 234.1532973 | L44: Other | P44: 0 | Q44: 0 | R44: 0 | S44: 0 | T44: =SUM(P44:S44) -> 0 | U44: _________
B45: =SUM(B46-10) -> 145 | C45: 3.891798817 | D45: 5.974946207 | F45: =SUM(F46-0.25) -> 3.95 | G45: 142.8635009 | I45: 219.3334684 | L45: Total | P45: =SUM(P31:P44) -> 140.0563716 | Q45: =SUM(Q31:Q44) -> 55.82122912 | R45: =SUM(R31:R44) -> 31.67929938 | S45: =SUM(S31:S44) -> 19.77352303 | T45: =SUM(T31:T44) -> 247.3304231 | U45: _________
B46: =SUM(B47-10) -> 155 | C46: 3.640715022 | D46: 5.589465807 | F46: =SUM(F47-0.25) -> 4.2 | G46: 134.3597211 | I46: 206.2779048
B47: =SUM(B48-10) -> 165 | C47: 3.420065627 | D47: 5.250710304 | F47: =SUM(F48-0.25) -> 4.45 | G47: 126.8114221 | I47: 194.6892584
B48: =+F4 -> 175 | C48: 3.224633305 | D48: 4.950669715 | F48: =+G4 -> 4.7 | G48: 120.0661337 | I48: 184.3334468
B49: =SUM(B48+10) -> 185 | C49: 3.050328802 | D49: 4.683065946 | F49: =SUM(F48+0.25) -> 4.95 | G49: 114.0021876 | I49: 175.0236768
B50: =SUM(B49+10) -> 195 | C50: 2.893901684 | D50: 4.442908718 | F50: =SUM(F49+0.25) -> 5.2 | G50: 108.5213132 | I50: 166.6090769
B51: =SUM(B50+10) -> 205 | C51: 2.752735749 | D51: 4.226181464 | F51: =SUM(F50+0.25) -> 5.45 | G51: 103.5432713 | I51: 158.9664587
B52: =SUM(B51+10) -> 215 | C52: 2.624701528 | D52: 4.029614884 | F52: =SUM(F51+0.25) -> 5.7 | G52: 99.00189973 | I52: 151.9942456
B53: =SUM(B52+10) -> 225 | C53: 2.508048126 | D53: 3.850520889 | F53: =SUM(F52+0.25) -> 5.95 | G53: 94.84215604 | I53: 145.6079328

Sheet Corn Irr
B1: 2026 Corn, No-Till, Irrigated Budget | L1: Table 1. Fertilizer & Lime3
E2: Unit | F2: Quantity | G2: Price | H2: Total | J2: Your Farm | L2: Fertilizer | M2: Description | N2: Quantity (lbs.) | O2: Price ($) | P2: Total ($/Acre) | Q2: Your Farm ($/Acre)
B3: Revenue1 | E3: Gross Revenue ($/Acre) | L3: Nitrogen | M3: Urea - Planting | N3: 80 | O3: =Inputs!C44 -> 0.64 | P3: =N3*O3 -> 51.2 | Q3: _________
C4: Corn | E4: Bu/acre | F4: 250 | G4: =+Inputs!C3 -> 4.7 | H4: =F4*G4 -> 1175 | J4: _________ | M4: UAN 32 - Side dress | N4: 160 | O4: =Inputs!C47 -> 0.74 | P4: =N4*O4 -> 118.4 | Q4: _________
C5: Government Payments | E5: $/acre | F5: 1 | G5: 0 | H5: =F5*G5 -> 0 | J5: _________ | L5: Phosphorous | M5: P2O5 | N5: 90 | O5: =Inputs!C48 -> 0.73 | P5: =+N5*O5 -> 65.7 | Q5: _________
C6: Other Revenue | E6: $/acre | F6: 1 | G6: 0 | H6: 0 | J6: _________ | L6: Potassium | M6: K20 | N6: 90 | O6: =Inputs!C50 -> 0.41 | P6: =+N6*O6 -> 36.9 | Q6: _________
B7: Total Revenue | H7: =SUM(H4:H6) -> 1175 | J7: _________ | L7: Zinc Sulfate | N7: 15 | O7: =Inputs!C54 -> 1.25 | P7: =+N7*O7 -> 18.75 | Q7: _________
B8: Variable Expenses | L8: Boron | N8: 1 | O8: =Inputs!C52 -> 0.72 | P8: =+N8*O8 -> 0.72 | Q8: _________
C9: Seed2 | E9: Thous. | F9: 36.5 | G9: =+Inputs!C36 -> 3.68 | H9: =+F9*G9 -> 134.32 | J9: _________ | L9: Lime | N9: 1000 | O9: =Inputs!C51 -> 30 | P9: =N9/2000*O9 -> 15 | Q9: _________
C10: Fertilizer & Lime (Table 1) | E10: Acre | F10: 1 | G10: =+P12 -> 306.67 | H10: =+F10*G10 -> 306.67 | J10: _________ | L10: Other | N10: 0 | O10: 0 | P10: =N10*O10 -> 0 | Q10: _________
C11: Chemical (Table 2) | E11: Acre | F11: 1 | G11: =S28 -> 54.6 | H11: =F11*G11 -> 54.6 | J11: _________ | L11: Other | N11: 0 | O11: 0 | P11: =N11*O11 -> 0 | Q11: _________
C12: Crop Scout or Consultant | E12: Acre | F12: 1 | G12: =+Inputs!C18 -> 10 | H12: =F12*G12 -> 10 | J12: _________ | L12: Total | P12: =SUM(P3:P11) -> 306.67 | Q12: _________
C13: Repair & Maintenance (Table 3) | E13: Acre | F13: 1 | G13: =+Q44 -> 50.59014317 | H13: =+F13*G13 -> 50.59014317 | J13: _________
C14: Fuel, Oil & Filter (Table 3) | E14: Acre | F14: 1 | G14: =+R44 -> 23.13615411 | H14: 23.13615411 | J14: _________ | L14: Table 2. Chemicals4
C15: Operator Labor (Table 3) | E15: Acre | F15: 1 | G15: =+S44 -> 14.67539387 | H15: 14.67539387 | J15: _________ | L15: Chemical | M15: Function | N15: Description | O15: Unit | P15: Number of Apps. | Q15: Quantity | R15: Price | S15: Total ($/Acre) | T15: Your Farm ($/Acre)
C16: Crop Insurance6 | E16: Acre | F16: 1 | G16: =+Inputs!C24 -> 20.17 | H16: 20.17 | J16: _________ | L16: Herbicides | M16: Burndown | N16: Roundup PowerMax | O16: oz. | P16: 1 | Q16: 32 | R16: =+Herbicides!B93 -> 0.2 | S16: =P16*Q16*R16 -> 6.4 | T16: _________
C17: Machinery Rental | E17: Acre | F17: 1 | G17: 0 | H17: 0 | J17: _________ | M17: Pre-Emerge | N17: Atrazine | O17: qt. | P17: 1 | Q17: 1.8 | R17: =Herbicides!B10 -> 4.5 | S17: =P17*Q17*R17 -> 8.1 | T17: _________
C18: Custom Work | E18: Acre | F18: 1 | G18: 0 | H18: 0 | J18: _________ | N18: Other | P18: 0 | Q18: 0 | R18: 0 | S18: =P18*Q18*R18 -> 0 | T18: _________
C19: Drying (Fuel/Electric) | E19: Bu | F19: =+F4 -> 250 | G19: 0 | H19: 0 | J19: _________ | M19: Post-Emerge | N19: Halex GT | O19: pt. | P19: 1 | Q19: 3.8 | R19: =Herbicides!B64 -> 6.5 | S19: 24.7 | T19: _________
C20: Irrigation Energy Cost9 | E20: Ac-in | F20: 9 | G20: =+Inputs!C57 -> 6.8 | H20: =+F20*G20 -> 61.2 | J20: _________ | N20: Atrazine | O20: qt. | P20: 1 | Q20: 2 | R20: =Herbicides!B10 -> 4.5 | S20: 9 | T20: _________
C21: Irrigation System R&M & Labor9 | E21: Ac-in | F21: 9 | G21: =+Inputs!C58 -> 3.1 | H21: =+F21*G21 -> 27.9 | J21: _________ | N21: Other | P21: 0 | Q21: 0 | R21: 0 | S21: 0 | T21: _________
C22: Other Irrigation Costs | E22: Acre | F22: 1 | G22: 0 | H22: 0 | J22: _________ | M22: Harvest Aid | N22: Roundup PowerMax | O22: oz. | P22: 1 | Q22: 32 | R22: =Herbicides!B93 -> 0.2 | S22: 6.4 | T22: _________
C23: Other | E23: Acre | F23: 1 | G23: 0 | H23: =F23*G23 -> 0 | J23: _________ | N23: Other | P23: 0 | Q23: 0 | R23: 0 | S23: 0 | T23: _________
C24: Other | E24: Acre | F24: 1 | G24: 0 | H24: =F24*G24 -> 0 | J24: _________ | L24: Insecticides | N24: Other | P24: 0 | Q24: 0 | R24: 0 | S24: 0 | T24: _________
C25: Operating Interest7 | E25: % | F25: =SUM(H9:H24) -> 703.2616912 | G25: =+Inputs!C14 -> 0.075 | H25: =(F25*G25)/2 -> 26.37231342 | J25: _________ | N25: Other | P25: 0 | Q25: 0 | R25: 0 | S25: 0 | T25: _________
B26: Total Variable Expenses | H26: =SUM(H9:H25) -> 729.6340046 | J26: _________ | L26: Fungicides | N26: Other | P26: 0 | Q26: 0 | R26: 0 | S26: 0 | T26: _________
B27: Return Above Variable Expenses | H27: =H7-H26 -> 445.3659954 | J27: _________ | N27: Other | P27: 0 | Q27: 0 | R27: 0 | S27: =P27*Q27*R27 -> 0 | T27: _________
B28: Fixed Expenses | L28: Total | S28: =SUM(S16:S27) -> 54.6 | T28: _________
C29: Machinery
C30: Capital Recovery (Table 3) | E30: Acre | F30: 1 | G30: =+P44 -> 126.0532614 | H30: =+F30*G30 -> 126.0532614 | J30: _________ | L30: Table 3. Machinery5
C31: Other Fixed Machinery Costs | E31: Acre | F31: 1 | G31: =+Inputs!C30 -> 0 | H31: 0 | J31: _________ | M31: Power Unit | N31: Implement | O31: Size | P31: Capital Recovery | Q31: Repairs & Maintenance | R31: Fuel, Oil & Filter | S31: Labor | T31: Total | U31: Your Farm ($/Acre)
C32: Capital Recovery (Irrigation Equipment)9 | E32: Acre | F32: 1 | G32: =+Inputs!C59 -> 105 | H32: 105 | J32: _________ | L32: Burndown | M32: SP Boom Sprayer | O32: 90' | P32: =+'Field Operations'!F11 -> 9.179604108 | Q32: =+'Field Operations'!G11 -> 0.2942877349 | R32: =+'Field Operations'!H11 -> 0.3847708333 | S32: =+'Field Operations'!I11 -> 0.318287037 | T32: =SUM(P32:S32) -> 10.17694971 | U32: _________
C33: Other Fixed Irrigation Costs | E33: Acre | F33: 1 | G33: 0 | H33: 0 | J33: _________ | L33: Plant | M33: Tractor, 215 hp | N33: Planter | O33: 16-row | P33: =+'Field Operations'!F8 -> 15.75385927 | Q33: =+'Field Operations'!G8 -> 2.938070049 | R33: =+'Field Operations'!H8 -> 2.397418269 | S33: =+'Field Operations'!I8 -> 1.586538462 | T33: 22.67588605 | U33: _________
C34: General Overhead | E34: Acre | F34: 1 | G34: 25 | H34: 25 | J34: _________ | L34: Fertilize | M34: Tractor, 215 hp | N34: Fertilize Spreader | P34: ='Field Operations'!F10 -> 5.248807987 | Q34: ='Field Operations'!G10 -> 1.66135077 | R34: ='Field Operations'!H10 -> 2.54419898 | S34: ='Field Operations'!I10 -> 1.683673469 | T34: ='Field Operations'!J10 -> 11.13803121 | U34: _________
C35: Cash Rent8 | E35: Acre | F35: 1 | G35: =Inputs!C22 -> 197 | H35: 197 | J35: _________ | L35: Weed Control | M35: SP Boom Sprayer | O35: 90' | P35: ='Field Operations'!F11 -> 9.179604108 | Q35: ='Field Operations'!G11 -> 0.2942877349 | R35: ='Field Operations'!H11 -> 0.3847708333 | S35: ='Field Operations'!I11 -> 0.318287037 | T35: ='Field Operations'!J11 -> 10.17694971 | U35: _________
C36: Insurance (Non-Machinery) | E36: Acre | F36: 1 | G36: 0 | H36: 0 | J36: _________ | L36: Weed Control | M36: SP Boom Sprayer | O36: 90' | P36: =+'Field Operations'!F11 -> 9.179604108 | Q36: =+'Field Operations'!G11 -> 0.2942877349 | R36: =+'Field Operations'!H11 -> 0.3847708333 | S36: =+'Field Operations'!I11 -> 0.318287037 | T36: =SUM(P36:S36) -> 10.17694971 | U36: _________
C37: Management Labor10 | E37: Acre | F37: 1 | G37: =Inputs!C33 -> 25 | H37: =+F37*G37*2 -> 50 | J37: _________ | L37: Weed Control | M37: SP Boom Sprayer | O37: 90' | P37: =+'Field Operations'!F11 -> 9.179604108 | Q37: =+'Field Operations'!G11 -> 0.2942877349 | R37: =+'Field Operations'!H11 -> 0.3847708333 | S37: =+'Field Operations'!I11 -> 0.318287037 | T37: 10.17694971 | U37: _________
C38: Other | E38: Acre | F38: 1 | G38: 0 | H38: 0 | J38: _________ | L38: Fertilize | M38: Tractor, 215 hp | N38: Fertilize Spreader | P38: =+'Field Operations'!F10 -> 5.248807987 | Q38: =+'Field Operations'!G10 -> 1.66135077 | R38: =+'Field Operations'!H10 -> 2.54419898 | S38: =+'Field Operations'!I10 -> 1.683673469 | T38: 11.13803121 | U38: _________
B39: Total Fixed Expenses | H39: =+SUM(H30:H38) -> 503.0532614 | J39: _________ | L39: Fertilize | M39: Tractor, 215 hp | N39: Fertilize Spreader | P39: =+'Field Operations'!F10 -> 5.248807987 | Q39: =+'Field Operations'!G10 -> 1.66135077 | R39: =+'Field Operations'!H10 -> 2.54419898 | S39: =+'Field Operations'!I10 -> 1.683673469 | T39: 11.13803121 | U39: _________
B40: Total Expenses | H40: =H26+H39 -> 1232.687266 | J40: _________ | L40: Harvest | M40: Combine | N40: Corn Head | O40: 8-row | P40: =+'Field Operations'!F12 -> 40.09238289 | Q40: =+'Field Operations'!G12 -> 38.86883545 | R40: =+'Field Operations'!H12 -> 8.904696429 | S40: =+'Field Operations'!I12 -> 3.273809524 | T40: 91.1397243 | U40: _________
B41: Return Above Specified Expenses | H41: =H7-H40 -> -57.68726595 | J41: _________ | L41: Haul | M41: Tractor, 215 hp | N41: Grain Cart | O41: ='Field Operations'!E14 -> 800 bu | P41: =+'Field Operations'!F14 -> 7.009259565 | Q41: =+'Field Operations'!G14 -> 0.8751400134 | R41: =+'Field Operations'!H14 -> 1.558321875 | S41: =+'Field Operations'!I14 -> 1.03125 | T41: =SUM(P41:S41) -> 10.47397145 | U41: _________
G42: Cash Cost per Bushel | H42: =(SUM(H9:H25)+G35+G34)/F4 -> 3.806536018 | J42: _________ | L42: Haul | M42: ='Field Operations'!C16 -> Semi Tractor/Trailer | P42: ='Field Operations'!F16*1.39751552795031 -> 10.73291925 | Q42: ='Field Operations'!G16*1.39751552795031 -> 1.74689441 | R42: ='Field Operations'!H16*1.39751552795031 -> 1.104037267 | S42: ='Field Operations'!I16*1.39751552795031 -> 2.459627329 | T42: =SUM(P42:S42) -> 16.04347826 | U42: _________
G43: Economic Cost per Bushel | H43: =H40/F4 -> 4.930749064 | J43: _________ | L43: Other | P43: 0 | Q43: 0 | R43: 0 | S43: 0 | T43: =SUM(P43:S43) -> 0 | U43: _________
L44: Total | P44: =SUM(P32:P43) -> 126.0532614 | Q44: =SUM(Q32:Q43) -> 50.59014317 | R44: =SUM(R32:R43) -> 23.13615411 | S44: =SUM(S32:S43) -> 14.67539387 | T44: =SUM(T32:T43) -> 214.4549525 | U44: _________
B45: Breakeven Price for Selected Yield | F45: Breakeven Yield for Selected Price
B46: Yield | C46: Variable Cost | D46: Total Specified Cost | F46: Price | G46: Variable Cost | I46: Total Specified Cost
B47: (bu) | C47: ($/bu) | D47: ($/bu) | F47: ($/bu) | G47: (bu) | I47: (bu)
B48: =SUM(B49-10) -> 200 | C48: =$H$26/B48 -> 3.648170023 | D48: =($H$26+$H$39)/B48 -> 6.16343633 | F48: =SUM(F49-0.25) -> 3.45 | G48: =+$H$26/F48 -> 211.4881173 | I48: =+($H$26+$H$39)/F48 -> 357.3006568
B49: =SUM(B50-10) -> 210 | C49: 3.474447641 | D49: 5.869939362 | F49: =SUM(F50-0.25) -> 3.7 | G49: 197.1983796 | I49: 333.1587205
B50: =SUM(B51-10) -> 220 | C50: 3.316518203 | D50: 5.603123936 | F50: =SUM(F51-0.25) -> 3.95 | G50: 184.7174695 | I50: 312.0727256
B51: =SUM(B52-10) -> 230 | C51: 3.172321759 | D51: 5.359509852 | F51: =SUM(F52-0.25) -> 4.2 | G51: 173.722382 | I51: 293.4969681
B52: =SUM(B53-10) -> 240 | C52: 3.040141686 | D52: 5.136196941 | F52: =SUM(F53-0.25) -> 4.45 | G52: 163.9626977 | I52: 277.0083744
B53: =+F4 -> 250 | C53: 2.918536018 | D53: 4.930749064 | F53: =+G4 -> 4.7 | G53: 155.2412776 | I53: 262.2738864
B54: =SUM(B53+10) -> 260 | C54: 2.806284633 | D54: 4.741104869 | F54: =SUM(F53+0.25) -> 4.95 | G54: 147.400809 | I54: 249.0277305
B55: =SUM(B54+10) -> 270 | C55: 2.702348165 | D55: 4.565508392 | F55: =SUM(F54+0.25) -> 5.2 | G55: 140.3142316 | I55: 237.0552435
B56: =SUM(B55+10) -> 280 | C56: 2.605835731 | D56: 4.402454521 | F56: =SUM(F55+0.25) -> 5.45 | G56: 133.877799 | I56: 226.1811497
B57: =SUM(B56+10) -> 290 | C57: 2.515979326 | D57: 4.250645745 | F57: =SUM(F56+0.25) -> 5.7 | G57: 128.0059657 | I57: 216.2609239
B58: =SUM(B57+10) -> 300 | C58: 2.432113349 | D58: 4.108957553 | F58: =SUM(F57+0.25) -> 5.95 | G58: 122.6275638 | I58: 207.1743304

Sheet Soybeans NT Non-Irr
B1: 2026 Soybean, No-Till, Non-Irrigated Budget | L1: Table 1. Fertilizer & Lime3
E2: Unit | F2: Quantity | G2: Price | H2: Total | J2: Your Farm | L2: Fertilizer | M2: Description | N2: Quantity (lbs.) | O2: Price ($) | P2: Total ($/Acre) | Q2: Your Farm ($/Acre)
B3: Revenue1 | E3: Gross Revenue ($/Acre) | L3: Nitrogen | N3: 0 | O3: =Inputs!C44 -> 0.64 | P3: =+N3*O3 -> 0 | Q3: _________
C4: Soybeans | E4: Bu/acre | F4: 50 | G4: =+Inputs!C4 -> 10.7 | H4: =F4*G4 -> 535 | J4: _________ | L4: Phosphorous | M4: P2O5 | N4: 30 | O4: =Inputs!C48 -> 0.73 | P4: =N4*O4 -> 21.9 | Q4: _________
C5: Government Payments | E5: $/acre | F5: 1 | G5: 0 | H5: =F5*G5 -> 0 | J5: _________ | L5: Potassium | M5: K20 | N5: 60 | O5: =Inputs!C50 -> 0.41 | P5: =N5*O5 -> 24.6 | Q5: _________
C6: Other Revenue | E6: $/acre | F6: 1 | G6: 0 | H6: 0 | J6: _________ | L6: Lime | N6: 1000 | O6: =+Inputs!C51 -> 30 | P6: =N6/2000*O6 -> 15 | Q6: _________
B7: Total Revenue | H7: =SUM(H4:H6) -> 535 | J7: _________ | L7: Boron | N7: 1 | O7: =Inputs!C52 -> 0.72 | P7: =N7*O7 -> 0.72 | Q7: _________
B8: Variable Expenses | L8: Other | N8: 0 | O8: 0 | P8: =N8*O8 -> 0 | Q8: _________
C9: Seed2 | E9: Thous. | F9: 140 | G9: =+Inputs!C37 -> 0.45 | H9: =+F9*G9 -> 63 | J9: _________ | L9: Other | N9: 0 | O9: 0 | P9: =+N9*O9 -> 0 | Q9: _________
C10: Fertilizer & Lime (Table 1) | E10: Acre | F10: 1 | G10: =+P10 -> 62.22 | H10: =+F10*G10 -> 62.22 | J10: _________ | L10: Total | P10: =SUM(P3:P9) -> 62.22 | Q10: _________
C11: Chemical (Table 2) | E11: Acre | F11: 1 | G11: =S26 -> 74.825 | H11: =F11*G11 -> 74.825 | J11: _________
C12: Crop Scout or Consultant | E12: Acre | F12: 1 | G12: =+Inputs!C18 -> 10 | H12: =F12*G12 -> 10 | J12: _________ | L12: Table 2. Chemicals4
C13: Repair & Maintenance (Table 3) | E13: Acre | F13: 1 | G13: =+Q43 -> 36.15503302 | H13: =+F13*G13 -> 36.15503302 | J13: _________ | L13: Chemical | M13: Function | N13: Description | O13: Unit | P13: Number of Apps. | Q13: Quantity | R13: Price | S13: Total ($/Acre) | T13: Your Farm ($/Acre)
C14: Fuel, Oil & Filter (Table 3) | E14: Acre | F14: 1 | G14: =+R43 -> 15.35231561 | H14: 15.35231561 | J14: _________ | L14: Herbicides | M14: Burndown | N14: Roundup PowerMax | O14: oz. | P14: 1 | Q14: 36 | R14: =+Herbicides!B93 -> 0.2 | S14: =P14*Q14*R14 -> 7.2 | T14: _________
C15: Operator Labor (Table 3) | E15: Acre | F15: 1 | G15: =+S43 -> 8.898254259 | H15: 8.898254259 | J15: _________ | M15: Pre-Emerge | N15: Sequence | O15: pt. | P15: 1 | Q15: 3 | R15: =Herbicides!B96 -> 6.5 | S15: =P15*Q15*R15 -> 19.5 | T15: _________
C16: Crop Insurance6 | E16: Acre | F16: 1 | G16: =+Inputs!C25 -> 10.55 | H16: =+F16*G16 -> 10.55 | J16: _________ | N16: Other | P16: 0 | Q16: 0 | R16: 0 | S16: =P16*Q16*R16 -> 0 | T16: _________
C17: Machinery Rental | E17: Acre | F17: 0 | G17: 0 | H17: =+F17*G17 -> 0 | J17: _________ | M17: Post-Emerge | N17: Roundup PowerMax | O17: oz. | P17: 1 | Q17: 32 | R17: =Herbicides!B93 -> 0.2 | S17: 6.4 | T17: _________
C18: Custom Work | E18: Acre | F18: 0 | G18: 0 | H18: =+F18*G18 -> 0 | J18: _________ | N18: Flexstar | O18: pt. | P18: 1 | Q18: 1.25 | R18: =Herbicides!B52 -> 9.38 | S18: 11.725 | T18: _________
C19: Drying (Fuel/Electric) | E19: Bu | F19: =+F4 -> 50 | G19: 0 | H19: =+F19*G19 -> 0 | J19: _________ | N19: Other | P19: 0 | Q19: 0 | R19: 0 | S19: 0 | T19: _________
C20: Other | E20: Acre | F20: 1 | G20: 0 | H20: =F20*G20 -> 0 | J20: _________ | N20: Other | P20: 0 | Q20: 0 | R20: 0 | S20: 0 | T20: _________
C21: Other | E21: Acre | F21: 1 | G21: 0 | H21: =F21*G21 -> 0 | J21: _________ | L21: Insecticides | N21: Foliar | O21: acre | P21: 1 | Q21: 1 | R21: =Insecticides!B3 -> 12 | S21: 12 | T21: _________
C22: Operating Interest7 | E22: % | F22: =SUM(H9:H21) -> 281.0006029 | G22: =+Inputs!C14 -> 0.075 | H22: =(F22*G22)/2 -> 10.53752261 | J22: _________ | L22: Fungicides | N22: Foliar | O22: acre | P22: 1 | Q22: 1 | R22: =Fungicides!B3 -> 18 | S22: 18 | T22: _________
B23: Total Variable Expenses | H23: =SUM(H9:H22) -> 291.5381255 | J23: _________ | N23: Other | P23: 0 | Q23: 0 | R23: 0 | S23: 0 | T23: _________
B24: Return Above Variable Expenses | H24: =H7-H23 -> 243.4618745 | J24: _________ | N24: Other | P24: 0 | Q24: 0 | R24: 0 | S24: 0 | T24: _________
B25: Fixed Expenses | N25: Other | P25: 0 | Q25: 0 | R25: 0 | S25: =P25*Q25*R25 -> 0 | T25: _________
C26: Machinery | J26: _________ | L26: Total | S26: =SUM(S14:S25) -> 74.825 | T26: _________
C27: Capital Recovery (Table 3) | E27: Acre | F27: 1 | G27: =+P43 -> 109.5995814 | H27: =+F27*G27 -> 109.5995814 | J27: _________
C28: Other Fixed Machinery Costs | E28: Acre | F28: 1 | G28: 0 | H28: =F28*G28 -> 0 | J28: _________ | L28: Table 3. Machinery5
C29: General Overhead | E29: Acre | F29: 1 | G29: 20 | H29: =F29*G29 -> 20 | J29: _________ | M29: Power Unit | N29: Implement | O29: Size | P29: Capital Recovery | Q29: Repairs & Maintenance | R29: Fuel, Oil & Filter | S29: Labor | T29: Total | U29: Your Farm ($/Acre)
C30: Cash Rent8 | E30: Acre | F30: 1 | G30: =+Inputs!C23 -> 117 | H30: =F30*G30 -> 117 | J30: _________ | L30: Burndown | M30: SP Boom Sprayer | O30: 90' | P30: =+'Field Operations'!F11 -> 9.179604108 | Q30: =+'Field Operations'!G11 -> 0.2942877349 | R30: =+'Field Operations'!H11 -> 0.3847708333 | S30: =+'Field Operations'!I11 -> 0.318287037 | T30: =SUM(P30:S30) -> 10.17694971 | U30: _________
C31: Insurance (Non-Machinery) | E31: Acre | F31: 1 | G31: 0 | H31: =+F31*G31 -> 0 | J31: _________ | L31: Fertilize | M31: Tractor, 215 hp | N31: Fertilize Spreader | P31: =+'Field Operations'!F10 -> 5.248807987 | Q31: =+'Field Operations'!G10 -> 1.66135077 | R31: =+'Field Operations'!H10 -> 2.54419898 | S31: =+'Field Operations'!I10 -> 1.683673469 | T31: =SUM(P31:S31) -> 11.13803121 | U31: _________
C32: Management Labor10 | E32: Acre | F32: 1 | G32: =Inputs!C33 -> 25 | H32: =+F32*G32 -> 25 | J32: _________ | L32: Plant | M32: Tractor, 215 hp | N32: Planter | O32: 16-row | P32: =+'Field Operations'!F8 -> 15.75385927 | Q32: =+'Field Operations'!G8 -> 2.938070049 | R32: =+'Field Operations'!H8 -> 2.397418269 | S32: =+'Field Operations'!I8 -> 1.586538462 | T32: =SUM(P32:S32) -> 22.67588605 | U32: _________
C33: Other | E33: Acre | F33: 1 | G33: 0 | H33: =+F33*G33 -> 0 | J33: _________ | L33: Pre-Emerge | M33: SP Boom Sprayer | O33: 90' | P33: =+'Field Operations'!F11 -> 9.179604108 | Q33: =+'Field Operations'!G11 -> 0.2942877349 | R33: =+'Field Operations'!H11 -> 0.3847708333 | S33: =+'Field Operations'!I11 -> 0.318287037 | T33: 10.17694971 | U33: _________
B34: Total Fixed Expenses | H34: =+SUM(H26:H33) -> 271.5995814 | J34: _________ | L34: Post-Emerge | M34: SP Boom Sprayer | O34: 90' | P34: =+'Field Operations'!F11 -> 9.179604108 | Q34: =+'Field Operations'!G11 -> 0.2942877349 | R34: =+'Field Operations'!H11 -> 0.3847708333 | S34: =+'Field Operations'!I11 -> 0.318287037 | T34: 10.17694971 | U34: _________
E35: Total Expenses | H35: =SUM(H23+H34) -> 563.1377069 | J35: _________ | L35: Post-Emerge | M35: SP Boom Sprayer | O35: 90' | P35: =+'Field Operations'!F11 -> 9.179604108 | Q35: =+'Field Operations'!G11 -> 0.2942877349 | R35: =+'Field Operations'!H11 -> 0.3847708333 | S35: =+'Field Operations'!I11 -> 0.318287037 | T35: 10.17694971 | U35: _________
B36: Return Above Specified Expenses | H36: =H7-H35 -> -28.13770689 | J36: _________ | L36: Fungicide | M36: SP Boom Sprayer | O36: 90' | P36: =+'Field Operations'!F11 -> 9.179604108 | Q36: =+'Field Operations'!G11 -> 0.2942877349 | R36: =+'Field Operations'!H11 -> 0.3847708333 | S36: =+'Field Operations'!I11 -> 0.318287037 | T36: 10.17694971 | U36: _________
G37: Cash Cost per Bushel | H37: =(SUM(H9:H22)+H29+H30)/F4 -> 8.57076251 | J37: _________ | L37: Harvest | M37: Combine | N37: Grain Head | O37: 30' | P37: =+'Field Operations'!F13 -> 29.77963402 | Q37: =+'Field Operations'!G13 -> 28.88903352 | R37: =+'Field Operations'!H13 -> 6.678522321 | S37: =+'Field Operations'!I13 -> 2.455357143 | T37: =SUM(P37:S37) -> 67.802547 | U37: _________
G38: Economic Cost per Bushel | H38: =H35/F4 -> 11.26275414 | J38: _________ | L38: Haul | M38: Tractor, 215 hp | N38: Grain Cart | O38: =+'Field Operations'!E14 -> 800 bu | P38: =+'Field Operations'!F14 -> 7.009259565 | Q38: =+'Field Operations'!G14 -> 0.8751400134 | R38: =+'Field Operations'!H14 -> 1.558321875 | S38: =+'Field Operations'!I14 -> 1.03125 | T38: 10.47397145 | U38: _________
L39: Haul | M39: Semi Tractor/Trailer | P39: ='Field Operations'!F15 -> 5.91 | Q39: ='Field Operations'!G15 -> 0.32 | R39: ='Field Operations'!H15 -> 0.25 | S39: ='Field Operations'!I15 -> 0.55 | T39: 7.03 | U39: _________
B40: Breakeven Price for Selected Yield | F40: Breakeven Yield for Selected Price | L40: Other | P40: 0 | Q40: 0 | R40: 0 | S40: 0 | T40: 0 | U40: _________
B41: Yield (bu) | C41: Variable Cost ($/bu) | D41: Total Specified Cost ($/bu) | F41: Price ($/bu) | G41: Variable Cost (bu) | I41: Total Specified Cost (bu) | L41: Other | P41: 0 | Q41: 0 | R41: 0 | S41: 0 | T41: 0 | U41: _________
B42: =SUM(B43-5) -> 30 | C42: =$H$23/B42 -> 9.717937517 | D42: =($H$23+$H$34)/B42 -> 18.7712569 | F42: =SUM(F43-0.5) -> 8.7 | G42: =+$H$23/F42 -> 33.51012937 | I42: =+($H$23+$H$34)/F42 -> 64.72847206 | L42: Other | P42: 0 | Q42: 0 | R42: 0 | S42: 0 | T42: 0 | U42: _________
B43: 35 | C43: 8.329660729 | D43: 16.08964877 | F43: 9.2 | G43: =+$H$23/F43 -> 31.68892668 | I43: 61.21062031 | L43: Total | P43: =SUM(P30:P42) -> 109.5995814 | Q43: =SUM(Q30:Q42) -> 36.15503302 | R43: =SUM(R30:R42) -> 15.35231561 | S43: =SUM(S30:S42) -> 8.898254259 | T43: =SUM(T30:T42) -> 170.0051843 | U43: _________
B44: 40 | C44: 7.288453138 | D44: 14.07844267 | F44: 9.7 | G44: 30.05547686 | I44: 58.0554337
B45: =SUM(B46-5) -> 45 | C45: 6.478625011 | D45: 12.51417126 | F45: =SUM(F46-0.5) -> 10.2 | G45: 28.58216917 | I45: 55.20957911
B46: =+F4 -> 50 | C46: 5.83076251 | D46: 11.26275414 | F46: =+G4 -> 10.7 | G46: 27.24655379 | I46: 52.62969223
B47: =SUM(B46+5) -> 55 | C47: 5.300693191 | D47: 10.2388674 | F47: =SUM(F46+0.5) -> 11.2 | G47: 26.03018978 | I47: 50.2801524
B48: =SUM(B47+5) -> 60 | C48: 4.858968758 | D48: 9.385628448 | F48: =SUM(F47+0.5) -> 11.7 | G48: 24.9177885 | I48: 48.13142794
B49: 65 | C49: 4.485201931 | D49: 8.663657029 | F49: 12.2 | G49: 23.89656766 | I49: 46.15882843
B50: 70 | C50: 4.164830364 | D50: 8.044824384 | F50: 12.7 | G50: 22.95575791 | I50: 44.34155172

Sheet Soybeans Irr
B1: 2026 Soybean, No-Till, Irrigated Budget | L1: Table 1. Fertilizer & Lime3
E2: Unit | F2: Quantity | G2: Price | H2: Total | J2: Your Farm | L2: Fertilizer | M2: Description | N2: Quantity (lbs.) | O2: Price ($) | P2: Total ($/Acre) | Q2: Your Farm ($/Acre)
B3: Revenue1 | E3: Gross Revenue ($/Acre) | L3: Nitrogen | M3: Urea | N3: 0 | O3: =+Inputs!C44 -> 0.64 | P3: =+N3*O3 -> 0 | Q3: _________
C4: Soybeans | E4: Bu/acre | F4: 65 | G4: =+Inputs!C4 -> 10.7 | H4: =F4*G4 -> 695.5 | J4: _________ | L4: Phosphorous | M4: P2O5 | N4: 40 | O4: =Inputs!C48 -> 0.73 | P4: =+N4*O4 -> 29.2 | Q4: _________
C5: Government Payments | E5: $/acre | F5: 1 | G5: 0 | H5: =F5*G5 -> 0 | J5: _________ | L5: Potassium | M5: K20 | N5: 80 | O5: =+Inputs!C50 -> 0.41 | P5: =+N5*O5 -> 32.8 | Q5: _________
C6: Other Revenue | E6: $/acre | F6: 1 | G6: 0 | H6: 0 | J6: _________ | L6: Lime | M6: Limestone | N6: 1000 | O6: =+Inputs!C51 -> 30 | P6: =+N6/2000*O6 -> 15 | Q6: _________
B7: Total Revenue | H7: =SUM(H4:H6) -> 695.5 | J7: _________ | L7: Boron | N7: 1 | O7: =Inputs!C52 -> 0.72 | P7: 0.72 | Q7: _________
B8: Variable Expenses | L8: Other | N8: 0 | O8: 0 | P8: 0 | Q8: _________
C9: Seed2 | E9: Thous. | F9: 150 | G9: =+Inputs!C37 -> 0.45 | H9: =+F9*G9 -> 67.5 | J9: _________ | L9: Other | N9: 0 | O9: 0 | P9: 0 | Q9: _________
C10: Fertilizer & Lime (Table 1) | E10: Acre | F10: 1 | G10: =+P10 -> 77.72 | H10: =+F10*G10 -> 77.72 | J10: _________ | L10: Total | P10: =SUM(P3:P9) -> 77.72 | Q10: _________
C11: Chemical (Table 2) | E11: Acre | F11: 1 | G11: =S28 -> 74.825 | H11: =F11*G11 -> 74.825 | J11: _________
C12: Crop Scout or Consultant | E12: Acre | F12: 1 | G12: =+Inputs!C18 -> 10 | H12: =F12*G12 -> 10 | J12: _________ | L12: Table 2. Chemicals4
C13: Repair & Maintenance (Table 3) | E13: Acre | F13: 1 | G13: =+Q45 -> 36.28720693 | H13: =+F13*G13 -> 36.28720693 | J13: _________ | L13: Chemical | M13: Function | N13: Description | O13: Unit | P13: Number of Apps. | Q13: Quantity | R13: Price | S13: Total ($/Acre) | T13: Your Farm ($/Acre)
C14: Fuel, Oil & Filter (Table 3) | E14: Acre | F14: 1 | G14: =+R45 -> 15.45557648 | H14: 15.45557648 | J14: _________ | L14: Herbicides | M14: Burndown | N14: Roundup PowerMax | O14: oz. | P14: 1 | Q14: 36 | R14: =Herbicides!B93 -> 0.2 | S14: =P14*Q14*R14 -> 7.2 | T14: _________
C15: Operator Labor (Table 3) | E15: Acre | F15: 1 | G15: =+S45 -> 9.125428172 | H15: 9.125428172 | J15: _________ | M15: Pre-Emerge | N15: Sequence | O15: pt. | P15: 1 | Q15: 3 | R15: =Herbicides!B96 -> 6.5 | S15: =P15*Q15*R15 -> 19.5 | T15: _________
C16: Crop Insurance6 | E16: Acre | F16: 1 | G16: =+Inputs!C25 -> 10.55 | H16: =+F16*G16 -> 10.55 | J16: _________ | N16: Other | O16: qt. | P16: 0 | Q16: 0 | R16: 0 | S16: =P16*Q16*R16 -> 0 | T16: _________
C17: Machinery Rental | E17: Acre | F17: 0 | G17: 0 | H17: 0 | J17: _________ | M17: Post-Emerge | N17: Roundup PowerMax | O17: oz. | P17: 1 | Q17: 32 | R17: =Herbicides!B93 -> 0.2 | S17: =P17*Q17*R17 -> 6.4 | T17: _________
C18: Custom Work | E18: Acre | F18: 0 | G18: 0 | H18: 0 | J18: _________ | N18: Flexstar | O18: pt. | P18: 1 | Q18: 1.25 | R18: =Herbicides!B52 -> 9.38 | S18: =P18*Q18*R18 -> 11.725 | T18: _________
C19: Drying (Fuel/Electric) | E19: Bu | F19: =+F4 -> 65 | G19: 0 | H19: 0 | J19: _________ | N19: Other | P19: 0 | Q19: 0 | R19: 0 | S19: =P19*Q19*R19 -> 0 | T19: _________
C20: Irrigation Energy Cost9 | E20: Ac-In | F20: 4.5 | G20: =+Inputs!C57 -> 6.8 | H20: 30.6 | J20: _________ | N20: Other | P20: 0 | Q20: 0 | R20: 0 | S20: =P20*Q20*R20 -> 0 | T20: _________
C21: Irrigation System R&M & Labor9 | E21: Ac-In | F21: =F20 -> 4.5 | G21: =+Inputs!C58 -> 3.1 | H21: 13.95 | J21: _________ | L21: Insecticides | N21: Foliar | O21: acre | P21: 1 | Q21: 1 | R21: =Insecticides!B3 -> 12 | S21: =P21*Q21*R21 -> 12 | T21: _________
C22: Other Irrigation Costs | E22: Acre | F22: 1 | G22: 0 | H22: 0 | J22: _________ | L22: Fungicides | N22: Foliar | O22: acre | P22: 1 | Q22: 1 | R22: =Fungicides!B3 -> 18 | S22: =+P22*Q22*R22 -> 18 | T22: _________
C23: Other | E23: Acre | F23: 1 | G23: 0 | H23: =F23*G23 -> 0 | J23: _________ | N23: Other | P23: 0 | Q23: 0 | R23: 0 | S23: =P23*Q23*R23 -> 0 | T23: _________
C24: Other | E24: Acre | F24: 1 | G24: 0 | H24: =F24*G24 -> 0 | J24: _________ | N24: Other | P24: 0 | Q24: 0 | R24: 0 | S24: 0 | T24: _________
C25: Operating Interest7 | E25: % | F25: =SUM(H9:H24) -> 346.0132116 | G25: =+Inputs!C14 -> 0.075 | H25: =(F25*G25)/2 -> 12.97549543 | J25: _________ | N25: Other | P25: 0 | Q25: 0 | R25: 0 | S25: =P25*Q25*R25 -> 0 | T25: _________
C26: Total Variable Expenses | H26: =SUM(H9:H25) -> 358.988707 | J26: _________ | N26: Other | P26: 0 | Q26: 0 | R26: 0 | S26: =P26*Q26*R26 -> 0 | T26: _________
B27: Return Above Variable Expenses | H27: =H7-H26 -> 336.511293 | J27: _________ | N27: Other | P27: 0 | Q27: 0 | R27: 0 | S27: 0 | T27: _________
B28: Fixed Expenses | L28: Total | S28: =SUM(S14:S27) -> 74.825 | T28: _________
C29: Machinery
C30: Capital Recovery (Table 3) | E30: Acre | F30: 1 | G30: =+P45 -> 112.0406683 | H30: =+F30*G30 -> 112.0406683 | J30: _________ | L30: Table 3. Machinery5
C31: Other Fixed Machinery Costs | E31: Acre | F31: 1 | G31: 0 | H31: 0 | J31: _________ | M31: Power Unit | N31: Implement | O31: Size | P31: Capital Recovery | Q31: Repairs & Maintenance | R31: Fuel, Oil & Filter | S31: Labor | T31: Total | U31: Your Farm ($/Acre)
C32: Capital Recovery (Irrigation Equipment)9 | E32: Acre | F32: 1 | G32: =+Inputs!C59 -> 105 | H32: =+F32*G32 -> 105 | J32: _________ | L32: Burndown | M32: SP Boom Sprayer | O32: 90' | P32: =+'Field Operations'!F11 -> 9.179604108 | Q32: =+'Field Operations'!G11 -> 0.2942877349 | R32: =+'Field Operations'!H11 -> 0.3847708333 | S32: =+'Field Operations'!I11 -> 0.318287037 | T32: =SUM(P32:S32) -> 10.17694971 | U32: _________
C33: Other Irrigation Costs | E33: Acre | F33: 1 | G33: 0 | H33: 0 | J33: _________ | L33: Fertilize | M33: Tractor, 215 hp | N33: Fertilize Spreader | P33: =+'Field Operations'!F10 -> 5.248807987 | Q33: =+'Field Operations'!G10 -> 1.66135077 | R33: =+'Field Operations'!H10 -> 2.54419898 | S33: =+'Field Operations'!I10 -> 1.683673469 | T33: =SUM(P33:S33) -> 11.13803121 | U33: _________
C34: General Overhead | E34: Acre | F34: 1 | G34: 20 | H34: 20 | J34: _________ | L34: Plant | M34: Tractor, 215 hp | N34: Planter | O34: 16-row | P34: =+'Field Operations'!F8 -> 15.75385927 | Q34: =+'Field Operations'!G8 -> 2.938070049 | R34: =+'Field Operations'!H8 -> 2.397418269 | S34: =+'Field Operations'!I8 -> 1.586538462 | T34: =SUM(P34:S34) -> 22.67588605 | U34: _________
C35: Cash Rent8 | E35: Acre | F35: 1 | G35: =Inputs!C22 -> 197 | H35: 197 | J35: _________ | L35: Pre-Emerge | M35: SP Boom Sprayer | O35: 90' | P35: =+'Field Operations'!F11 -> 9.179604108 | Q35: =+'Field Operations'!G11 -> 0.2942877349 | R35: =+'Field Operations'!H11 -> 0.3847708333 | S35: =+'Field Operations'!I11 -> 0.318287037 | T35: 10.17694971 | U35: _________
C36: Insurance (Non-Machinery) | E36: Acre | F36: 1 | G36: =+Inputs!C32 -> 0 | H36: 0 | J36: _________ | L36: Post-Emerge | M36: SP Boom Sprayer | O36: 90' | P36: =+'Field Operations'!F11 -> 9.179604108 | Q36: =+'Field Operations'!G11 -> 0.2942877349 | R36: =+'Field Operations'!H11 -> 0.3847708333 | S36: =+'Field Operations'!I11 -> 0.318287037 | T36: =SUM(P36:S36) -> 10.17694971 | U36: _________
C37: Management Labor10 | E37: Acre | F37: 1 | G37: =Inputs!C33 -> 25 | H37: =+F37*G37*2 -> 50 | J37: _________ | L37: Post-Emerge | M37: SP Boom Sprayer | O37: 90' | P37: =+'Field Operations'!F11 -> 9.179604108 | Q37: =+'Field Operations'!G11 -> 0.2942877349 | R37: =+'Field Operations'!H11 -> 0.3847708333 | S37: =+'Field Operations'!I11 -> 0.318287037 | T37: 10.17694971 | U37: _________
C38: Other | E38: Acre | F38: 1 | G38: 0 | H38: 0 | J38: _________ | L38: Fungicide | M38: SP Boom Sprayer | O38: 90' | P38: =+'Field Operations'!F11 -> 9.179604108 | Q38: =+'Field Operations'!G11 -> 0.2942877349 | R38: =+'Field Operations'!H11 -> 0.3847708333 | S38: =+'Field Operations'!I11 -> 0.318287037 | T38: 10.17694971 | U38: _________
B39: Total Fixed Expenses | H39: =+SUM(H29:H38) -> 484.0406683 | J39: _________ | L39: Harvest | M39: Combine | N39: Grain Head | O39: 30' | P39: =+'Field Operations'!F13 -> 29.77963402 | Q39: =+'Field Operations'!G13 -> 28.88903352 | R39: =+'Field Operations'!H13 -> 6.678522321 | S39: =+'Field Operations'!I13 -> 2.455357143 | T39: 67.802547 | U39: _________
G40: Total Expenses | H40: =SUM(H26+H39) -> 843.0293754 | J40: _________
B41: Return Above Specified Expenses | H41: =H7-H40 -> -147.5293754 | J41: _________ | L41: Haul | M41: Tractor, 215 hp | N41: Grain Cart | O41: =+'Field Operations'!E14 -> 800 bu | P41: =+'Field Operations'!F14 -> 7.009259565 | Q41: =+'Field Operations'!G14 -> 0.8751400134 | R41: =+'Field Operations'!H14 -> 1.558321875 | S41: =+'Field Operations'!I14 -> 1.03125 | T41: 10.47397145 | U41: _________
G42: Cash Cost per Bushel | H42: =(SUM(H9:H25)+H34+H35)/F4 -> 8.861364723 | J42: _________ | L42: Haul | M42: ='Field Operations'!C15 -> Semi Tractor/Trailer | P42: =+'Field Operations'!F15*1.41304347826087 -> 8.351086957 | Q42: =+'Field Operations'!G15*1.41304347826087 -> 0.452173913 | R42: =+'Field Operations'!H15*1.41304347826087 -> 0.3532608696 | S42: =+'Field Operations'!I15*1.41304347826087 -> 0.777173913 | T42: =SUM(P42:S42) -> 9.933695652 | U42: _________
G43: Economic Cost per Bushel | H43: =H40/F4 -> 12.9696827 | J43: _________ | L43: Other | P43: 0 | Q43: 0 | R43: 0 | S43: 0 | T43: =SUM(P43:S43) -> 0 | U43: _________
L44: Other | P44: 0 | Q44: 0 | R44: 0 | S44: 0 | T44: =SUM(P44:S44) -> 0 | U44: _________
B45: Breakeven Price for Selected Yield | F45: Breakeven Yield for Selected Price | L45: Total | P45: =SUM(P32:P44) -> 112.0406683 | Q45: =SUM(Q32:Q44) -> 36.28720693 | R45: =SUM(R32:R44) -> 15.45557648 | S45: =SUM(S32:S44) -> 9.125428172 | T45: =SUM(T32:T44) -> 172.9088799 | U45: _________
B46: Yield (bu) | C46: Variable Cost ($/bu) | D46: Total Specified Cost ($/bu) | F46: Price ($/bu) | G46: Variable Cost (bu) | I46: Total Specified Cost (bu)
B47: =SUM(B48-5) -> 45 | C47: =$H$26/B47 -> 7.977526823 | D47: =($H$26+$H$39)/B47 -> 18.73398612 | F47: =SUM(F48-0.5) -> 8.7 | G47: =+$H$26/F47 -> 41.26306977 | I47: =+($H$26+$H$39)/F47 -> 96.8999282
B48: 50 | C48: 7.17977414 | D48: 16.86058751 | F48: 9.2 | G48: 39.02051163 | I48: 91.63362776
B49: 55 | C49: 6.5270674 | D49: 15.32780682 | F49: 9.7 | G49: 37.00914505 | I49: 86.91024488
B50: =SUM(B51-5) -> 60 | C50: 5.983145117 | D50: 14.05048959 | F50: =SUM(F51-0.5) -> 10.2 | G50: 35.19497128 | I50: 82.64993876
B51: =+F4 -> 65 | C51: 5.522903185 | D51: 12.9696827 | F51: =+G4 -> 10.7 | G51: 33.55034645 | I51: 78.78779209
B52: =SUM(B51+5) -> 70 | C52: 5.1284101 | D52: 12.04327679 | F52: =SUM(F51+0.5) -> 11.2 | G52: 32.05256313 | I52: 75.27047994
B53: =SUM(B52+5) -> 75 | C53: 4.786516094 | D53: 11.24039167 | F53: =SUM(F52+0.5) -> 11.7 | G53: 30.68279547 | I53: 72.05379277
B54: 80 | C54: 4.487358838 | D54: 10.53786719 | F54: 12.2 | G54: 29.42530385 | I54: 69.10076847
B55: 85 | C55: 4.223396553 | D55: 9.917992651 | F55: 12.7 | G55: 28.26682732 | I55: 66.38026578

Sheet SRW Wheat
B1: 2026 Winter Wheat, Non-Irrigated Budget | L1: Table 1. Fertilizer & Lime3
E2: Unit | F2: Quantity | G2: Price | H2: Total | J2: Your Farm | L2: Fertilizer | M2: Description | N2: Quantity (lbs.) | O2: Price ($) | P2: Total ($/Acre) | Q2: Your Farm ($/Acre)
B3: Revenue1 | E3: Gross Revenue ($/Acre) | L3: Nitrogen | M3: Urea - Planting | N3: 15 | O3: =Inputs!C44 -> 0.64 | P3: =N3*O3 -> 9.6 | Q3: _________
C4: Wheat | E4: Bu/acre | F4: 80 | G4: =+Inputs!C5 -> 5.5 | H4: =F4*G4 -> 440 | J4: _________ | M4: UAN 32 - Spring | N4: 90 | O4: =Inputs!C47 -> 0.74 | P4: =N4*O4 -> 66.6 | Q4: _________
C5: Government Payments | E5: $/acre | F5: 1 | G5: 0 | H5: =F5*G5 -> 0 | J5: _________ | L5: Phosphorous | M5: P2O5 | N5: 40 | O5: =Inputs!C48 -> 0.73 | P5: =+N5*O5 -> 29.2 | Q5: _________
C6: Other Revenue | E6: $/acre | F6: 1 | G6: 0 | H6: 0 | J6: _________ | L6: Potassium | M6: K20 | N6: 40 | O6: =Inputs!C50 -> 0.41 | P6: =+N6*O6 -> 16.4 | Q6: _________
B7: Total Revenue | H7: =SUM(H4:H6) -> 440 | J7: _________ | L7: Lime | N7: 1000 | O7: =Inputs!C51 -> 30 | P7: =N7/2000*O7 -> 15 | Q7: _________
B8: Variable Expenses | L8: Other | N8: 0 | O8: 0 | P8: =+N8/2000*O8 -> 0 | Q8: _________
C9: Seed2 | E9: Bu | F9: 2.5 | G9: =+Inputs!C38 -> 15.5 | H9: =+F9*G9 -> 38.75 | J9: _________ | L9: Other | N9: 0 | O9: 0 | P9: =N9*O9 -> 0 | Q9: _________
C10: Fertilizer & Lime (Table 1) | E10: Acre | F10: 1 | G10: =+P11 -> 136.8 | H10: =+F10*G10 -> 136.8 | J10: _________ | L10: Other | N10: 0 | O10: 0 | P10: =+N10*O10 -> 0 | Q10: _________
C11: Chemical (Table 2) | E11: Acre | F11: 1 | G11: =S23 -> 62.52 | H11: =F11*G11 -> 62.52 | J11: _________ | L11: Total | P11: =SUM(P3:P10) -> 136.8 | Q11: _________
C12: Crop Scout or Consultant | E12: Acre | F12: 1 | G12: =+Inputs!C18 -> 10 | H12: =F12*G12 -> 10 | J12: _________ | L12: Table 2. Chemicals4
C13: Repair & Maintenance (Table 3) | E13: Acre | F13: 1 | G13: =+Q38 -> 40.10214391 | H13: =+F13*G13 -> 40.10214391 | J13: _________ | L13: Chemical | M13: Function | N13: Description | O13: Unit | P13: Number of Apps. | Q13: Quantity | R13: Price | S13: Total ($/Acre) | T13: Your Farm ($/Acre)
C14: Fuel, Oil & Filter (Table 3) | E14: Acre | F14: 1 | G14: =+R38 -> 19.6666737 | H14: 19.6666737 | J14: _________ | L14: Herbicides- | M14: Burndown | N14: Gramoxone SL | O14: oz. | P14: 1 | Q14: 40 | R14: =Herbicides!B62 -> 0.17 | S14: =P14*Q14*R14 -> 6.8 | T14: _________
C15: Operator Labor (Table 3) | E15: Acre | F15: 1 | G15: =+S38 -> 11.8435308 | H15: 11.8435308 | J15: _________ | L15: Wheat | N15: Other | O15: qt. | P15: 0 | Q15: 0 | R15: 0 | S15: =P15*Q15*R15 -> 0 | T15: _________
C16: Crop Insurance6 | E16: Acre | F16: 1 | G16: =Inputs!C26 -> 9.66 | H16: =+F16*G16 -> 9.66 | J16: _________ | M16: Post-Emerge | N16: Harmony | O16: oz. | P16: 1 | Q16: 0.9 | R16: =Herbicides!B65 -> 12 | S16: =P16*Q16*R16 -> 10.8 | T16: _________
C17: Machinery Rental | E17: Acre | F17: 0 | G17: 0 | H17: =+F17*G17 -> 0 | J17: _________ | N17: Metribuzin | O17: oz. | P17: 1 | Q17: 4 | R17: =Herbicides!B73 -> 1.13 | S17: 4.52 | T17: _________
C18: Custom Work | E18: Acre | F18: 0 | G18: 0 | H18: =+F18*G18 -> 0 | J18: _________ | N18: Roundup PowerMax | O18: oz. | P18: 1 | Q18: 22 | R18: =Herbicides!B93 -> 0.2 | S18: 4.4 | T18: _________
C19: Drying (Fuel/Electric) | E19: Bu | F19: =+F4 -> 80 | G19: 0 | H19: =+F19*G19 -> 0 | J19: _________ | N19: Other | P19: 0 | Q19: 0 | R19: 0 | S19: 0 | T19: _________
C20: Other | E20: Acre | F20: 1 | G20: 0 | H20: =F20*G20 -> 0 | J20: _________ | L20: Insecticides | N20: Wheat-Foliar | O20: acre | P20: 1 | Q20: 1 | R20: =+Insecticides!B6 -> 8 | S20: 8 | T20: _________
C21: Other | E21: Acre | F21: 1 | G21: 0 | H21: =F21*G21 -> 0 | J21: _________ | L21: Fungicide | N21: Wheat-foliar | O21: acre | P21: 1 | Q21: 1 | R21: =+Fungicides!$B$4 -> 28 | S21: 28 | T21: _________
C22: Other | E22: Acre | F22: 1 | G22: 0 | H22: =F22*G22 -> 0 | J22: _________ | L22: Other | N22: Other | P22: 0 | Q22: 0 | R22: 0 | S22: =P22*Q22*R22 -> 0 | T22: _________
C23: Operating Interest7 | E23: % | F23: =SUM(H9:H22) -> 329.3423484 | G23: =+Inputs!C14 -> 0.075 | H23: =(F23*G23)/2 -> 12.35033807 | J23: _________ | L23: Total | S23: =SUM(S14:S22) -> 62.52 | T23: _________
B24: Total Variable Expenses | H24: =SUM(H9:H23) -> 341.6926865 | J24: _________ | L24: Table 3. Machinery5
B25: Return Above Variable Expenses | H25: =H7-H24 -> 98.30731352 | J25: _________ | M25: Power Unit | N25: Implement | O25: Size | P25: Capital Recovery | Q25: Repairs & Maintenance | R25: Fuel, Oil & Filter | S25: Labor | T25: Total | U25: Your Farm ($/Acre)
B26: Fixed Expenses | L26: Burndown | M26: SP Boom Sprayer | O26: 90' | P26: =+'Field Operations'!$F$11 -> 9.179604108 | Q26: =+'Field Operations'!$G$11 -> 0.2942877349 | R26: =+'Field Operations'!$H$11 -> 0.3847708333 | S26: =+'Field Operations'!$I$11 -> 0.318287037 | T26: =SUM(P26:S26) -> 10.17694971 | U26: _________
C27: Machinery | J27: _________ | L27: Fertilize | M27: Tractor, 215 hp | N27: Fertilize Spreader | P27: ='Field Operations'!F10 -> 5.248807987 | Q27: ='Field Operations'!G10 -> 1.66135077 | R27: ='Field Operations'!H10 -> 2.54419898 | S27: ='Field Operations'!I10 -> 1.683673469 | T27: =SUM(P27:S27) -> 11.13803121 | U27: _________
C28: Capital Recovery (Table 3) | E28: Acre | F28: 1 | G28: =+P38 -> 102.8026915 | H28: =+F28*G28 -> 102.8026915 | J28: _________ | L28: Plant | M28: Tractor, 215 hp | N28: Grain Drill | O28: 20' | P28: =+'Field Operations'!$F$9 -> 12.62776552 | Q28: =+'Field Operations'!$G$9 -> 5.408117902 | R28: =+'Field Operations'!$H$9 -> 4.452348214 | S28: =+'Field Operations'!$I$9 -> 2.946428571 | T28: =SUM(P28:S28) -> 25.43466021 | U28: _________
C29: Other Fixed Machinery Costs | E29: Acre | F29: 1 | G29: 0 | H29: 0 | J29: _________ | L29: Fertilize | M29: Tractor, 215 hp | N29: Fertilize Spreader | P29: ='Field Operations'!F10 -> 5.248807987 | Q29: ='Field Operations'!G10 -> 1.66135077 | R29: ='Field Operations'!H10 -> 2.54419898 | S29: ='Field Operations'!I10 -> 1.683673469 | T29: ='Field Operations'!J10 -> 11.13803121 | U29: _________
C30: General Overhead | E30: Acre | F30: 1 | G30: 20 | H30: =F30*G30 -> 20 | J30: _________ | L30: Weed Control | M30: SP Boom Sprayer | O30: 90' | P30: =+'Field Operations'!$F$11 -> 9.179604108 | Q30: =+'Field Operations'!$G$11 -> 0.2942877349 | R30: =+'Field Operations'!$H$11 -> 0.3847708333 | S30: =+'Field Operations'!$I$11 -> 0.318287037 | T30: =SUM(P30:S30) -> 10.17694971 | U30: _________
C31: Cash Rent8 | E31: Acre | F31: 1 | G31: =+Inputs!C23 -> 117 | H31: =F31*G31 -> 117 | J31: _________ | L31: Fungicide | M31: SP Boom Sprayer | O31: 90' | P31: =+'Field Operations'!$F$11 -> 9.179604108 | Q31: =+'Field Operations'!$G$11 -> 0.2942877349 | R31: =+'Field Operations'!$H$11 -> 0.3847708333 | S31: =+'Field Operations'!$I$11 -> 0.318287037 | T31: 10.17694971 | U31: _________
C32: Insurance (Non-Machinery) | E32: Acre | F32: 1 | G32: =+Inputs!C32 -> 0 | H32: =+F32*G32 -> 0 | J32: _________ | L32: Insect Control | M32: SP Boom Sprayer | O32: 90' | P32: =+'Field Operations'!$F$11 -> 9.179604108 | Q32: =+'Field Operations'!$G$11 -> 0.2942877349 | R32: =+'Field Operations'!$H$11 -> 0.3847708333 | S32: =+'Field Operations'!$I$11 -> 0.318287037 | T32: 10.17694971 | U32: _________
C33: Management Labor10 | E33: Acre | F33: 1 | G33: =Inputs!C33 -> 25 | H33: =+F33*G33 -> 25 | J33: _________ | L33: Harvest | M33: Combine | N33: Grain Head | O33: 30' | P33: =+'Field Operations'!$F$13 -> 29.77963402 | Q33: =+'Field Operations'!$G$13 -> 28.88903352 | R33: =+'Field Operations'!$H$13 -> 6.678522321 | S33: =+'Field Operations'!$I$13 -> 2.455357143 | T33: 67.802547 | U33: _________
C34: Other | E34: Acre | F34: 1 | G34: 0 | H34: =+F34*G34 -> 0 | J34: _________ | L34: Haul | M34: Tractor, 215 hp | N34: Grain Cart | P34: =+'Field Operations'!$F$14 -> 7.009259565 | Q34: =+'Field Operations'!$G$14 -> 0.8751400134 | R34: =+'Field Operations'!$H$14 -> 1.558321875 | S34: =+'Field Operations'!$I$14 -> 1.03125 | T34: 10.47397145 | U34: _________
B35: Total Fixed Expenses | H35: =+SUM(H28:H34) -> 264.8026915 | J35: _________ | L35: Haul | M35: ='Field Operations'!C17 -> Semi Tractor/Trailer | P35: ='Field Operations'!F17 -> 6.17 | Q35: ='Field Operations'!G17 -> 0.43 | R35: ='Field Operations'!H17 -> 0.35 | S35: ='Field Operations'!I17 -> 0.77 | T35: 7.72 | U35: _________
B36: Total Expenses | H36: =+SUM(H24+H35) -> 606.495378 | J36: _________ | L36: Other | P36: 0 | Q36: 0 | R36: 0 | S36: 0 | T36: 0 | U36: _________
B37: Return Above Specified Expenses | H37: =H7-H36 -> -166.495378 | J37: _________ | L37: Other | P37: 0 | Q37: 0 | R37: 0 | S37: 0 | T37: 0 | U37: _________
G38: Cash Cost per Bushel | H38: =(SUM(H9:H23)+H30+H31)/F4 -> 5.983658581 | J38: _________ | L38: Total | P38: =SUM(P26:P37) -> 102.8026915 | Q38: =SUM(Q26:Q37) -> 40.10214391 | R38: =SUM(R26:R37) -> 19.6666737 | S38: =SUM(S26:S37) -> 11.8435308 | T38: =SUM(T26:T37) -> 174.4150399 | U38: _________
G39: Economic Cost per Bushel | H39: =H36/F4 -> 7.581192225 | J39: _________
B41: Breakeven Price for Selected Wheat Yield | F41: Breakeven Yield for Selected Wheat Price
B42: Yield (bu) | C42: Variable Cost ($/bu) | D42: Total Specified Cost ($/bu) | F42: Price ($/bu) | G42: Variable Cost (bu) | I42: Total Specified Cost (bu)
B43: =+B44-5 -> 60 | C43: =$H$24/B43 -> 5.694878108 | D43: =($H$24+$H$35)/B43 -> 10.1082563 | F43: =+F44-0.5 -> 3.5 | G43: =+$H$24/F43 -> 97.62648185 | I43: =+($H$24+$H$35)/F43 -> 173.2843937
B44: 65 | C44: 5.256810561 | D44: 9.330698123 | F44: 4 | G44: 85.42317162 | I44: 151.6238445
B45: 70 | C45: 4.881324093 | D45: 8.664219686 | F45: 4.5 | G45: 75.93170811 | I45: 134.7767507
B46: =+B47-5 -> 75 | C46: 4.555902486 | D46: 8.08660504 | F46: =+F47-0.5 -> 5 | G46: 68.3385373 | I46: 121.2990756
B47: =+F4 -> 80 | C47: 4.271158581 | D47: 7.581192225 | F47: =+G4 -> 5.5 | G47: 62.125943 | I47: 110.2718869
B48: =+B47+5 -> 85 | C48: 4.019913959 | D48: 7.135239741 | F48: =+F47+0.5 -> 6 | G48: 56.94878108 | I48: 101.082563
B49: =+B48+5 -> 90 | C49: 3.796585405 | D49: 6.738837533 | F49: =+F48+0.5 -> 6.5 | G49: 52.56810561 | I49: 93.30698123
B50: 95 | C50: 3.596765121 | D50: 6.384161874 | F50: 7 | G50: 48.81324093 | I50: 86.64219686
B51: 100 | C51: 3.416926865 | D51: 6.06495378 | F51: 7.5 | G51: 45.55902486 | I51: 80.8660504

Sheet Wheat & Soybean DC
B1: 2026 Wheat/Soybean Double Cropped, Non-Irrigated Budget | L1: Table 1. Fertilizer & Lime3
E2: Unit | F2: Quantity | G2: Price | H2: Total | J2: Your Farm | L2: Fertilizer | M2: Description | N2: Quantity (lbs.) | O2: Price ($) | P2: Total ($/Acre) | Q2: Your Farm ($/Acre)
B3: Revenue1 | E3: Gross Revenue ($/Acre) | L3: Nitrogen | M3: Urea - Planting/Fall | N3: 15 | O3: =Inputs!C44 -> 0.64 | P3: =N3*O3 -> 9.6 | Q3: _________
C4: Soybeans | E4: Bu/acre | F4: 45 | G4: =+Inputs!C4 -> 10.7 | H4: =F4*G4 -> 481.5 | J4: _________ | M4: UAN 32 - Post-Emerge/Spring | N4: 90 | O4: =Inputs!C47 -> 0.74 | P4: =N4*O4 -> 66.6 | Q4: _________
C5: Wheat | E5: Bu/acre | F5: 80 | G5: =+Inputs!C5 -> 5.5 | H5: =F5*G5 -> 440 | J5: _________ | L5: Phosphorous | M5: P2O5 | N5: 60 | O5: =Inputs!C48 -> 0.73 | P5: =+N5*O5 -> 43.8 | Q5: _________
C6: Government Payments | E6: $/acre | F6: 1 | G6: 0 | H6: =F6*G6 -> 0 | J6: _________ | L6: Potassium | M6: K20 | N6: 60 | O6: =Inputs!C50 -> 0.41 | P6: =+N6*O6 -> 24.6 | Q6: _________
C7: Other Revenue | E7: $/acre | F7: 1 | G7: 0 | H7: 0 | J7: _________ | L7: Boron | N7: 1 | O7: =Inputs!C52 -> 0.72 | P7: =N7*O7 -> 0.72 | Q7: _________
B8: Total Revenue | H8: =SUM(H4:H7) -> 921.5 | J8: _________ | L8: Lime | N8: 1000 | O8: =+Inputs!C51 -> 30 | P8: =+N8/2000*O8 -> 15 | Q8: _________
B9: Variable Expenses | L9: Other | N9: 0 | O9: 0 | P9: =N9*O9 -> 0 | Q9: _________
C10: Seed, Soybeans2 | E10: Thous. | F10: 140 | G10: =+Inputs!C37 -> 0.45 | H10: =+F10*G10 -> 63 | J10: _________ | L10: Other | N10: 0 | O10: 0 | P10: =+N10*O10 -> 0 | Q10: _________
C11: Seed, Wheat2 | E11: Bu | F11: 2.5 | G11: =+Inputs!C38 -> 15.5 | H11: =+F11*G11 -> 38.75 | J11: _________ | L11: Total | P11: =SUM(P3:P10) -> 160.32 | Q11: _________
C12: Fertilizer & Lime (Table 1) | E12: Acre | F12: 1 | G12: =+P11 -> 160.32 | H12: =+F12*G12 -> 160.32 | J12: _________ | L12: Table 2. Chemicals4
C13: Chemical (Table 2) | E13: Acre | F13: 1 | G13: =S31 -> 130.145 | H13: =F13*G13 -> 130.145 | J13: _________ | L13: Chemical | M13: Function | N13: Description | O13: Unit | P13: Number of Apps. | Q13: Quantity | R13: Price | S13: Total ($/Acre) | T13: Your Farm ($/Acre)
C14: Crop Scout or Consultant | E14: Acre | F14: 1 | G14: =+Inputs!C18 -> 10 | H14: =F14*G14 -> 10 | J14: _________ | L14: Herbicides- | M14: Burndown | N14: Gramoxone SL | O14: oz. | P14: 1 | Q14: 40 | R14: =Herbicides!B62 -> 0.17 | S14: =P14*Q14*R14 -> 6.8 | T14: _________
C15: Repair & Maintenance (Table 3) | E15: Acre | F15: 1 | G15: =+Q57 -> 78.04959946 | H15: =+F15*G15 -> 78.04959946 | J15: _________ | L15: Wheat | N15: Other | P15: 0 | Q15: 0 | R15: 0 | S15: =P15*Q15*R15 -> 0 | T15: _________
C16: Fuel, Oil & Filter (Table 3) | E16: Acre | F16: 1 | G16: =+R57 -> 37.44390408 | H16: 37.44390408 | J16: _________ | M16: Post-Emerge | N16: Harmony | O16: oz. | P16: 1 | Q16: 0.9 | R16: =Herbicides!B65 -> 12 | S16: =P16*Q16*R16 -> 10.8 | T16: _________
C17: Operator Labor (Table 3) | E17: Acre | F17: 1 | G17: =+S57 -> 22.28286246 | H17: 22.28286246 | J17: _________ | N17: Metribuzin | O17: oz. | P17: 1 | Q17: 4 | R17: =Herbicides!B73 -> 1.13 | S17: 4.52 | T17: _________
C18: Crop Insurance6 | E18: Acre | F18: 1 | G18: =+Inputs!C25+Inputs!C26 -> 20.21 | H18: =+F18*G18 -> 20.21 | J18: _________ | N18: Roundup PowerMax | O18: oz. | P18: 1 | Q18: 22 | R18: =+Herbicides!B93 -> 0.2 | S18: 4.4 | T18: _________
C19: Machinery Rental | E19: Acre | F19: 0 | G19: 0 | H19: =+F19*G19 -> 0 | J19: _________ | L19: Herbicides- | M19: Pre-Emerge | N19: Sequence | O19: pt. | P19: 1 | Q19: 3 | R19: =Herbicides!B96 -> 6.5 | S19: 19.5 | T19: _________
C20: Custom Work | E20: Acre | F20: 0 | G20: 0 | H20: =+F20*G20 -> 0 | J20: _________ | L20: Soybeans | N20: Other | P20: 0 | Q20: 0 | R20: 0 | S20: 0 | T20: _________
C21: Drying (Fuel/Electric) | E21: Bu | F21: =+F5 -> 80 | G21: 0 | H21: =+F21*G21 -> 0 | J21: _________ | M21: Post-Emerge | N21: Roundup PowerMax | O21: oz. | P21: 1 | Q21: 32 | R21: =+Herbicides!B93 -> 0.2 | S21: 6.4 | T21: _________
C22: Other | E22: Acre | F22: 1 | G22: 0 | H22: =F22*G22 -> 0 | J22: _________ | N22: Flexstar | O22: pt. | P22: 1 | Q22: 1.25 | R22: =Herbicides!B52 -> 9.38 | S22: 11.725 | T22: _________
C23: Other | E23: Acre | F23: 1 | G23: 0 | H23: =F23*G23 -> 0 | J23: _________ | N23: Other | P23: 0 | Q23: 0 | R23: 0 | S23: 0 | T23: _________
C24: Other | E24: Acre | F24: 1 | G24: 0 | H24: =F24*G24 -> 0 | J24: _________ | N24: Other | P24: 0 | Q24: 0 | R24: 0 | S24: 0 | T24: _________
C25: Operating Interest7 | E25: % | F25: =SUM(H10:H24) -> 560.201366 | G25: =+Inputs!C14 -> 0.075 | H25: =(F25*G25)/2 -> 21.00755123 | J25: _________ | L25: Insecticides | N25: Wheat-Foliar | O25: acre | P25: 1 | Q25: 1 | R25: =+Insecticides!B6 -> 8 | S25: =P25*Q25*R25 -> 8 | T25: _________
B26: Total Variable Expenses | H26: =SUM(H10:H25) -> 581.2089172 | J26: _________ | N26: Soybeans-Foliar | O26: acre | P26: 1 | Q26: 1 | R26: =+Insecticides!$B$3 -> 12 | S26: 12 | T26: _________
B27: Return Above Variable Expenses | H27: =H8-H26 -> 340.2910828 | J27: _________ | N27: Other | P27: 0 | Q27: 0 | R27: 0 | S27: 0 | T27: _________
B28: Fixed Expenses | L28: Fungicides | N28: Soybeans-Foliar | O28: acre | P28: 1 | Q28: 1 | R28: =+Fungicides!$B$3 -> 18 | S28: 18 | T28: _________
C29: Machinery | J29: _________ | N29: Wheat-foliar | O29: acre | P29: 1 | Q29: 1 | R29: =+Fungicides!$B$4 -> 28 | S29: 28 | T29: _________
C30: Capital Recovery (Table 3) | E30: Acre | F30: 1 | G30: =+P57 -> 214.841485 | H30: =+F30*G30 -> 214.841485 | J30: _________ | N30: Other | P30: 0 | Q30: 0 | R30: 0 | S30: 0 | T30: _________
C31: Other Fixed Machinery Costs | E31: Acre | F31: 1 | G31: 0 | H31: 0 | J31: _________ | L31: Total | S31: =SUM(S14:S30) -> 130.145 | T31: _________
C32: General Overhead | E32: Acre | F32: 1 | G32: 30 | H32: =F32*G32 -> 30 | J32: _________
C33: Cash Rent8 | E33: Acre | F33: 1 | G33: =+Inputs!C23 -> 117 | H33: =F33*G33 -> 117 | J33: _________ | L33: Table 3. Machinery5
C34: Insurance (Non-Machinery) | E34: Acre | F34: 1 | G34: =+Inputs!C32 -> 0 | H34: =+F34*G34 -> 0 | J34: _________ | M34: Power Unit | N34: Implement | O34: Size | P34: Capital Recovery | Q34: Repairs & Maintenance | R34: Fuel, Oil & Filter | S34: Labor | T34: Total | U34: Your Farm ($/Acre)
C35: Management Labor10 | E35: Acre | F35: 1 | G35: =Inputs!C33 -> 25 | H35: =+F35*G35 -> 25 | J35: _________ | L35: Disk | M35: Tractor, 215 hp | N35: Tandem Disk | O35: 29' | P35: =+'Field Operations'!$F$5 -> 11.61881621 | Q35: =+'Field Operations'!$G$5 -> 2.086710265 | R35: =+'Field Operations'!$H$5 -> 2.809685598 | S35: =+'Field Operations'!$I$5 -> 1.859364435 | T35: =SUM(P35:S35) -> 18.37457651 | U35: _________
C36: Other | E36: Acre | F36: 1 | G36: 0 | H36: =+F36*G36 -> 0 | J36: _________ | L36: Burndown | M36: SP Boom Sprayer | O36: 90' | P36: =+'Field Operations'!$F$11 -> 9.179604108 | Q36: =+'Field Operations'!$G$11 -> 0.2942877349 | R36: =+'Field Operations'!$H$11 -> 0.3847708333 | S36: =+'Field Operations'!$I$11 -> 0.318287037 | T36: =SUM(P36:S36) -> 10.17694971 | U36: _________
B37: Total Fixed Expenses | H37: =+SUM(H29:H36) -> 386.841485 | J37: _________ | L37: Fertilize | M37: Tractor, 215 hp | N37: Fertilize Spreader | P37: ='Field Operations'!F10 -> 5.248807987 | Q37: ='Field Operations'!G10 -> 1.66135077 | R37: ='Field Operations'!H10 -> 2.54419898 | S37: ='Field Operations'!I10 -> 1.683673469 | T37: =SUM(P37:S37) -> 11.13803121 | U37: _________
B38: Total Expenses | H38: =+SUM(H26+H37) -> 968.0504022 | J38: _________ | L38: Plant | M38: Tractor, 215 hp | N38: Grain Drill | O38: 20' | P38: =+'Field Operations'!$F$9 -> 12.62776552 | Q38: =+'Field Operations'!$G$9 -> 5.408117902 | R38: =+'Field Operations'!$H$9 -> 4.452348214 | S38: =+'Field Operations'!$I$9 -> 2.946428571 | T38: =SUM(P38:S38) -> 25.43466021 | U38: _________
B39: Return Above Specified Expenses | H39: =H8-H38 -> -46.55040223 | J39: _________ | L39: Fertilize | M39: Tractor, 215 hp | N39: Fertilize Spreader | P39: ='Field Operations'!F10 -> 5.248807987 | Q39: ='Field Operations'!G10 -> 1.66135077 | R39: ='Field Operations'!H10 -> 2.54419898 | S39: ='Field Operations'!I10 -> 1.683673469 | T39: ='Field Operations'!J10 -> 11.13803121 | U39: _________
L40: Weed Control | M40: SP Boom Sprayer | O40: 90' | P40: =+'Field Operations'!$F$11 -> 9.179604108 | Q40: =+'Field Operations'!$G$11 -> 0.2942877349 | R40: =+'Field Operations'!$H$11 -> 0.3847708333 | S40: =+'Field Operations'!$I$11 -> 0.318287037 | T40: =SUM(P40:S40) -> 10.17694971 | U40: _________
B41: Breakeven Price for Selected Soybean Yield | F41: Breakeven Yield for Selected Soybean Price | L41: Fungicide | M41: SP Boom Sprayer | O41: 90' | P41: =+'Field Operations'!$F$11 -> 9.179604108 | Q41: =+'Field Operations'!$G$11 -> 0.2942877349 | R41: =+'Field Operations'!$H$11 -> 0.3847708333 | S41: =+'Field Operations'!$I$11 -> 0.318287037 | T41: =SUM(P41:S41) -> 10.17694971 | U41: _________
B42: Yield (bu) | C42: Variable Cost ($/bu) | D42: Total Specified Cost ($/bu) | F42: Price ($/bu) | G42: Variable Cost (bu) | I42: Total Specified Cost (bu) | L42: Insect Control | M42: SP Boom Sprayer | O42: 90' | P42: =+'Field Operations'!$F$11 -> 9.179604108 | Q42: =+'Field Operations'!$G$11 -> 0.2942877349 | R42: =+'Field Operations'!$H$11 -> 0.3847708333 | S42: =+'Field Operations'!$I$11 -> 0.318287037 | T42: 10.17694971 | U42: _________
B43: =+B44-5 -> 25 | C43: =$H$26/2/B43 -> 11.62417834 | D43: =($H$26+$H$37)/2/B43 -> 19.36100804 | F43: =+F44-0.5 -> 8.7 | G43: =+$H$26/2/F43 -> 33.40281133 | I43: =+($H$26+$H$37)/2/F43 -> 55.63508059 | L43: Harvest | M43: Combine | N43: Grain Head | O43: 30' | P43: =+'Field Operations'!$F$13 -> 29.77963402 | Q43: =+'Field Operations'!$G$13 -> 28.88903352 | R43: =+'Field Operations'!$H$13 -> 6.678522321 | S43: =+'Field Operations'!$I$13 -> 2.455357143 | T43: 67.802547 | U43: _________
B44: 30 | C44: 9.686815287 | D44: 16.13417337 | F44: 9.2 | G44: 31.58744115 | I44: 52.6114349 | L44: Haul | M44: Tractor, 215 hp | N44: Grain Cart | P44: =+'Field Operations'!$F$14 -> 7.009259565 | Q44: =+'Field Operations'!$G$14 -> 0.8751400134 | R44: =+'Field Operations'!$H$14 -> 1.558321875 | S44: =+'Field Operations'!$I$14 -> 1.03125 | T44: 10.47397145 | U44: _________
B45: 35 | C45: 8.302984532 | D45: 13.82929146 | F45: 9.7 | G45: 29.95922254 | I45: 49.89950527 | L45: Haul | M45: ='Field Operations'!C17 -> Semi Tractor/Trailer | P45: ='Field Operations'!F17 -> 6.17 | Q45: ='Field Operations'!G17 -> 0.43 | R45: ='Field Operations'!H17 -> 0.35 | S45: ='Field Operations'!I17 -> 0.77 | T45: 7.72 | U45: _________
B46: =+B47-5 -> 40 | C46: 7.265111465 | D46: 12.10063003 | F46: =+F47-0.5 -> 10.2 | G46: 28.4906332 | I46: 47.45345109 | L46: Plant | M46: Tractor, 215 hp | N46: Planter | O46: 16-row | P46: =+'Field Operations'!$F$8 -> 15.75385927 | Q46: =+'Field Operations'!$G$8 -> 2.938070049 | R46: =+'Field Operations'!$H$8 -> 2.397418269 | S46: =+'Field Operations'!$I$8 -> 1.586538462 | T46: 22.67588605 | U46: _________
B47: =+F4 -> 45 | C47: 6.457876858 | D47: 10.75611558 | F47: =+G4 -> 10.7 | G47: 27.1592952 | I47: 45.2360001 | L47: Fertilize | M47: Tractor, 215 hp | N47: Fertilize Spreader | P47: ='Field Operations'!F10 -> 5.248807987 | Q47: ='Field Operations'!G10 -> 1.66135077 | R47: ='Field Operations'!H10 -> 2.54419898 | S47: ='Field Operations'!I10 -> 1.683673469 | T47: 11.13803121 | U47: _________
B48: =+B47+5 -> 50 | C48: 5.812089172 | D48: 9.680504022 | F48: =+F47+0.5 -> 11.2 | G48: 25.94682666 | I48: 43.21653581 | L48: Weed Control | M48: SP Boom Sprayer | O48: 90' | P48: =+'Field Operations'!$F$11 -> 9.179604108 | Q48: =+'Field Operations'!$G$11 -> 0.2942877349 | R48: =+'Field Operations'!$H$11 -> 0.3847708333 | S48: =+'Field Operations'!$I$11 -> 0.318287037 | T48: =SUM(P48:S48) -> 10.17694971 | U48: _________
B49: =+B48+5 -> 55 | C49: 5.283717429 | D49: 8.800458202 | F49: =+F48+0.5 -> 11.7 | G49: 24.83798792 | I49: 41.36967531 | L49: Weed Control | M49: SP Boom Sprayer | O49: 90' | P49: =+'Field Operations'!$F$11 -> 9.179604108 | Q49: =+'Field Operations'!$G$11 -> 0.2942877349 | R49: =+'Field Operations'!$H$11 -> 0.3847708333 | S49: =+'Field Operations'!$I$11 -> 0.318287037 | T49: 10.17694971 | U49: _________
B50: 60 | C50: 4.843407644 | D50: 8.067086685 | F50: 12.2 | G50: 23.82003759 | I50: 39.67419681 | L50: Weed Control | M50: SP Boom Sprayer | O50: 90' | P50: =+'Field Operations'!$F$11 -> 9.179604108 | Q50: =+'Field Operations'!$G$11 -> 0.2942877349 | R50: =+'Field Operations'!$H$11 -> 0.3847708333 | S50: =+'Field Operations'!$I$11 -> 0.318287037 | T50: 10.17694971 | U50: _________
B51: 65 | C51: 4.470837825 | D51: 7.446541556 | F51: 12.7 | G51: 22.88224084 | I51: 38.11222056 | L51: Fungicide | M51: SP Boom Sprayer | O51: 90' | P51: =+'Field Operations'!$F$11 -> 9.179604108 | Q51: =+'Field Operations'!$G$11 -> 0.2942877349 | R51: =+'Field Operations'!$H$11 -> 0.3847708333 | S51: =+'Field Operations'!$I$11 -> 0.318287037 | T51: =SUM(P51:S51) -> 10.17694971 | U51: _________
L52: Harvest | M52: Combine | N52: Grain Head | O52: 30' | P52: =+'Field Operations'!$F$13 -> 29.77963402 | Q52: =+'Field Operations'!$G$13 -> 28.88903352 | R52: =+'Field Operations'!$H$13 -> 6.678522321 | S52: =+'Field Operations'!$I$13 -> 2.455357143 | T52: 67.802547 | U52: _________
B53: Breakeven Price for Selected Wheat Yield | F53: Breakeven Yield for Selected Wheat Price | L53: Haul | M53: Tractor, 215 hp | N53: Grain Cart | O53: =+'Field Operations'!$E$14 -> 800 bu | P53: =+'Field Operations'!$F$14 -> 7.009259565 | Q53: =+'Field Operations'!$G$14 -> 0.8751400134 | R53: =+'Field Operations'!$H$14 -> 1.558321875 | S53: =+'Field Operations'!$I$14 -> 1.03125 | T53: 10.47397145 | U53: _________
B54: Yield (bu) | C54: Variable Cost ($/bu) | D54: Total Specified Cost ($/bu) | F54: Price ($/bu) | G54: Variable Cost (bu) | I54: Total Specified Cost (bu) | L54: Haul | M54: ='Field Operations'!C15 -> Semi Tractor/Trailer | P54: ='Field Operations'!F15 -> 5.91 | Q54: ='Field Operations'!G15 -> 0.32 | R54: ='Field Operations'!H15 -> 0.25 | S54: ='Field Operations'!I15 -> 0.55 | T54: 7.03 | U54: _________
B55: =+B56-5 -> 60 | C55: =$H$26/2/B55 -> 4.843407644 | D55: =($H$26+$H$37)/2/B55 -> 8.067086685 | F55: =+F56-0.5 -> 3.5 | G55: =+$H$26/2/F55 -> 83.02984532 | I55: =+($H$26+$H$37)/2/F55 -> 138.2929146 | L55: Other | P55: 0 | Q55: 0 | R55: 0 | S55: 0 | T55: 0 | U55: _________
B56: 65 | C56: 4.470837825 | D56: 7.446541556 | F56: 4 | G56: 72.65111465 | I56: 121.0063003 | L56: Other | P56: 0 | Q56: 0 | R56: 0 | S56: 0 | T56: 0 | U56: _________
B57: 70 | C57: 4.151492266 | D57: 6.91464573 | F57: 4.5 | G57: 64.57876858 | I57: 107.5611558 | L57: Total | P57: =SUM(P35:P56) -> 214.841485 | Q57: =SUM(Q35:Q56) -> 78.04959946 | R57: =SUM(R35:R56) -> 37.44390408 | S57: =SUM(S35:S56) -> 22.28286246 | T57: =SUM(T35:T56) -> 352.617851 | U57: _________
B58: =+B59-5 -> 75 | C58: 3.874726115 | D58: 6.453669348 | F58: =+F59-0.5 -> 5 | G58: 58.12089172 | I58: 96.80504022
B59: =+F5 -> 80 | C59: 3.632555733 | D59: 6.050315014 | F59: =G5 -> 5.5 | G59: 52.83717429 | I59: 88.00458202
B60: =+B59+5 -> 85 | C60: 3.418875984 | D60: 5.694414131 | F60: =+F59+0.5 -> 6 | G60: 48.43407644 | I60: 80.67086685
B61: =+B60+5 -> 90 | C61: 3.228938429 | D61: 5.37805779 | F61: =+F60+0.5 -> 6.5 | G61: 44.70837825 | I61: 74.46541556
B62: 95 | C62: 3.058994301 | D62: 5.095002117 | F62: 7 | G62: 41.51492266 | I62: 69.1464573
B63: 100 | C63: 2.906044586 | D63: 4.840252011 | F63: 7.5 | G63: 38.74726115 | I63: 64.53669348

Sheet Wheat (hidden)
B1: 2019 Wheat, Conventional Tillage, Non-Irrigated Budget | L1: Table 1. Fertilizer & Lime
E2: Unit | F2: Quantity | G2: Price | H2: Total | J2: Your Farm | L2: Fertilizer | M2: Description | N2: Quantity (lbs) | O2: Price ($) | P2: Total ($/Acre) | Q2: Your Farm ($/Acre)
B3: Revenue | E3: Gross Revenue ($/Acre) | L3: Nitrogen | M3: Urea - Planting/Fall | N3: 30 | O3: =Inputs!C44 -> 0.64 | P3: =+N3*O3 -> 19.2 | Q3: _________
C4: Wheat1 | E4: Bu | F4: 70 | G4: =+Inputs!C5 -> 5.5 | H4: =F4*G4 -> 385 | J4: _________ | M4: UAN 32 - Post-Emerge/Spring | N4: 70 | O4: =Inputs!C47 -> 0.74 | P4: =O4*N4 -> 51.8 | Q4: _________
B5: Total Revenue | H5: =SUM(H4:H4) -> 385 | J5: _________ | L5: Phosphorous | M5: P2O5 | N5: 40 | O5: =Inputs!C48 -> 0.73 | P5: =+N5*O5 -> 29.2 | Q5: _________
B6: Variable Expenses | L6: Potassium | M6: K20 | N6: 20 | O6: =+Inputs!C50 -> 0.41 | P6: =+N6*O6 -> 8.2 | Q6: _________
C7: Seed | E7: Bu | F7: 2.5 | G7: =+Inputs!C38 -> 15.5 | H7: =+F7*G7 -> 38.75 | J7: _________ | L7: Lime | M7: Limestone | N7: 1000 | O7: =+Inputs!C51 -> 30 | P7: =+N7/2000*O7 -> 15 | Q7: _________
C8: Fertilizer & Lime (Table 1) | E8: Acre | F8: 1 | G8: =P9 -> 135.9 | H8: =+F8*G8 -> 135.9 | J8: _________ | L8: Sulfur | M8: Sulfur | N8: 10 | O8: =Inputs!C54 -> 1.25 | P8: =N8*O8 -> 12.5 | Q8: _________
C9: Chemical (Table 2) 2,3 | E9: Acre | F9: 1 | G9: =S22 ->  | H9: =F9*G9 ->  | J9: _________ | L9: Total | P9: =SUM(P3:P8) -> 135.9 | Q9: _________
C10: Crop Scout | E10: Acre | F10: 1 | G10: =+Inputs!C18 -> 10 | H10: =F10*G10 -> 10 | J10: _________ | L10: Table 2. Chemicals2,3
C11: Repair & Maintenance (Table 3) 4 | E11: Acre | F11: 1 | G11: =+Q36 -> 40.82179114 | H11: =+F11*G11 -> 40.82179114 | J11: _________ | L11: Chemical | M11: Function | N11: Description | O11: Unit | P11: Number of Apps. | Q11: Quantity | R11: Price | S11: Total ($/Acre) | T11: Your Farm ($/Acre)
C12: Fuel, Oil & Filter (Table 3) 4 | E12: Acre | F12: 1 | G12: =+R36 -> 20.31693116 | H12: 20.31693116 | J12: _________ | L12: Herbicides | M12: Burndown | N12: Gramoxone | O12: oz. | P12: 1 | Q12: 40 | R12: =Herbicides!B62 -> 0.17 | S12: =P12*Q12*R12 -> 6.8 | T12: _________
C13: Operator Labor (Table 3) 4 | E13: Acre | F13: 1 | G13: =+S36 -> 12.3375088 | H13: 12.3375088 | J13: _________ | N13: Roundup | O13: qt. | P13: 1 | Q13: 1 | R13: =Herbicides!B93 -> 0.2 | S13: =P13*Q13*R13 -> 0.2 | T13: _________
C14: Machinery Rental | E14: Acre | F14: 0 | G14: 0 | H14: 0 | J14: _________ | M14: Post-Emerge | N14: Harmony | O14: oz. | P14: 1 | Q14: 0.75 | R14: =Herbicides!B65 -> 12 | S14: 9 | T14: _________
C15: Custom Work | E15: Acre | F15: 0 | G15: 0 | H15: 0 | J15: _________ | N15: Metribuzin | O15: oz. | P15: 1 | Q15: 3 | R15: =Herbicides!B73 -> 1.13 | S15: =P15*Q15*R15 -> 3.39 | T15: _________
C16: Drying (Fuel/Electric) | E16: Bu | F16: =+F4 -> 70 | G16: =+Inputs!C20 -> 0.45 | H16: 31.5 | J16: _________ | N16: Surfactant | O16: pt. | P16: 1 | Q16: 0.1 | R16: =Herbicides!B103 -> 0.25 | S16: 0.025 | T16: _________
C17: Cash Rent 5 | E17: Acre | F17: 1 | G17: =+Inputs!C23 -> 117 | H17: =F17*G17 -> 117 | J17: _________ | N17: Other | S17: 0 | T17: _________
C18: Crop Insurance 6 | E18: Acre | F18: 1 | G18: =+Inputs!C26 -> 9.66 | H18: =F18*G18 -> 9.66 | J18: _________ | L18: Seed Treatment | N18: Seed Treatment | O18: acre | P18: 1 | Q18: 1 | R18: =Insecticides!#REF! ->  | T18: _________
C19: Operating Interest 7 | E19: % | F19: =SUM(H7:H18,H20) ->  | G19: =+Inputs!C14 -> 0.075 | H19: =(F19*G19)/2 ->  | J19: _________ | L19: Insecticides | N19: Foliar | O19: acre | P19: 1 | Q19: 1 | R19: =Insecticides!B6 -> 8 | S19: =P19*Q19*R19 -> 8 | T19: _________
C20: Other Variable Costs | E20: Acre | F20: 1 | G20: 0 | H20: =F20*G20 -> 0 | J20: _________ | L20: Fungicides | N20: Foliar | O20: acre | P20: 1 | Q20: 1 | R20: =+Fungicides!$B$4 -> 28 | S20: =P20*Q20*R20 -> 28 | T20: _________
B21: Total Variable Expenses | H21: =SUM(H7:H20) ->  | J21: _________ | N21: Other | S21: =P21*Q21*R21 -> 0 | T21: _________
B22: Return Above Variable Expenses | H22: =H5-H21 ->  | J22: _________ | L22: Total | S22: =SUM(S12:S21) ->  | T22: _________
B23: Fixed Expenses | L23: Table 3. Machinery 4
C24: Machinery 4 | M24: Power Unit | N24: Implement | O24: Size | P24: Capital Recovery | Q24: Repairs & Maintenance | R24: Fuel, Oil & Filter | S24: Labor | T24: Total | U24: Your Farm ($/Acre)
C25: Capital Recovery (Table 3) | E25: Acre | F25: 1 | G25: =+P36 -> 118.3523038 | H25: =+F25*G25 -> 118.3523038 | J25: _________ | L25: Disk | M25: Tractor, 215 hp | N25: Tandem Disk | O25: 29' | P25: =+'Field Operations'!F5 -> 11.61881621 | Q25: =+'Field Operations'!G5 -> 2.086710265 | R25: =+'Field Operations'!H5 -> 2.809685598 | S25: =+'Field Operations'!I5 -> 1.859364435 | T25: =SUM(P25:S25) -> 18.37457651 | U25: _________
C26: Other Fixed Machinery Costs | E26: Acre | F26: 1 | G26: 0 | H26: =+F26*G26 -> 0 | J26: _________ | L26: Burndown | M26: SP Boom Sprayer | O26: 90' | P26: =+'Field Operations'!F11 -> 9.179604108 | Q26: =+'Field Operations'!G11 -> 0.2942877349 | R26: =+'Field Operations'!H11 -> 0.3847708333 | S26: =+'Field Operations'!I11 -> 0.318287037 | T26: =SUM(P26:S26) -> 10.17694971 | U26: _________
C27: Property Taxes | E27: Acre | F27: 1 | G27: =+Inputs!C31 -> 0 | H27: =+F27*G27 -> 0 | J27: _________ | L27: Fertilize | M27: Tractor, 215 hp | N27: Fertilize Spreader | O27: 900# | P27: =+'Field Operations'!F10 -> 5.248807987 | Q27: =+'Field Operations'!G10 -> 1.66135077 | R27: =+'Field Operations'!H10 -> 2.54419898 | S27: =+'Field Operations'!I10 -> 1.683673469 | T27: =SUM(P27:S27) -> 11.13803121 | U27: _________
C28: Insurance (Non-Machinery) | E28: Acre | F28: 1 | G28: =+Inputs!C32 -> 0 | H28: =+F28*G28 -> 0 | J28: _________ | L28: Plant | M28: Tractor, 215 hp | N28: Grain Drill | O28: 20 ft | P28: =+'Field Operations'!F9 -> 12.62776552 | Q28: =+'Field Operations'!G9 -> 5.408117902 | R28: =+'Field Operations'!H9 -> 4.452348214 | S28: =+'Field Operations'!I9 -> 2.946428571 | T28: =SUM(P28:S28) -> 25.43466021 | U28: _________
C29: Management Labor | E29: Acre | F29: 1 | G29: =Inputs!C33 -> 25 | H29: =+F29*G29 -> 25 | J29: _________ | L29: Weed Control | M29: SP Boom Sprayer | O29: 90' | P29: =+'Field Operations'!F11 -> 9.179604108 | Q29: =+'Field Operations'!G11 -> 0.2942877349 | R29: =+'Field Operations'!H11 -> 0.3847708333 | S29: =+'Field Operations'!I11 -> 0.318287037 | T29: =SUM(P29:S29) -> 10.17694971 | U29: _________
C30: Other Fixed Costs | E30: Acre | F30: 1 | G30: 0 | H30: =+F30*G30 -> 0 | J30: _________ | L30: Fertilize | M30: SP Boom Sprayer | O30: 90' | P30: =+'Field Operations'!F11 -> 9.179604108 | Q30: =+'Field Operations'!G11 -> 0.2942877349 | R30: =+'Field Operations'!H11 -> 0.3847708333 | S30: =+'Field Operations'!I11 -> 0.318287037 | T30: =SUM(P30:S30) -> 10.17694971 | U30: _________
B31: Total Fixed Expenses | H31: =+SUM(H24:H29) -> 143.3523038 | J31: _________ | L31: Fungicide | M31: SP Boom Sprayer | O31: 90' | P31: =+'Field Operations'!F11 -> 9.179604108 | Q31: =+'Field Operations'!G11 -> 0.2942877349 | R31: =+'Field Operations'!H11 -> 0.3847708333 | S31: =+'Field Operations'!I11 -> 0.318287037 | T31: =SUM(P31:S31) -> 10.17694971 | U31: _________
B32: Return Above All Specified Expenses | H32: =H5-H21-H31 ->  | J32: _________ | L32: Insecticide | M32: SP Boom Sprayer | O32: 90' | P32: =+'Field Operations'!F11 -> 9.179604108 | Q32: =+'Field Operations'!G11 -> 0.2942877349 | R32: =+'Field Operations'!H11 -> 0.3847708333 | S32: =+'Field Operations'!I11 -> 0.318287037 | T32: =SUM(P32:S32) -> 10.17694971 | U32: _________
L33: Harvest | M33: Combine | N33: Grain Head | O33: 30 ft | P33: =+'Field Operations'!$F$13 -> 29.77963402 | Q33: =+'Field Operations'!$G$13 -> 28.88903352 | R33: =+'Field Operations'!$H$13 -> 6.678522321 | S33: =+'Field Operations'!$I$13 -> 2.455357143 | T33: =SUM(P33:S33) -> 67.802547 | U33: _________
B34: Breakeven Price for Selected Yield | F34: Breakeven Yield for Selected Price | L34: Haul | M34: Tractor, 215 hp | N34: Grain Cart | P34: =+'Field Operations'!$F$14 -> 7.009259565 | Q34: =+'Field Operations'!$G$14 -> 0.8751400134 | R34: =+'Field Operations'!$H$14 -> 1.558321875 | S34: =+'Field Operations'!$I$14 -> 1.03125 | T34: =SUM(P34:S34) -> 10.47397145 | U34: _________
B35: Yield (bu) | C35: Variable Cost ($/bu) | D35: Total Specified Cost ($/bu) | F35: Price ($/bu) | G35: Variable Cost (bu) | I35: Total Specified Cost (bu) | L35: Haul | M35: Semi Tractor/Trailer | O35: ='Field Operations'!E14 -> 800 bu | P35: ='Field Operations'!$F$17 -> 6.17 | Q35: ='Field Operations'!$G$17 -> 0.43 | R35: ='Field Operations'!$H$17 -> 0.35 | S35: ='Field Operations'!$I$17 -> 0.77 | T35: ='Field Operations'!J17 -> 7.72 | U35: _________
B36: =SUM(B37-5) -> 50 | C36: =$H$21/B36 ->  | D36: =($H$21+$H$31)/B36 ->  | F36: =SUM(F37-0.25) -> 4.5 | G36: =+$H$21/F36 ->  | I36: =+($H$21+$H$31)/F36 ->  | L36: Total | P36: =SUM(P25:P35) -> 118.3523038 | Q36: =SUM(Q25:Q35) -> 40.82179114 | R36: 20.31693116 | S36: =SUM(S25:S35) -> 12.3375088 | T36: 191.8285349 | U36: _________
B37: 55 | F37: 4.75 | G37: =+$H$21/F37 -> 
B38: 60 | F38: 5
B39: =SUM(B40-5) -> 65 | F39: =SUM(F40-0.25) -> 5.25
B40: =+F4 -> 70 | F40: =+G4 -> 5.5
B41: =SUM(B40+5) -> 75 | F41: =SUM(F40+0.25) -> 5.75
B42: =SUM(B41+5) -> 80 | F42: =SUM(F41+0.25) -> 6
B43: 85 | F43: 6.25
B44: 90 | F44: 6.5
B46: FOOTNOTES
B47: 1) Wheat price was estimated using weighted average futures prices from July 2018 to May 2019 on December 29, 2018, adjusted by average monthly basis in Tennessee. Wheat yield is the predicted 2018 linear trend line yield for wheat in Tennessee using state average yields from 1980-2018. If a market for straw is available, add an appropriate amount to return to land, management, and risk, based on the expected yield and price of the straw, less harvest and marketing costs.
B48: 2) Seed treatment is to protect against Barley Yellow Dwarf virus.
B49: 3) Cost may vary depending on fungicide used and application rate per acre. Check with farm suppliers for rebates, discounts, and incentives for seed and chemicals. Substantial cost savings may be available.
B50: 4) Machinery expenses will vary dramatically by operation, financial resources, and land base. The machinery cost estimates provided in Table 3 are provided as an estimate of cost of ownership and operation for specified pieces of machinery that would be available to a "representative" row-crop farm in Tennessee. To estimate machinery costs for a specific set of equipment, interested parties can utilize the Excel version of the budgets and modify the Machinery Assumptions Table.
B51: 5) Cash rental rates are the 2018 USDA-NASS reported cash rental rates for cropland in Tennessee. Substantial differences may exist in cash rental rates reported by NASS and the prevailing rate in your location.
B52: 6) Crop insurance is an estimate and will vary by policy, county, and coverage election. The estimate provided is the average premium paid per insured acre of wheat in Tennessee for the previous production year as reported by USDA RMA's Summary of Business Report.
B53: 7) Operating interest is assumed to be charged on half of all variable expenses.

Sheet Cotton NT
B1: 2026 Cotton, No-Till, Non-Irrigated Budget | L1: Table 1. Fertilizer & Lime3
E2: Unit | F2: Quantity | G2: Price | H2: Total | J2: Your Farm | L2: Fertilizer | M2: Description | N2: Quantity (lbs.) | O2: Price ($) | P2: Total ($/Acre) | Q2: Your Farm ($/Acre)
B3: Revenue1 | E3: Gross Revenue ($/Acre) | L3: Nitrogen | M3: Urea | N3: 35 | O3: =+Inputs!C44 -> 0.64 | P3: =+N3*O3 -> 22.4 | Q3: _________
C4: Cotton | E4: lb. | F4: 1150 | G4: =+Inputs!C7 -> 0.69 | H4: =F4*G4 -> 793.5 | J4: _________ | M4: UAN 32% | N4: 35 | O4: =Inputs!C47 -> 0.74 | P4: =+N4*O4 -> 25.9 | Q4: _________
C5: Government Payments | E5: $/acre | F5: 1 | G5: 0 | H5: =F5*G5 -> 0 | J5: _________ | L5: Phosphorous | M5: P2O5 | N5: 60 | O5: =+Inputs!C48 -> 0.73 | P5: =+N5*O5 -> 43.8 | Q5: _________
C6: Cotton Seed or Gin Rebate | E6: $/acre | F6: 1 | G6: 0 | H6: 0 | J6: _________ | L6: Potassium | M6: K20 | N6: 90 | O6: =+Inputs!C50 -> 0.41 | P6: =+N6*O6 -> 36.9 | Q6: _________
B7: Total Revenue | H7: =SUM(H4:H6) -> 793.5 | J7: _________ | L7: Sulfur | N7: 10 | O7: =Inputs!C53 -> 0.45 | P7: =+N7*O7 -> 4.5 | Q7: _________
B8: Variable Expenses | L8: Boron | N8: 0.5 | O8: =Inputs!$C$52 -> 0.72 | P8: =N8*O8 -> 0.36 | Q8: _________
C9: Seed2 | E9: Thous. | F9: 50 | G9: =+Inputs!C40 -> 3.05 | H9: =+F9*G9 -> 152.5 | J9: _________ | L9: Lime | N9: 1000 | O9: =+Inputs!$C$51 -> 30 | P9: =+N9/2000*O9 -> 15 | Q9: _________
C10: Wrap | E10: lb. | F10: =F4 -> 1150 | G10: =+Inputs!C21 -> 0.017 | H10: =+F10*G10 -> 19.55 | J10: _________ | L10: Other | N10: 0 | O10: 0 | P10: =N10*O10 -> 0 | Q10: _________
C11: Fertilizer & Lime (Table 1) | E11: Acre | F11: 1 | G11: =+P12 -> 148.86 | H11: 148.86 | J11: _________ | L11: Other | N11: 0 | O11: 0 | P11: =+N11*O11 -> 0 | Q11: _________
C12: Chemical (Table 2) | E12: Acre | F12: 1 | G12: =S32 -> 142.56 | H12: 142.56 | J12: _________ | L12: Total | P12: =SUM(P3:P11) -> 148.86 | Q12: _________
C13: Crop Scout or Consultant | E13: Acre | F13: 1 | G13: =+Inputs!C19 -> 12 | H13: 12 | J13: _________
C14: Repair & Maintenance (Table 3) | E14: Acre | F14: 1 | G14: =$Q$52 -> 33.04950698 | H14: 33.04950698 | J14: _________ | L14: Table 2. Chemicals4
C15: Fuel, Oil & Filter (Table 3) | E15: Acre | F15: 1 | G15: =$R$52 -> 29.07303297 | H15: 29.07303297 | J15: _________ | L15: Chemical | M15: Function | N15: Description | O15: Unit | P15: Number of Apps. | Q15: Quantity | R15: Price | S15: Total ($/Acre) | T15: Your Farm ($/Acre)
C16: Operator Labor (Table 3) | E16: Acre | F16: 1 | G16: =$S$52 -> 15.43808188 | H16: 15.43808188 | J16: _________ | L16: Herbicides | M16: Burndown | N16: Roundup PowerMax | O16: oz. | P16: 1 | Q16: 32 | R16: =Herbicides!B93 -> 0.2 | S16: =P16*Q16*R16 -> 6.4 | T16: _________
C17: Crop Insurance6 | E17: Acre | F17: 1 | G17: =+Inputs!C28 -> 10.45 | H17: =+F17*G17 -> 10.45 | J17: _________ | N17: Clarity | O17: oz. | P17: 1 | Q17: 8 | R17: =Herbicides!B28 -> 0.73 | S17: =P17*Q17*R17 -> 5.84 | T17: _________
C18: Machinery Rental | E18: Acre | F18: 1 | G18: 0 | H18: 0 | J18: _________ | M18: At-Planting | N18: Cotoran 4L | O18: pt. | P18: 1 | Q18: 1 | R18: =+Herbicides!B34 -> 6.5 | S18: =P18*Q18*R18 -> 6.5 | T18: _________
C19: Custom Work | E19: Acre | F19: 1 | G19: 0 | H19: 0 | J19: _________ | N19: Caparol 4L | O19: pt. | P19: 1 | Q19: 1 | R19: =+Herbicides!B25 -> 3.75 | S19: 3.75 | T19: _________
C20: Other Transportation Costs | E20: Acre | F20: 1 | G20: 0 | H20: 0 | J20: _________ | M20: Post-Emerge | N20: Sequence | O20: pt. | P20: 1 | Q20: 2.5 | R20: =+Herbicides!B96 -> 6.5 | S20: 16.25 | T20: _________
C21: Other | E21: Acre | F21: 0 | G21: 0 | H21: =F21*G21 -> 0 | J21: _________ | N21: Roundup PowerMax | O21: oz. | P21: 1 | Q21: 32 | R21: =+Herbicides!B93 -> 0.2 | S21: 6.4 | T21: _________
C22: Other | E22: Acre | F22: 0 | G22: 0 | H22: =F22*G22 -> 0 | J22: _________ | N22: Caparol 4L | O22: pt. | P22: 1 | Q22: 2 | R22: =Herbicides!B25 -> 3.75 | S22: 7.5 | T22: _________
C23: Operating Interest7 | E23: % | F23: =SUM(H9:H22) -> 563.4806218 | G23: =+Inputs!C14 -> 0.075 | H23: =(F23*G23)/2 -> 21.13052332 | J23: _________ | N23: Valor | O23: oz. | P23: 1 | Q23: 2 | R23: =+Herbicides!B109 -> 2.81 | S23: 5.62 | T23: _________
B24: Total Variable Expenses | H24: =SUM(H9:H23) -> 584.6111451 | J24: _________ | N24: Other | P24: 0 | Q24: 0 | R24: 0 | S24: =P24*Q24*R24 -> 0 | T24: _________
B25: Return Above Variable Expenses | H25: =H7-H24 -> 208.8888549 | J25: _________ | L25: Growth Regulator | N25: Mepex (Mepiquat Chloride) | O25: acre | P25: 1 | Q25: 1 | R25: =+Herbicides!$B$71 -> 2.3 | S25: =P25*Q25*R25 -> 2.3 | T25: _________
B26: Fixed Expenses | L26: Defoliant | N26: Defoliant | O26: acre | P26: 1 | Q26: 1 | R26: =+Herbicides!$B$36 -> 18 | S26: =P26*Q26*R26 -> 18 | T26: _________
C27: Machinery | L27: Boll Opener | N27: Ethephon | O27: acre | P27: 1 | Q27: 1 | R27: =+Herbicides!$B$21 -> 9 | S27: =P27*Q27*R27 -> 9 | T27: _________
C28: Capital Recovery (Table 3) | E28: Acre | F28: 1 | G28: =+P52 -> 168.7173837 | H28: =+F28*G28 -> 168.7173837 | J28: _________ | L28: Insecticides | N28: Foliar | O28: acre | P28: 1 | Q28: 1 | R28: =+Insecticides!$B$4 -> 55 | S28: =P28*Q28*R28 -> 55 | T28: _________
C29: Other Fixed Machinery Costs | E29: Acre | F29: 1 | G29: 0 | H29: =+F29*G29 -> 0 | J29: _________ | N29: Other | P29: 0 | Q29: 0 | R29: 0 | S29: =P29*Q29*R29 -> 0 | T29: _________
C30: General Overhead | E30: Acre | F30: 1 | G30: 20 | H30: 20 | J30: _________ | L30: Fungicides | N30: Other | P30: 0 | Q30: 0 | R30: 0 | S30: =P30*Q30*R30 -> 0 | T30: _________
C31: Cash Rent8 | E31: Acre | F31: 1 | G31: =+Inputs!C23 -> 117 | H31: 117 | J31: _________ | N31: Other | P31: 0 | Q31: 0 | R31: 0 | S31: =P31*Q31*R31 -> 0 | T31: _________
C32: Insurance (Non-Machinery) | E32: Acre | F32: 1 | G32: =+Inputs!C32 -> 0 | H32: 0 | J32: _________ | L32: Total | S32: =SUM(S16:S31) -> 142.56 | T32: _________
C33: Management Labor10 | E33: Acre | F33: 1 | G33: =Inputs!C33 -> 25 | H33: 25 | J33: _________
C34: Other Fixed Costs | E34: Acre | F34: 1 | G34: 0 | H34: 0 | J34: _________ | L34: Table 3. Machinery5
B35: Total Fixed Expenses | H35: =+SUM(H28:H34) -> 330.7173837 | J35: _________ | M35: Power Unit | N35: Implement | O35: Size | P35: Capital Recovery | Q35: Repairs & Maintenance | R35: Fuel, Oil & Filter | S35: Labor | T35: Total | U35: Your Farm ($/Acre)
B36: Total Expenses | H36: =+SUM(H24+H35) -> 915.3285289 | J36: _________ | L36: Chop Stalks | M36: Tractor, 215 hp | N36: Rotary Mower | O36: 15' | P36: =+'Field Operations'!$F$18 -> 8.239992248 | Q36: =+'Field Operations'!$G$18 -> 4.310239158 | R36: =+'Field Operations'!$H$18 -> 3.710290179 | S36: =+'Field Operations'!$I$18 -> 2.455357143 | T36: =SUM(P36:S36) -> 18.71587873 | U36: _________
B37: Return Above Specified Expenses | H37: =H7-H36 -> -121.8285289 | J37: _________ | L37: Burndown | M37: SP Boom Sprayer | O37: 90' | P37: =+'Field Operations'!$F$11 -> 9.179604108 | Q37: =+'Field Operations'!$G$11 -> 0.2942877349 | R37: =+'Field Operations'!$H$11 -> 0.3847708333 | S37: =+'Field Operations'!$I$11 -> 0.318287037 | T37: 10.17694971 | U37: _________
G38: Cash Cost per lb | H38: =(SUM(H9:H23)+H30+H31)/F4 -> 0.6274879523 | J38: _________ | L38: Plant | M38: Tractor, 215 hp | N38: Planter | O38: =+'Field Operations'!E19 -> 12-row | P38: =+'Field Operations'!$F$19 -> 13.27831025 | Q38: =+'Field Operations'!$G$19 -> 5.103678167 | R38: =+'Field Operations'!$H$19 -> 3.196557692 | S38: =+'Field Operations'!$I$19 -> 2.115384615 | T38: =SUM(P38:S38) -> 23.69393072 | U38: _________
G39: Economic Cost per lb | H39: =H36/F4 -> 0.7959378512 | J39: _________ | L39: Fertilize | M39: Tractor, 215 hp | N39: Fertilize Spreader | P39: =+'Field Operations'!$F$10 -> 5.248807987 | Q39: =+'Field Operations'!$G$10 -> 1.66135077 | R39: =+'Field Operations'!$H$10 -> 2.54419898 | S39: =+'Field Operations'!$I$10 -> 1.683673469 | T39: =SUM(P39:S39) -> 11.13803121 | U39: _________
L40: Weed Control | M40: SP Boom Sprayer | O40: 90' | P40: =+'Field Operations'!$F$11 -> 9.179604108 | Q40: =+'Field Operations'!$G$11 -> 0.2942877349 | R40: =+'Field Operations'!$H$11 -> 0.3847708333 | S40: =+'Field Operations'!$I$11 -> 0.318287037 | T40: =SUM(P40:S40) -> 10.17694971 | U40: _________
B41: Breakeven Price for Selected Yield | F41: Breakeven Yield for Selected Price | L41: Weed Control | M41: SP Boom Sprayer | O41: 90' | P41: =+'Field Operations'!$F$11 -> 9.179604108 | Q41: =+'Field Operations'!$G$11 -> 0.2942877349 | R41: =+'Field Operations'!$H$11 -> 0.3847708333 | S41: =+'Field Operations'!$I$11 -> 0.318287037 | T41: 10.17694971 | U41: _________
B42: Yield (lb.) | C42: Variable Cost ($/lb.) | D42: Total Specified Cost ($/lb.) | F42: Price ($/lb.) | G42: Variable Cost (lb.) | I42: Total Specified Cost (lb.) | L42: Weed Control | M42: SP Boom Sprayer | O42: 90' | P42: =+'Field Operations'!$F$11 -> 9.179604108 | Q42: =+'Field Operations'!$G$11 -> 0.2942877349 | R42: =+'Field Operations'!$H$11 -> 0.3847708333 | S42: =+'Field Operations'!$I$11 -> 0.318287037 | T42: =SUM(P42:S42) -> 10.17694971 | U42: _________
B43: =SUM(B44-50) -> 900 | C43: =$H$24/B43 -> 0.649567939 | D43: =($H$24+$H$35)/B43 -> 1.017031699 | F43: =SUM(F44-0.05) -> 0.44 | G43: =+$H$24/F43 -> 1328.661694 | I43: =+($H$24+$H$35)/F43 -> 2080.292111 | L43: Weed Control | M43: Tractor, 215 hp | N43: Hooded Sprayer | P43: =+'Field Operations'!$F$20 -> 2.373226987 | Q43: =+'Field Operations'!$G$20 -> 0.4015077006 | R43: =+'Field Operations'!$H$20 -> 0.8879326923 | S43: =+'Field Operations'!$I$20 -> 0.5876068376 | T43: 4.250274218 | U43: _________
B44: 950 | C44: 0.6153801528 | D44: 0.9635037146 | F44: 0.49 | G44: 1193.08397 | I44: 1868.017406 | L44: Fertilize | M44: Tractor, 215 hp | N44: Fertilize Spreader | P44: ='Field Operations'!F10 -> 5.248807987 | Q44: ='Field Operations'!G10 -> 1.66135077 | R44: ='Field Operations'!H10 -> 2.54419898 | S44: ='Field Operations'!I10 -> 1.683673469 | T44: =SUM(P44:S44) -> 11.13803121 | U44: _________
B45: 1000 | C45: 0.5846111451 | D45: 0.9153285289 | F45: 0.54 | G45: 1082.613232 | I45: 1695.052831 | L45: Spray | M45: SP Boom Sprayer | O45: 90' | P45: =+'Field Operations'!$F$11 -> 9.179604108 | Q45: =+'Field Operations'!$G$11 -> 0.2942877349 | R45: =+'Field Operations'!$H$11 -> 0.3847708333 | S45: =+'Field Operations'!$I$11 -> 0.318287037 | T45: 10.17694971 | U45: _________
B46: 1050 | C46: 0.5567725192 | D46: 0.8717414561 | F46: 0.59 | G46: 990.8663477 | I46: 1551.404286 | L46: Spray | M46: SP Boom Sprayer | O46: 90' | P46: =+'Field Operations'!$F$11 -> 9.179604108 | Q46: =+'Field Operations'!$G$11 -> 0.2942877349 | R46: =+'Field Operations'!$H$11 -> 0.3847708333 | S46: =+'Field Operations'!$I$11 -> 0.318287037 | T46: 10.17694971 | U46: _________
B47: =SUM(B48-50) -> 1100 | C47: 0.5314646774 | D47: 0.8321168444 | F47: =SUM(F48-0.05) -> 0.64 | G47: 913.4549143 | I47: 1430.200826 | L47: Spray | M47: SP Boom Sprayer | O47: 90' | P47: =+'Field Operations'!$F$11 -> 9.179604108 | Q47: =+'Field Operations'!$G$11 -> 0.2942877349 | R47: =+'Field Operations'!$H$11 -> 0.3847708333 | S47: =+'Field Operations'!$I$11 -> 0.318287037 | T47: 10.17694971 | U47: _________
B48: =+F4 -> 1150 | C48: 0.5083575175 | D48: 0.7959378512 | F48: =+G4 -> 0.69 | G48: 847.2625292 | I48: 1326.563085 | L48: Harvest | M48: Picker/Module Builder (Round) | O48: 6-row | P48: =+'Field Operations'!$F$24 -> 66.69555868 | Q48: =+'Field Operations'!$G$24 -> 16.95163302 | R48: =+'Field Operations'!$H$24 -> 11.13693787 | S48: =+'Field Operations'!$I$24 -> 3.122918055 | T48: 97.90704763 | U48: _________
B49: =SUM(B48+50) -> 1200 | C49: 0.4871759543 | D49: 0.762773774 | F49: =SUM(F48+0.05) -> 0.74 | G49: 790.015061 | I49: 1236.930444 | L49: Harvest | M49: Tractor, 215 hp | N49: Module Handler | P49: =+'Field Operations'!$F$25 -> 3.37545082 | Q49: =+'Field Operations'!$G$25 -> 0.8997332535 | R49: =+'Field Operations'!$H$25 -> 2.359520736 | S49: =+'Field Operations'!$I$25 -> 1.561459027 | T49: 8.196163837 | U49: _________
B50: =SUM(B49+50) -> 1250 | C50: 0.4676889161 | D50: 0.7322628231 | F50: =SUM(F49+0.05) -> 0.79 | G50: 740.0141078 | I50: 1158.643707 | L50: Other | P50: 0 | Q50: 0 | R50: 0 | S50: 0 | T50: 0 | U50: _________
B51: 1300 | C51: 0.4497008809 | D51: 0.7040988684 | F51: 0.84 | G51: 695.965649 | I51: 1089.67682 | L51: Other | P51: 0 | Q51: 0 | R51: 0 | S51: 0 | T51: =SUM(P51:S51) -> 0 | U51: _________
B52: 1350 | C52: 0.4330452927 | D52: 0.6780211325 | F52: 0.89 | G52: 656.8664552 | I52: 1028.459021 | L52: Total | P52: =SUM(P36:P51) -> 168.7173837 | Q52: =SUM(Q36:Q51) -> 33.04950698 | R52: =SUM(R36:R51) -> 29.07303297 | S52: =SUM(S36:S51) -> 15.43808188 | T52: =SUM(T36:T51) -> 246.2780055 | U52: _________
B53: 1400 | C53: 0.4175793894 | D53: 0.653806092 | F53: 0.94 | G53: 621.9267501 | I53: 973.7537541

Sheet Cotton CT
B1: 2026 Cotton, Conventional Tillage, Non-Irrigated Budget | L1: Table 1. Fertilizer & Lime3
E2: Unit | F2: Quantity | G2: Price | H2: Total | J2: Your Farm | L2: Fertilizer | M2: Description | N2: Quantity (lbs.) | O2: Price ($) | P2: Total ($/Acre) | Q2: Your Farm ($/Acre)
B3: Revenue1 | E3: Gross Revenue ($/Acre) | L3: Nitrogen | M3: Urea | N3: 35 | O3: =+Inputs!C44 -> 0.64 | P3: =+N3*O3 -> 22.4 | Q3: _________
C4: Cotton | E4: lb. | F4: 1150 | G4: =+Inputs!C7 -> 0.69 | H4: =F4*G4 -> 793.5 | J4: _________ | M4: UAN 32% | N4: 35 | O4: =Inputs!C47 -> 0.74 | P4: =+N4*O4 -> 25.9 | Q4: _________
C5: Government Payments | E5: $/acre | F5: 1 | G5: 0 | H5: =F5*G5 -> 0 | J5: _________ | L5: Phosphorous | M5: P2O5 | N5: 60 | O5: =+Inputs!C48 -> 0.73 | P5: =+N5*O5 -> 43.8 | Q5: _________
C6: Other Revenue | E6: $/acre | F6: 1 | G6: 0 | H6: 0 | J6: _________ | L6: Potassium | M6: K20 | N6: 90 | O6: =+Inputs!C50 -> 0.41 | P6: =+N6*O6 -> 36.9 | Q6: _________
B7: Total Revenue | H7: =SUM(H4:H6) -> 793.5 | J7: _________ | L7: Sulfur | N7: 10 | O7: =Inputs!C53 -> 0.45 | P7: 4.5 | Q7: _________
B8: Variable Expenses | L8: Boron | N8: 0.5 | O8: =+Inputs!$C$52 -> 0.72 | P8: 0.36 | Q8: _________
C9: Seed2 | E9: Thous. | F9: 50 | G9: =+Inputs!C40 -> 3.05 | H9: =+F9*G9 -> 152.5 | J9: _________ | L9: Lime | N9: 1000 | O9: =+Inputs!$C$51 -> 30 | P9: =+N9/2000*O9 -> 15 | Q9: _________
C10: Wrap | E10: lb. | F10: =F4 -> 1150 | G10: =+Inputs!C21 -> 0.017 | H10: =+F10*G10 -> 19.55 | J10: _________ | L10: Other | N10: 0 | O10: 0 | P10: =N10*O10 -> 0 | Q10: _________
C11: Fertilizer & Lime (Table 1) | E11: Acre | F11: 1 | G11: =+P12 -> 148.86 | H11: 148.86 | J11: _________ | L11: Other | N11: 0 | O11: 0 | P11: =+N11*O11 -> 0 | Q11: _________
C12: Chemical (Table 2) | E12: Acre | F12: 1 | G12: =S30 -> 130.32 | H12: 130.32 | J12: _________ | L12: Total | P12: =SUM(P3:P11) -> 148.86 | Q12: _________
C13: Crop Scout or Consultant | E13: Acre | F13: 1 | G13: =+Inputs!C19 -> 12 | H13: 12 | J13: _________
C14: Repair & Maintenance (Table 3) | E14: Acre | F14: 1 | G14: =$Q$54 -> 39.34325294 | H14: 39.34325294 | J14: _________ | L14: Table 2. Chemicals4
C15: Fuel, Oil & Filter (Table 3) | E15: Acre | F15: 1 | G15: =$R$54 -> 38.88579023 | H15: 38.88579023 | J15: _________ | L15: Chemical | M15: Function | N15: Description | O15: Unit | P15: Number of Apps. | Q15: Quantity | R15: Price | S15: Total ($/Acre) | T15: Your Farm ($/Acre)
C16: Operator Labor (Table 3) | E16: Acre | F16: 1 | G16: =$S$54 -> 21.86820864 | H16: 21.86820864 | J16: _________ | L16: Herbicides | M16: Pre-Emerge | N16: Cotoran 4L | O16: pt. | P16: 1 | Q16: 1 | R16: =Herbicides!B34 -> 6.5 | S16: =P16*Q16*R16 -> 6.5 | T16: _________
C17: Crop Insurance6 | E17: Acre | F17: 1 | G17: =+Inputs!C28 -> 10.45 | H17: =+F17*G17 -> 10.45 | J17: _________ | N17: Caparol 4L | O17: pt. | P17: 1 | Q17: 1 | R17: =+Herbicides!B25 -> 3.75 | S17: =P17*Q17*R17 -> 3.75 | T17: _________
C18: Machinery Rental | E18: Acre | F18: 1 | G18: 0 | H18: 0 | J18: _________ | N18: Other | P18: 0 | Q18: 0 | R18: 0 | S18: =P18*Q18*R18 -> 0 | T18: _________
C19: Custom Work | E19: Acre | F19: 1 | G19: 0 | H19: 0 | J19: _________ | M19: Post-Emerge | N19: Sequence | O19: pt. | P19: 1 | Q19: 2.5 | R19: =+Herbicides!B96 -> 6.5 | S19: 16.25 | T19: _________
C20: Other Transportation Costs | E20: Acre | F20: 1 | G20: 0 | H20: 0 | J20: _________ | N20: Roundup PowerMax | O20: oz. | P20: 1 | Q20: 32 | R20: =+Herbicides!B93 -> 0.2 | S20: 6.4 | T20: _________
C21: Other | E21: Acre | F21: 0 | G21: 0 | H21: =F21*G21 -> 0 | J21: _________ | N21: Caparol 4L | O21: pt. | P21: 1 | Q21: 2 | R21: =Herbicides!B25 -> 3.75 | S21: 7.5 | T21: _________
C22: Other | E22: Acre | F22: 0 | G22: 0 | H22: =F22*G22 -> 0 | J22: _________ | N22: Valor | O22: oz. | P22: 1 | Q22: 2 | R22: =+Herbicides!B109 -> 2.81 | S22: 5.62 | T22: _________
C23: Operating Interest7 | E23: % | F23: =SUM(H9:H22) -> 573.7772518 | G23: =+Inputs!C14 -> 0.075 | H23: =(F23*G23)/2 -> 21.51664694 | J23: _________ | L23: Growth Regulator | N23: Mepex (Mepiquat Chloride) | O23: acre | P23: 1 | Q23: 1 | R23: =+Herbicides!$B$71 -> 2.3 | S23: 2.3 | T23: _________
B24: Total Variable Expenses | H24: =SUM(H9:H23) -> 595.2938988 | J24: _________ | L24: Defoliant | N24: Other | O24: acre | P24: 1 | Q24: 1 | R24: =+Herbicides!$B$36 -> 18 | S24: 18 | T24: _________
B25: Return Above Variable Expenses | H25: =H7-H24 -> 198.2061012 | J25: _________ | L25: Boll Opener | N25: Ethephon | O25: acre | P25: 1 | Q25: 1 | R25: =+Herbicides!$B$21 -> 9 | S25: 9 | T25: _________
B26: Fixed Expenses | L26: Insecticides | N26: Foliar | O26: acre | P26: 1 | Q26: 1 | R26: =+Insecticides!$B$4 -> 55 | S26: =P26*Q26*R26 -> 55 | T26: _________
C27: Machinery | N27: Other | P27: 0 | Q27: 0 | R27: 0 | S27: 0 | T27: _________
C28: Capital Recovery (Table 3) | E28: Acre | F28: 1 | G28: =$P$54 -> 186.7744934 | H28: =+F28*G28 -> 186.7744934 | J28: _________ | L28: Fungicides | N28: Other | P28: 0 | Q28: 0 | R28: 0 | S28: 0 | T28: _________
C29: Other Fixed Machinery Costs | E29: Acre | F29: 1 | G29: =+Inputs!C32 -> 0 | H29: =+F29*G29 -> 0 | J29: _________ | N29: Other | P29: 0 | Q29: 0 | R29: 0 | S29: =P29*Q29*R29 -> 0 | T29: _________
C30: General Overhead | E30: Acre | F30: 1 | G30: 20 | H30: =+F30*G30 -> 20 | J30: _________ | L30: Total | S30: =SUM(S16:S29) -> 130.32 | T30: _________
C31: Cash Rent8 | E31: Acre | F31: 1 | G31: =+Inputs!C23 -> 117 | H31: =+F31*G31 -> 117 | J31: _________
C32: Insurance (Non-Machinery) | E32: Acre | F32: 1 | G32: =+Inputs!C32 -> 0 | H32: =+F32*G32 -> 0 | J32: _________ | L32: Table 3. Machinery5
C33: Management Labor10 | E33: Acre | F33: 1 | G33: =Inputs!C33 -> 25 | H33: =+F33*G33 -> 25 | J33: _________ | M33: Power Unit | N33: Implement | O33: Size | P33: Capital Recovery | Q33: Repairs & Maintenance | R33: Fuel, Oil & Filter | S33: Labor | T33: Total | U33: Your Farm ($/Acre)
C34: Other Fixed Costs | E34: Acre | F34: 1 | G34: 0 | H34: =+F34*G34 -> 0 | J34: _________ | L34: Chop Stalks | M34: Tractor, 215 hp | N34: Rotary Mower | O34: 15' | P34: =+'Field Operations'!$F$18 -> 8.239992248 | Q34: =+'Field Operations'!$G$18 -> 4.310239158 | R34: =+'Field Operations'!$H$18 -> 3.710290179 | S34: =+'Field Operations'!$I$18 -> 2.455357143 | T34: =SUM(P34:S34) -> 18.71587873 | U34: _________
B35: Total Fixed Expenses | H35: =+SUM(H27:H34) -> 348.7744934 | J35: _________ | L35: Chisel | M35: Tractor, 215 hp | N35: Chisel Plow | O35: 21' | P35: =+'Field Operations'!$F$4 -> 7.153539609 | Q35: =+'Field Operations'!$G$4 -> 2.123869033 | R35: =+'Field Operations'!$H$4 -> 3.492037815 | S35: =+'Field Operations'!$I$4 -> 2.31092437 | T35: =SUM(P35:S35) -> 15.08037083 | U35: _________
B36: Total Expenses | H36: =+SUM(H24+H35) -> 944.0683921 | J36: _________ | L36: Disk | M36: Tractor, 215 hp | N36: Tandem Disk | O36: 29' | P36: =+'Field Operations'!$F$5 -> 11.61881621 | Q36: =+'Field Operations'!$G$5 -> 2.086710265 | R36: =+'Field Operations'!$H$5 -> 2.809685598 | S36: =+'Field Operations'!$I$5 -> 1.859364435 | T36: =SUM(P36:S36) -> 18.37457651 | U36: _________
B37: Return Above Specified Expenses | H37: =H7-H36 -> -150.5683921 | J37: _________ | L37: Prepare Seedbed | M37: Tractor, 215 hp | N37: Cultimulcher | O37: 20' | P37: =+'Field Operations'!$F$7 -> 8.464357944 | Q37: =+'Field Operations'!$G$7 -> 2.377454393 | R37: =+'Field Operations'!$H$7 -> 3.895804688 | S37: =+'Field Operations'!$I$7 -> 2.578125 | T37: =SUM(P37:S37) -> 17.31574202 | U37: _________
G38: Cash Cost per lb | H38: =(SUM(H9:H23)+H30+H31)/F4 -> 0.6367773033 | J38: _________
G39: Economic Cost per lb | H39: =H36/F4 -> 0.8209290366 | J39: _________
L40: Fertilize | M40: Tractor, 215 hp | N40: Fertilize Spreader | P40: =+'Field Operations'!$F$10 -> 5.248807987 | Q40: =+'Field Operations'!$G$10 -> 1.66135077 | R40: =+'Field Operations'!$H$10 -> 2.54419898 | S40: =+'Field Operations'!$I$10 -> 1.683673469 | T40: =SUM(P40:S40) -> 11.13803121 | U40: _________
B41: Breakeven Price for Selected Yield | F41: Breakeven Yield for Selected Price | L41: Plant | M41: Tractor, 215 hp | N41: Planter | O41: =+'Field Operations'!E19 -> 12-row | P41: =+'Field Operations'!$F$19 -> 13.27831025 | Q41: =+'Field Operations'!$G$19 -> 5.103678167 | R41: =+'Field Operations'!$H$19 -> 3.196557692 | S41: =+'Field Operations'!$I$19 -> 2.115384615 | T41: 23.69393072 | U41: _________
B42: Yield (lb.) | C42: Variable Cost ($/lb.) | D42: Total Specified Cost ($/lb.) | F42: Price ($/lb.) | G42: Variable Cost (lb.) | I42: Total Specified Cost (lb.) | L42: Weed Control | M42: SP Boom Sprayer | O42: 90' | P42: =+'Field Operations'!$F$11 -> 9.179604108 | Q42: =+'Field Operations'!$G$11 -> 0.2942877349 | R42: =+'Field Operations'!$H$11 -> 0.3847708333 | S42: =+'Field Operations'!$I$11 -> 0.318287037 | T42: 10.17694971 | U42: _________
B43: =SUM(B44-50) -> 900 | C43: =$H$24/B43 -> 0.6614376653 | D43: =($H$24+$H$35)/B43 -> 1.04896488 | F43: =SUM(F44-0.05) -> 0.44 | G43: =+$H$24/F43 -> 1352.940679 | I43: =+($H$24+$H$35)/F43 -> 2145.609982 | L43: Weed Control | M43: SP Boom Sprayer | O43: 90' | P43: =+'Field Operations'!$F$11 -> 9.179604108 | Q43: =+'Field Operations'!$G$11 -> 0.2942877349 | R43: =+'Field Operations'!$H$11 -> 0.3847708333 | S43: =+'Field Operations'!$I$11 -> 0.318287037 | T43: 10.17694971 | U43: _________
B44: 950 | C44: 0.6266251566 | D44: 0.9937562022 | F44: 0.49 | G44: 1214.885508 | I44: 1926.670188 | L44: Weed Control | M44: Tractor, 215 hp | N44: Hooded Sprayer | P44: =+'Field Operations'!$F$20 -> 2.373226987 | Q44: =+'Field Operations'!$G$20 -> 0.4015077006 | R44: =+'Field Operations'!$H$20 -> 0.8879326923 | S44: =+'Field Operations'!$I$20 -> 0.5876068376 | T44: 4.250274218 | U44: _________
B45: 1000 | C45: 0.5952938988 | D45: 0.9440683921 | F45: 0.54 | G45: 1102.396109 | I45: 1748.2748 | L45: Weed Control | M45: SP Boom Sprayer | O45: 90' | P45: =+'Field Operations'!$F$11 -> 9.179604108 | Q45: =+'Field Operations'!$G$11 -> 0.2942877349 | R45: =+'Field Operations'!$H$11 -> 0.3847708333 | S45: =+'Field Operations'!$I$11 -> 0.318287037 | T45: 10.17694971 | U45: _________
B46: 1050 | C46: 0.5669465702 | D46: 0.8991127544 | F46: 0.59 | G46: 1008.97271 | I46: 1600.115919 | L46: Fertilize | M46: Tractor, 215 hp | N46: Fertilize Spreader | P46: ='Field Operations'!F10 -> 5.248807987 | Q46: ='Field Operations'!G10 -> 1.66135077 | R46: ='Field Operations'!H10 -> 2.54419898 | S46: ='Field Operations'!I10 -> 1.683673469 | T46: ='Field Operations'!J10 -> 11.13803121 | U46: _________
B47: =SUM(B48-50) -> 1100 | C47: 0.5411762716 | D47: 0.8582439928 | F47: =SUM(F48-0.05) -> 0.64 | G47: 930.1467168 | I47: 1475.106863 | L47: Spray | M47: SP Boom Sprayer | O47: 90' | P47: =+'Field Operations'!$F$11 -> 9.179604108 | Q47: =+'Field Operations'!$G$11 -> 0.2942877349 | R47: =+'Field Operations'!$H$11 -> 0.3847708333 | S47: =+'Field Operations'!$I$11 -> 0.318287037 | T47: 10.17694971 | U47: _________
B48: =+F4 -> 1150 | C48: 0.5176468685 | D48: 0.8209290366 | F48: =+G4 -> 0.69 | G48: 862.7447808 | I48: 1368.215061 | L48: Spray | M48: SP Boom Sprayer | O48: 90' | P48: =+'Field Operations'!$F$11 -> 9.179604108 | Q48: =+'Field Operations'!$G$11 -> 0.2942877349 | R48: =+'Field Operations'!$H$11 -> 0.3847708333 | S48: =+'Field Operations'!$I$11 -> 0.318287037 | T48: 10.17694971 | U48: _________
B49: =SUM(B48+50) -> 1200 | C49: 0.496078249 | D49: 0.7867236601 | F49: =SUM(F48+0.05) -> 0.74 | G49: 804.4512145 | I49: 1275.768097 | L49: Spray | M49: SP Boom Sprayer | O49: 90' | P49: =+'Field Operations'!$F$11 -> 9.179604108 | Q49: =+'Field Operations'!$G$11 -> 0.2942877349 | R49: =+'Field Operations'!$H$11 -> 0.3847708333 | S49: =+'Field Operations'!$I$11 -> 0.318287037 | T49: 10.17694971 | U49: _________
B50: =SUM(B49+50) -> 1250 | C50: 0.476235119 | D50: 0.7552547137 | F50: =SUM(F49+0.05) -> 0.79 | G50: 753.5365807 | I50: 1195.023281 | L50: Harvest | M50: Picker/Module Builder (Round) | O50: 6-row | P50: =+'Field Operations'!$F$24 -> 66.69555868 | Q50: =+'Field Operations'!$G$24 -> 16.95163302 | R50: =+'Field Operations'!$H$24 -> 11.13693787 | S50: =+'Field Operations'!$I$24 -> 3.122918055 | T50: 97.90704763 | U50: _________
B51: 1300 | C51: 0.4579183837 | D51: 0.7262064555 | F51: 0.84 | G51: 708.6832128 | I51: 1123.890943 | L51: Harvest | M51: Tractor, 215 hp | N51: Module Handler | P51: =+'Field Operations'!$F$25 -> 3.37545082 | Q51: =+'Field Operations'!$G$25 -> 0.8997332535 | R51: =+'Field Operations'!$H$25 -> 2.359520736 | S51: =+'Field Operations'!$I$25 -> 1.561459027 | T51: 8.196163837 | U51: _________
B52: 1350 | C52: 0.4409584435 | D52: 0.6993099201 | F52: 0.89 | G52: 668.8695492 | I52: 1060.751002 | L52: Other | P52: 0 | Q52: 0 | R52: 0 | S52: 0 | T52: 0 | U52: _________
B53: 1400 | C53: 0.4252099277 | D53: 0.6743345658 | F53: 0.94 | G53: 633.2913817 | I53: 1004.328077 | L53: Other | P53: 0 | Q53: 0 | R53: 0 | S53: 0 | T53: =SUM(P53:S53) -> 0 | U53: _________
L54: Total | P54: =SUM(P34:P53) -> 186.7744934 | Q54: =SUM(Q34:Q53) -> 39.34325294 | R54: =SUM(R34:R53) -> 38.88579023 | S54: =SUM(S34:S53) -> 21.86820864 | T54: =SUM(T34:T53) -> 286.8717452 | U54: _________

Sheet Cotton Irr
B1: 2026 Cotton, No-Till, Irrigated Budget | L1: Table 1. Fertilizer & Lime3
E2: Unit | F2: Quantity | G2: Price | H2: Total | J2: Your Farm | L2: Fertilizer | M2: Description | N2: Quantity (lbs.) | O2: Price ($) | P2: Total ($/Acre) | Q2: Your Farm ($/Acre)
B3: Revenue1 | E3: Gross Revenue ($/Acre) | L3: Nitrogen | M3: Urea | N3: 45 | O3: =+Inputs!C44 -> 0.64 | P3: =+N3*O3 -> 28.8 | Q3: _________
C4: Cotton | E4: lb. | F4: 1500 | G4: =+Inputs!C7 -> 0.69 | H4: =F4*G4 -> 1035 | J4: _________ | M4: UAN 32% | N4: 45 | O4: =Inputs!C47 -> 0.74 | P4: =+N4*O4 -> 33.3 | Q4: _________
C5: Government Payments | E5: $/acre | F5: 1 | G5: 0 | H5: =F5*G5 -> 0 | J5: _________ | L5: Phosphorous | M5: P2O5 | N5: 60 | O5: =+Inputs!C48 -> 0.73 | P5: =+N5*O5 -> 43.8 | Q5: _________
C6: Other Revenue | E6: $/acre | F6: 1 | G6: 0 | H6: 0 | J6: _________ | L6: Potassium | M6: K20 | N6: 90 | O6: =+Inputs!C50 -> 0.41 | P6: =+N6*O6 -> 36.9 | Q6: _________
B7: Total Revenue | H7: =SUM(H4:H6) -> 1035 | J7: _________ | L7: Sulfur | N7: 10 | O7: =Inputs!C53 -> 0.45 | P7: 4.5 | Q7: _________
B8: Variable Expenses | L8: Boron | N8: 0.5 | O8: =+Inputs!$C$52 -> 0.72 | P8: 0.36 | Q8: _________
C9: Seed2 | E9: Thous. | F9: 60 | G9: =+Inputs!C40 -> 3.05 | H9: =+F9*G9 -> 183 | J9: _________ | L9: Lime | N9: 1000 | O9: =+Inputs!$C$51 -> 30 | P9: =+N9/2000*O9 -> 15 | Q9: _________
C10: Wrap | E10: lb. | F10: =F4 -> 1500 | G10: =+Inputs!C21 -> 0.017 | H10: =+F10*G10 -> 25.5 | J10: _________ | L10: Other | N10: 0 | O10: 0 | P10: =N10*O10 -> 0 | Q10: _________
C11: Fertilizer & Lime (Table 1) | E11: Acre | F11: 1 | G11: =+P12 -> 162.66 | H11: 162.66 | J11: _________ | L11: Other | N11: 0 | O11: 0 | P11: =+N11*O11 -> 0 | Q11: _________
C12: Chemical (Table 2) | E12: Acre | F12: 1 | G12: =S32 -> 142.56 | H12: 142.56 | J12: _________ | L12: Total | P12: =SUM(P3:P11) -> 162.66 | Q12: _________
C13: Crop Scout or Consultant | E13: Acre | F13: 1 | G13: =+Inputs!C19 -> 12 | H13: 12 | J13: _________
C14: Repair & Maintenance (Table 3) | E14: Acre | F14: 1 | G14: =+Q52 -> 33.04950698 | H14: 33.04950698 | J14: _________ | L14: Table 2. Chemicals4
C15: Fuel, Oil & Filter (Table 3) | E15: Acre | F15: 1 | G15: =+R52 -> 29.07303297 | H15: 29.07303297 | J15: _________ | L15: Chemical | M15: Function | N15: Description | O15: Unit | P15: Number of Apps. | Q15: Quantity | R15: Price | S15: Total ($/Acre) | T15: Your Farm ($/Acre)
C16: Operator Labor (Table 3) | E16: Acre | F16: 1 | G16: =+S52 -> 15.43808188 | H16: 15.43808188 | J16: _________ | L16: Herbicides | M16: Burndown | N16: Roundup PowerMax | O16: oz. | P16: 1 | Q16: 32 | R16: =Herbicides!B93 -> 0.2 | S16: =P16*Q16*R16 -> 6.4 | T16: _________
C17: Crop Insurance6 | E17: Acre | F17: 1 | G17: =+Inputs!C28 -> 10.45 | H17: =+F17*G17 -> 10.45 | J17: _________ | N17: Clarity | O17: oz. | P17: 1 | Q17: 8 | R17: =Herbicides!B28 -> 0.73 | S17: =P17*Q17*R17 -> 5.84 | T17: _________
C18: Machinery Rental | E18: Acre | F18: 1 | G18: 0 | H18: 0 | J18: _________ | M18: Pre-Emerge | N18: Cotoran 4L | O18: pt. | P18: 1 | Q18: 1 | R18: =Herbicides!B34 -> 6.5 | S18: =P18*Q18*R18 -> 6.5 | T18: _________
C19: Custom Work | E19: Acre | F19: 1 | G19: 0 | H19: 0 | J19: _________ | N19: Caparol 4L | O19: pt. | P19: 1 | Q19: 1 | R19: =Herbicides!B25 -> 3.75 | S19: 3.75 | T19: _________
C20: Other Transportation Costs | E20: Acre | F20: 1 | G20: 0 | H20: 0 | J20: _________ | M20: Post-Emerge | N20: Sequence | O20: pt. | P20: 1 | Q20: 2.5 | R20: =Herbicides!B96 -> 6.5 | S20: 16.25 | T20: _________
C21: Irrigation Energy Cost9 | E21: Ac-In | F21: 6 | G21: =+Inputs!C57 -> 6.8 | H21: =+F21*G21 -> 40.8 | J21: _________ | N21: Roundup PowerMax | O21: oz. | P21: 1 | Q21: 32 | R21: =Herbicides!B93 -> 0.2 | S21: 6.4 | T21: _________
C22: Irrigation System R&M9 | E22: Ac-In | F22: 6 | G22: =+Inputs!C58 -> 3.1 | H22: =+F22*G22 -> 18.6 | J22: _________ | N22: Caparol 4L | O22: pt. | P22: 1 | Q22: 2 | R22: =Herbicides!B25 -> 3.75 | S22: 7.5 | T22: _________
C23: Other Irrigation Costs | E23: Acre | F23: 1 | G23: 0 | H23: =+F23*G23 -> 0 | J23: _________ | N23: Valor | O23: oz. | P23: 1 | Q23: 2 | R23: =+Herbicides!B109 -> 2.81 | S23: 5.62 | T23: _________
C24: Other | E24: Acre | F24: 0 | G24: 0 | H24: =F24*G24 -> 0 | J24: _________ | L24: Growth Regulator | N24: Mepex (Mepiquat Chloride) | O24: acre | P24: 1 | Q24: 1 | R24: =+Herbicides!$B$71 -> 2.3 | S24: 2.3 | T24: _________
C25: Other | E25: Acre | F25: 0 | G25: 0 | H25: =F25*G25 -> 0 | J25: _________ | L25: Defoliant | N25: Defoliant | O25: acre | P25: 1 | Q25: 1 | R25: =+Herbicides!$B$36 -> 18 | S25: 18 | T25: _________
C26: Operating Interest7 | E26: % | F26: =SUM(H9:H25) -> 673.1306218 | G26: =+Inputs!C14 -> 0.075 | H26: =(F26*G26)/2 -> 25.24239832 | J26: _________ | L26: Boll Opener | N26: Ethephon | O26: acre | P26: 1 | Q26: 1 | R26: =+Herbicides!$B$21 -> 9 | S26: 9 | T26: _________
B27: Total Variable Expenses | H27: =SUM(H9:H26) -> 698.3730201 | J27: _________ | L27: Insecticides | N27: Foliar | O27: acre | P27: 1 | Q27: 1 | R27: =+Insecticides!$B$4 -> 55 | S27: =P27*Q27*R27 -> 55 | T27: _________
B28: Return Above Variable Expenses | H28: =H7-H27 -> 336.6269799 | J28: _________ | N28: Other | P28: 0 | Q28: 0 | R28: 0 | S28: 0 | T28: _________
B29: Fixed Expenses | L29: Fungicides | N29: Other | P29: 0 | Q29: 0 | R29: 0 | S29: 0 | T29: _________
C30: Machinery | N30: Other | P30: 0 | Q30: 0 | R30: 0 | S30: =P30*Q30*R30 -> 0 | T30: _________
C31: Capital Recovery (Table 3) | E31: Acre | F31: 1 | G31: =+P52 -> 168.7173837 | H31: =+F31*G31 -> 168.7173837 | J31: _________ | N31: Other | P31: 0 | Q31: 0 | R31: 0 | S31: =P31*Q31*R31 -> 0 | T31: _________
C32: Other Fixed Machinery Costs | E32: Acre | F32: 1 | G32: 0 | H32: =F32*G32 -> 0 | J32: _________ | L32: Total | S32: =SUM(S16:S31) -> 142.56 | T32: _________
C33: Capital Recovery (Irrigation Equipment)9 | E33: Acre | F33: 1 | G33: =+Inputs!C59 -> 105 | H33: =+F33*G33 -> 105 | J33: _________
C34: Other Irrigation Costs | E34: Acre | F34: 1 | G34: 0 | H34: 0 | J34: _________ | L34: Table 3. Machinery5
C35: General Overhead | E35: Acre | F35: 1 | G35: 30 | H35: 30 | J35: _________ | M35: Power Unit | N35: Implement | O35: Size | P35: Capital Recovery | Q35: Repairs & Maintenance | R35: Fuel, Oil & Filter | S35: Labor | T35: Total | U35: Your Farm ($/Acre)
C36: Cash Rent8 | E36: Acre | F36: 1 | G36: =Inputs!C22 -> 197 | H36: =+F36*G36 -> 197 | J36: _________ | L36: Chop Stalks | M36: Tractor, 215 hp | N36: Rotary Mower | O36: 15' | P36: =+'Field Operations'!$F$18 -> 8.239992248 | Q36: =+'Field Operations'!$G$18 -> 4.310239158 | R36: =+'Field Operations'!$H$18 -> 3.710290179 | S36: =+'Field Operations'!$I$18 -> 2.455357143 | T36: =SUM(P36:S36) -> 18.71587873 | U36: _________
C37: Insurance (Non-Machinery) | E37: Acre | F37: 1 | G37: =+Inputs!C32 -> 0 | H37: 0 | J37: _________ | L37: Burndown | M37: SP Boom Sprayer | O37: 90' | P37: =+'Field Operations'!$F$11 -> 9.179604108 | Q37: =+'Field Operations'!$G$11 -> 0.2942877349 | R37: =+'Field Operations'!$H$11 -> 0.3847708333 | S37: =+'Field Operations'!$I$11 -> 0.318287037 | T37: =SUM(P37:S37) -> 10.17694971 | U37: _________
C38: Management Labor10 | E38: Acre | F38: 1 | G38: =Inputs!C33 -> 25 | H38: =+F38*G38*2 -> 50 | J38: _________ | L38: Plant | M38: Tractor, 215 hp | N38: Planter | O38: =+'Field Operations'!E19 -> 12-row | P38: =+'Field Operations'!$F$19 -> 13.27831025 | Q38: =+'Field Operations'!$G$19 -> 5.103678167 | R38: =+'Field Operations'!$H$19 -> 3.196557692 | S38: =+'Field Operations'!$I$19 -> 2.115384615 | T38: =SUM(P38:S38) -> 23.69393072 | U38: _________
C39: Other Fixed Costs | E39: Acre | F39: 1 | G39: 0 | H39: 0 | J39: _________ | L39: Fertilize | M39: Tractor, 215 hp | N39: Fertilize Spreader | P39: =+'Field Operations'!$F$10 -> 5.248807987 | Q39: =+'Field Operations'!$G$10 -> 1.66135077 | R39: =+'Field Operations'!$H$10 -> 2.54419898 | S39: =+'Field Operations'!$I$10 -> 1.683673469 | T39: =SUM(P39:S39) -> 11.13803121 | U39: _________
B40: Total Fixed Expenses | H40: =+SUM(H30:H39) -> 550.7173837 | J40: _________ | L40: Weed Control | M40: SP Boom Sprayer | O40: 90' | P40: =+'Field Operations'!$F$11 -> 9.179604108 | Q40: =+'Field Operations'!$G$11 -> 0.2942877349 | R40: =+'Field Operations'!$H$11 -> 0.3847708333 | S40: =+'Field Operations'!$I$11 -> 0.318287037 | T40: =SUM(P40:S40) -> 10.17694971 | U40: _________
B41: Total Expenses | H41: =+SUM(H27+H40) -> 1249.090404 | J41: _________ | L41: Weed Control | M41: SP Boom Sprayer | O41: 90' | P41: =+'Field Operations'!$F$11 -> 9.179604108 | Q41: =+'Field Operations'!$G$11 -> 0.2942877349 | R41: =+'Field Operations'!$H$11 -> 0.3847708333 | S41: =+'Field Operations'!$I$11 -> 0.318287037 | T41: =SUM(P41:S41) -> 10.17694971 | U41: _________
B42: Return Above Specified Expenses | H42: =H7-H41 -> -214.0904039 | J42: _________ | L42: Weed Control | M42: SP Boom Sprayer | O42: 90' | P42: =+'Field Operations'!$F$11 -> 9.179604108 | Q42: =+'Field Operations'!$G$11 -> 0.2942877349 | R42: =+'Field Operations'!$H$11 -> 0.3847708333 | S42: =+'Field Operations'!$I$11 -> 0.318287037 | T42: 10.17694971 | U42: _________
G43: Cash Cost per lb | H43: =(SUM(H9:H26)+H35+H36)/F4 -> 0.6169153468 | J43: _________ | L43: Weed Control | M43: Tractor, 215 hp | N43: Hooded Sprayer | P43: =+'Field Operations'!$F$20 -> 2.373226987 | Q43: =+'Field Operations'!$G$20 -> 0.4015077006 | R43: =+'Field Operations'!$H$20 -> 0.8879326923 | S43: =+'Field Operations'!$I$20 -> 0.5876068376 | T43: =SUM(P43:S43) -> 4.250274218 | U43: _________
G44: Economic Cost per lb | H44: =H41/F4 -> 0.8327269359 | J44: _________ | L44: Fertilize | M44: Tractor, 215 hp | N44: Fertilize Spreader | P44: ='Field Operations'!F10 -> 5.248807987 | Q44: ='Field Operations'!G10 -> 1.66135077 | R44: ='Field Operations'!H10 -> 2.54419898 | S44: ='Field Operations'!I10 -> 1.683673469 | T44: 11.13803121 | U44: _________
L45: Spray | M45: SP Boom Sprayer | O45: 90' | P45: =+'Field Operations'!$F$11 -> 9.179604108 | Q45: =+'Field Operations'!$G$11 -> 0.2942877349 | R45: =+'Field Operations'!$H$11 -> 0.3847708333 | S45: =+'Field Operations'!$I$11 -> 0.318287037 | T45: 10.17694971 | U45: _________
B46: Breakeven Price for Selected Yield | F46: Breakeven Yield for Selected Price | L46: Spray | M46: SP Boom Sprayer | O46: 90' | P46: =+'Field Operations'!$F$11 -> 9.179604108 | Q46: =+'Field Operations'!$G$11 -> 0.2942877349 | R46: =+'Field Operations'!$H$11 -> 0.3847708333 | S46: =+'Field Operations'!$I$11 -> 0.318287037 | T46: 10.17694971 | U46: _________
B47: Yield (lb.) | C47: Variable Cost ($/lb.) | D47: Total Specified Cost ($/lb.) | F47: Price ($/lb.) | G47: Variable Cost (lb.) | I47: Total Specified Cost (lb.) | L47: Spray | M47: SP Boom Sprayer | O47: 90' | P47: =+'Field Operations'!$F$11 -> 9.179604108 | Q47: =+'Field Operations'!$G$11 -> 0.2942877349 | R47: =+'Field Operations'!$H$11 -> 0.3847708333 | S47: =+'Field Operations'!$I$11 -> 0.318287037 | T47: 10.17694971 | U47: _________
B48: =SUM(B49-50) -> 1250 | C48: =$H$27/B48 -> 0.5586984161 | D48: =($H$27+$H$40)/B48 -> 0.9992723231 | F48: =SUM(F49-0.05) -> 0.44 | G48: =+$H$27/F48 -> 1587.211409 | I48: =+($H$27+$H$40)/F48 -> 2838.841827 | L48: Harvest | M48: Picker/Module Builder (Round) | O48: 6-row | P48: =+'Field Operations'!$F$24 -> 66.69555868 | Q48: =+'Field Operations'!$G$24 -> 16.95163302 | R48: =+'Field Operations'!$H$24 -> 11.13693787 | S48: =+'Field Operations'!$I$24 -> 3.122918055 | T48: 97.90704763 | U48: _________
B49: 1300 | C49: 0.5372100155 | D49: 0.9608387722 | F49: 0.49 | G49: 1425.251062 | I49: 2549.16409 | L49: Harvest | M49: Tractor, 215 hp | N49: Module Handler | P49: =+'Field Operations'!$F$25 -> 3.37545082 | Q49: =+'Field Operations'!$G$25 -> 0.8997332535 | R49: =+'Field Operations'!$H$25 -> 2.359520736 | S49: =+'Field Operations'!$I$25 -> 1.561459027 | T49: 8.196163837 | U49: _________
B50: 1350 | C50: 0.5173133483 | D50: 0.925252151 | F50: 0.54 | G50: 1293.283371 | I50: 2313.130378 | L50: Other | P50: 0 | Q50: 0 | R50: 0 | S50: 0 | T50: 0 | U50: _________
B51: 1400 | C51: 0.4988378715 | D51: 0.8922074313 | F51: 0.59 | G51: 1183.683085 | I51: 2117.102379 | L51: Other | P51: 0 | Q51: 0 | R51: 0 | S51: 0 | T51: =SUM(P51:S51) -> 0 | U51: _________
B52: =SUM(B53-50) -> 1450 | C52: 0.4816365656 | D52: 0.8614416578 | F52: =SUM(F53-0.05) -> 0.64 | G52: 1091.207844 | I52: 1951.703756 | L52: Total | P52: =SUM(P36:P51) -> 168.7173837 | Q52: =SUM(Q36:Q51) -> 33.04950698 | R52: =SUM(R36:R51) -> 29.07303297 | S52: =SUM(S36:S51) -> 15.43808188 | T52: =SUM(T36:T51) -> 246.2780055 | U52: _________
B53: =+F4 -> 1500 | C53: 0.4655820134 | D53: 0.8327269359 | F53: =+G4 -> 0.69 | G53: 1012.134812 | I53: 1810.275948
B54: =SUM(B53+50) -> 1550 | C54: 0.4505632388 | D54: 0.8058647767 | F54: =SUM(F53+0.05) -> 0.74 | G54: 943.7473245 | I54: 1687.960005
B55: =SUM(B54+50) -> 1600 | C55: 0.4364831376 | D55: 0.7806815024 | F55: =SUM(F54+0.05) -> 0.79 | G55: 884.0164812 | I55: 1581.127093
B56: 1650 | C56: 0.4232563758 | D56: 0.7570244872 | F56: 0.84 | G56: 831.3964525 | I56: 1487.012386
B57: 1700 | C57: 0.4108076589 | D57: 0.7347590611 | F57: 0.89 | G57: 784.6887867 | I57: 1403.472364
B58: 1750 | C58: 0.3990702972 | D58: 0.7137659451 | F58: 0.94 | G58: 742.9500214 | I58: 1328.819579

Sheet Canola (hidden)
B1: 2019 Canola, Conventional Tillage, Non-Irrigated Budget | L1: Table 1. Fertilizer & Lime
E2: Unit | F2: Quantity | G2: Price | H2: Total | J2: Your Farm | L2: Fertilizer | M2: Description | N2: Quantity (lbs) | O2: Price ($) | P2: Total ($/Acre) | Q2: Your Farm ($/Acre)
B3: Revenue | E3: Gross Revenue ($/Acre) | L3: Nitrogen | M3: Urea | N3: 160 | O3: =+Inputs!C44 -> 0.64 | P3: =+N3*O3 -> 102.4 | Q3: _________
C4: Canola 1 | E4: Bu | F4: 50 | G4: =Inputs!#REF! ->  | H4: =F4*G4 ->  | J4: _________ | L4: Phosphorous | M4: P2O5 | N4: 80 | O4: =Inputs!C48 -> 0.73 | P4: =+N4*O4 -> 58.4 | Q4: _________
B5: Total Revenue | H5: =SUM(H4:H4) ->  | J5: _________ | L5: Potassium | M5: K20 | N5: 130 | O5: =+Inputs!C50 -> 0.41 | P5: 53.3 | Q5: _________
B6: Variable Expenses | L6: Lime | M6: Limestone | N6: 1000 | O6: =+Inputs!C51 -> 30 | P6: =+N6/2000*O6 -> 15 | Q6: _________
C7: Seed 2 | E7: Thous. | F7: 220 | G7: =Inputs!#REF! ->  | H7: =+F7*G7 ->  | J7: _________ | L7: Other | M7: Sulfur | N7: 20 | O7: =+Inputs!C54 -> 1.25 | P7: 25 | Q7: _________
C8: Fertilizer & Lime (Table 1) | E8: Acre | F8: 1 | G8: =+P9 -> 254.46 | H8: =+F8*G8 -> 254.46 | J8: _________ | L8: Other | M8: Boron | N8: 0.5 | O8: =+Inputs!C52 -> 0.72 | P8: =+N8*O8 -> 0.36 | Q8: _________
C9: Chemical (Table 2) 3 | E9: Acre | F9: 1 | G9: =+S20 ->  | H9: =F9*G9 ->  | J9: _________ | L9: Total | P9: =SUM(P3:P8) -> 254.46 | Q9: _________
C10: Crop Scout | E10: Acre | F10: 1 | G10: =+Inputs!C18 -> 10 | H10: =F10*G10 -> 10 | J10: _________ | L10: Table 2. Chemicals 3
C11: Repair & Maintenance (Table 3) 4 | E11: Acre | F11: 1 | G11: =+Q35 -> 40.82179114 | H11: =+F11*G11 -> 40.82179114 | J11: _________ | L11: Chemical | M11: Function | N11: Description | O11: Unit | P11: Number of Apps. | Q11: Quantity | R11: Price | S11: Total ($/Acre) | T11: Your Farm ($/Acre)
C12: Fuel, Oil & Filter (Table 3) 4 | E12: Acre | F12: 1 | G12: =+R35 -> 20.31693116 | H12: 20.31693116 | J12: _________ | L12: Herbicides | M12: Pre-plant | N12: Treflan | O12: pt. | P12: 1 | Q12: 2 | R12: =Herbicides!B106 -> 4.38 | S12: =R12*Q12 -> 8.76 | T12: _________
C13: Operator Labor (Table 3) 4 | E13: Acre | F13: 1 | G13: =+S35 -> 12.3375088 | H13: 12.3375088 | J13: _________ | M13: Post-planting | N13: Roundup | O13: pt. | P13: 2 | Q13: 3 | R13: =Herbicides!B93 -> 0.2 | S13: =R13*Q13 -> 0.6 | T13: _________
C14: Machinery Rental | E14: Acre | F14: 1 | G14: 0 | H14: 0 | J14: _________ | N14: Command | O14: pt. | P14: 1 | Q14: 0.25 | R14: =Herbicides!B32 -> 20 | S14: 5 | T14: _________
C15: Custom Work | E15: Acre | F15: 1 | G15: 0 | H15: 0 | J15: _________ | M15: Desiccant | N15: Reglone | O15: pt. | P15: 1 | Q15: 3 | R15: =Herbicides!#REF! ->  | T15: _________
C16: Drying (Fuel/Electric) | E16: Bu | F16: =+F4 -> 50 | G16: 0 | H16: 0 | J16: _________ | N16: Other | R16: 0 | S16: 0 | T16: _________
C17: Cash Rent 5 | E17: Acre | F17: 1 | G17: =+Inputs!C23 -> 117 | H17: =F17*G17 -> 117 | J17: _________ | N17: Other | R17: 0 | S17: 0 | T17: _________
C18: Crop Insurance 6 | E18: Acre | F18: 1 | G18: =+Inputs!#REF! ->  | H18: =F18*G18 ->  | J18: _________ | L18: Insecticides | N18: Seed Treatment | O18: acre | P18: 1 | Q18: 1 | R18: =+Insecticides!#REF! ->  | T18: _________
C19: Operating Interest 7 | E19: % | F19: =SUM(H7:H18,H20) ->  | G19: 0.06 | H19: =(F19*G19)/2 ->  | J19: _________ | L19: Fungicides | N19: Foliar | O19: acre | P19: 1 | Q19: 1 | R19: =+Fungicides!#REF! ->  | T19: _________
C20: Other Variable Costs | E20: Acre | F20: 1 | G20: 0 | H20: =F20*G20 -> 0 | J20: _________ | L20: Total | S20: =SUM(S12:S19) ->  | T20: _________
B21: Total Variable Expenses | H21: =SUM(H7:H20) ->  | J21: _________ | L21: Table 3. Machinery 4
B22: Return Above Variable Expenses | H22: =H5-H21 ->  | J22: _________ | M22: Power Unit | N22: Implement | O22: Size | P22: Capital Recovery | Q22: Repairs & Maintenance | R22: Fuel, Oil & Filter | S22: Labor | T22: Total | U22: Your Farm ($/Acre)
B23: Fixed Expenses | L23: Fall/Winter | M23: ='Field Operations'!C11 -> SP Boom Sprayer | O23: ='Field Operations'!E11 -> 90' | P23: ='Field Operations'!F11 -> 9.179604108 | Q23: ='Field Operations'!G11 -> 0.2942877349 | R23: ='Field Operations'!H11 -> 0.3847708333 | S23: ='Field Operations'!I11 -> 0.318287037 | T23: =SUM(P23:S23) -> 10.17694971 | U23: _________
C24: Machinery 4 | M24: ='Field Operations'!C5 -> Tractor, 215 hp | N24: ='Field Operations'!D5 -> Tandem Disk | O24: ='Field Operations'!E5 -> 29' | P24: ='Field Operations'!F5 -> 11.61881621 | Q24: ='Field Operations'!G5 -> 2.086710265 | R24: ='Field Operations'!H5 -> 2.809685598 | S24: ='Field Operations'!I5 -> 1.859364435 | T24: =SUM(P24:S24) -> 18.37457651 | U24: _________
C25: Capital Recovery (Table 3) | E25: Acre | F25: 1 | G25: =+P35 -> 118.3523038 | H25: =+F25*G25 -> 118.3523038 | J25: _________ | M25: ='Field Operations'!C9 -> Tractor, 215 hp | N25: ='Field Operations'!D9 -> Grain Drill | O25: ='Field Operations'!E9 -> 20' | P25: ='Field Operations'!F9 -> 12.62776552 | Q25: ='Field Operations'!G9 -> 5.408117902 | R25: ='Field Operations'!H9 -> 4.452348214 | S25: ='Field Operations'!I9 -> 2.946428571 | T25: =SUM(P25:S25) -> 25.43466021 | U25: _________
C26: Other Fixed Machinery Costs | E26: Acre | F26: 1 | G26: =+Inputs!C30 -> 0 | H26: =+F26*G26 -> 0 | J26: _________ | M26: ='Field Operations'!C10 -> Tractor, 215 hp | N26: ='Field Operations'!D10 -> Fertilizer Spreader | O26: ='Field Operations'!E10 -> 0 | P26: ='Field Operations'!F10 -> 5.248807987 | Q26: ='Field Operations'!G10 -> 1.66135077 | R26: ='Field Operations'!H10 -> 2.54419898 | S26: ='Field Operations'!I10 -> 1.683673469 | T26: ='Field Operations'!J10 -> 11.13803121 | U26: _________
C27: Property Taxes | E27: Acre | F27: 1 | G27: =+Inputs!C31 -> 0 | H27: =+F27*G27 -> 0 | J27: _________ | L27: Winter/Spring | M27: ='Field Operations'!C11 -> SP Boom Sprayer | O27: ='Field Operations'!E11 -> 90' | P27: ='Field Operations'!F11 -> 9.179604108 | Q27: ='Field Operations'!G11 -> 0.2942877349 | R27: ='Field Operations'!H11 -> 0.3847708333 | S27: ='Field Operations'!I11 -> 0.318287037 | T27: ='Field Operations'!J11 -> 10.17694971 | U27: _________
C28: Insurance (Non-Machinery) | E28: Acre | F28: 1 | G28: =+Inputs!C32 -> 0 | H28: =+F28*G28 -> 0 | J28: _________ | M28: ='Field Operations'!C11 -> SP Boom Sprayer | O28: ='Field Operations'!E11 -> 90' | P28: ='Field Operations'!F11 -> 9.179604108 | Q28: ='Field Operations'!G11 -> 0.2942877349 | R28: ='Field Operations'!H11 -> 0.3847708333 | S28: ='Field Operations'!I11 -> 0.318287037 | T28: ='Field Operations'!J11 -> 10.17694971 | U28: _________
C29: Management Labor 8 | E29: Acre | F29: 2 | G29: =+Inputs!C33 -> 25 | H29: =+F29*G29 -> 50 | J29: _________ | M29: ='Field Operations'!C11 -> SP Boom Sprayer | O29: ='Field Operations'!E11 -> 90' | P29: ='Field Operations'!F11 -> 9.179604108 | Q29: ='Field Operations'!G11 -> 0.2942877349 | R29: ='Field Operations'!H11 -> 0.3847708333 | S29: ='Field Operations'!I11 -> 0.318287037 | T29: =SUM(P29:S29) -> 10.17694971 | U29: _________
C30: Other Fixed Costs 9 | E30: Acre | F30: 1 | G30: 0 | H30: =+F30*G30 -> 0 | J30: _________ | M30: =+'Field Operations'!C11 -> SP Boom Sprayer | O30: =+'Field Operations'!E11 -> 90' | P30: =+'Field Operations'!F11 -> 9.179604108 | Q30: =+'Field Operations'!G11 -> 0.2942877349 | R30: =+'Field Operations'!H11 -> 0.3847708333 | S30: =+'Field Operations'!I11 -> 0.318287037 | T30: =+'Field Operations'!J11 -> 10.17694971 | U30: _________
B31: Total Fixed Expenses | H31: =+SUM(H25:H29) -> 168.3523038 | J31: _________ | L31: ='Field Operations'!B13 -> Harvest | M31: ='Field Operations'!C13 -> Combine | N31: ='Field Operations'!D13 -> Grain Head | O31: ='Field Operations'!E13 -> 30' | P31: ='Field Operations'!F13 -> 29.77963402 | Q31: ='Field Operations'!G13 -> 28.88903352 | R31: ='Field Operations'!H13 -> 6.678522321 | S31: ='Field Operations'!I13 -> 2.455357143 | T31: =SUM(P31:S31) -> 67.802547 | U31: _________
B32: Return Above All Specified Expenses | H32: =H5-H21-H31 ->  | J32: _________ | M32: ='Field Operations'!C14 -> Tractor, 215 hp | N32: ='Field Operations'!D14 -> Grain Cart | P32: ='Field Operations'!F14 -> 7.009259565 | Q32: ='Field Operations'!G14 -> 0.8751400134 | R32: ='Field Operations'!H14 -> 1.558321875 | S32: ='Field Operations'!I14 -> 1.03125 | T32: =SUM(P32:S32) -> 10.47397145 | U32: _________
M33: ='Field Operations'!C17 -> Semi Tractor/Trailer | O33: ='Field Operations'!E14 -> 800 bu | P33: ='Field Operations'!F17 -> 6.17 | Q33: ='Field Operations'!G17 -> 0.43 | R33: ='Field Operations'!H17 -> 0.35 | S33: ='Field Operations'!I17 -> 0.77 | T33: ='Field Operations'!J17 -> 7.72 | U33: _________
B34: Breakeven Price For Selected Yield | F34: Breakeven Yield for Selected Price | M34: Other | U34: _________
B35: Yield (bu) | C35: Variable Cost ($/bu) | D35: Total Specified Cost ($/bu) | F35: Price ($/bu) | G35: Variable Cost (bu) | I35: Total Specified Cost (bu) | L35: Total | P35: =SUM(P22:P34) -> 118.3523038 | Q35: =SUM(Q22:Q34) -> 40.82179114 | R35: 20.31693116 | S35: 12.3375088 | T35: 191.8285349 | U35: _________
B36: =SUM(B37-5) -> 30 | C36: =$H$21/B36 ->  | D36: =($H$21+$H$31)/B36 ->  | F36: =SUM(F37-0.25) ->  | G36: =+$H$21/F36 ->  | I36: =+($H$21+$H$31)/F36 -> 
B37: 35 | G37: =+$H$21/F37 -> 
B38: 40
B39: =SUM(B40-5) -> 45 | F39: =SUM(F40-0.25) -> 
B40: =+F4 -> 50 | F40: =+G4 -> 
B41: =SUM(B40+5) -> 55 | F41: =SUM(F40+0.25) -> 
B42: =SUM(B41+5) -> 60 | F42: =SUM(F41+0.25) -> 
B43: 65
B44: 70
B46: FOOTNOTES
B47: 1) Canola prices will vary across regions. Additionally, access to markets in Tennessee may be problematic. Should a producer consider adding canola to their rotation, a production contract and/or marketing strategy should be fully explored prior to the planting decision, as limited buyers are available. Counter party risk is a major concern for small acreage crops. Canola yields vary tremendously across the state. Depending on growing conditions and management practices yields may range from 30-80 bu/acre.
B48: 2) Seed cost varies by seed provider, variety, and seeding rate. Check with farm suppliers for rebates, discounts, and incentives for seed and chemicals. Substantial cost savings may be available. Check with market contractor to determine if additional cost savings are available for products and services.
B49: 3) Chemical application will vary by region: Check seed supplier or production specialist for best alternatives. Since only a few herbicides are available for weed control for canola in Tennessee, producers should follow crop production recommendations. Producers should be aware that many chemicals used in the production of other row-crops in Tennessee may have a detrimental impact on canola.
B50: 4) Machinery expenses will vary dramatically by operation, financial resources, and land base. The machinery cost estimates provided in Table 3 are provided as an estimate of cost of ownership and operation for specified pieces of machinery that would be available to a "representative" row-crop farm in Tennessee. To estimate machinery costs for a specific set of equipment, interested parties can utilize the Excel version of the budgets and modify the Machinery Assumptions Table.
B51: 5) Cash rental rates are the 2018 USDA-NASS reported cash rental rates for cropland in Tennessee. Substantial differences may exist in cash rental rates reported by NASS and the prevailing rate in your location.
B52: 6) Crop insurance is an estimate and will vary by policy, county, and coverage election. The estimate provided is the average premium paid per insured acre of canola in Tennessee for the previous production year as reported by USDA RMA's Summary of Business Report.
B53: 7) Operating interest is assumed to be charged on half of all variable expenses.
B54: 8) Management labor is anticipated to be double what it is for conventional Tennessee row-crops.
B55: 9) Additional costs may be incurred due to specialized equipment required in the handling, hauling, and storage of canola.

Sheet G. Sorghum NT
B1: 2026 Grain Sorghum, No-Till, Non-Irrigated Budget | L1: Table 1. Fertilizer & Lime3
E2: Unit | F2: Quantity | G2: Price | H2: Total | J2: Your Farm | L2: Fertilizer | M2: Description | N2: Quantity (lbs.) | O2: Price ($) | P2: Total ($/Acre) | Q2: Your Farm ($/Acre)
B3: Revenue1 | E3: Gross Revenue ($/Acre) | L3: Nitrogen | M3: Urea | N3: 45 | O3: =+Inputs!C44 -> 0.64 | P3: =+N3*O3 -> 28.8 | Q3: _________
C4: Grain Sorghum | E4: Bu | F4: 125 | G4: =+Inputs!C6 -> 4.55 | H4: =F4*G4 -> 568.75 | J4: _________ | L4: Nitrogen | M4: 32% UAN | N4: 45 | O4: =Inputs!C47 -> 0.74 | P4: =+N4*O4 -> 33.3 | Q4: _________
B5: Total Revenue | H5: =SUM(H4:H4) -> 568.75 | J5: _________ | L5: Phosphorous | M5: P2O5 | N5: 30 | O5: =+Inputs!C48 -> 0.73 | P5: =+N5*O5 -> 21.9 | Q5: _________
B6: Variable Expenses | L6: Potassium | M6: K20 | N6: 30 | O6: =+Inputs!C50 -> 0.41 | P6: =+N6*O6 -> 12.3 | Q6: _________
C7: Seed 2 | E7: Thous. | F7: 85 | G7: =+Inputs!C39 -> 0.3 | H7: =+F7*G7 -> 25.5 | J7: _________ | L7: Lime | N7: 1000 | O7: =+Inputs!C51 -> 30 | P7: =+N7/2000*O7 -> 15 | Q7: _________
C8: Fertilizer & Lime (Table 1) | E8: Acre | F8: 1 | G8: =P8 -> 111.3 | H8: =+F8*G8 -> 111.3 | J8: _________ | L8: Total | P8: =SUM(P3:P7) -> 111.3 | Q8: _________
C9: Chemical (Table 2) | E9: Acre | F9: 1 | G9: =S20 -> 72.735 | H9: =F9*G9 -> 72.735 | J9: _________ | L9: Table 2. Chemicals 4
C10: Crop Scout | E10: Acre | F10: 1 | G10: =+Inputs!C18 -> 10 | H10: =F10*G10 -> 10 | J10: _________ | L10: Chemical | M10: Function | N10: Description | O10: Unit | P10: Number of Apps. | Q10: Quantity | R10: Price | S10: Total ($/Acre) | T10: Your Farm ($/Acre)
C11: Repair & Maintenance (Table 3) | E11: Acre | F11: 1 | G11: =+Q34 -> 38.74638379 | H11: =+F11*G11 -> 38.74638379 | J11: _________ | L11: Herbicides | M11: Burndown | N11: Gramoxone SL | O11: oz. | P11: 1 | Q11: 28 | R11: =+Herbicides!B62 -> 0.17 | S11: =P11*Q11*R11 -> 4.76 | T11: _________
C12: Fuel, Oil & Filter (Table 3) | E12: Acre | F12: 1 | G12: =+R34 -> 18.43651459 | H12: 18.43651459 | J12: _________ | N12: Other | R12: 0 | S12: =P12*Q12*R12 -> 0 | T12: _________
C13: Operator Labor (Table 3) | E13: Acre | F13: 1 | G13: =+S34 -> 11.79192773 | H13: 11.79192773 | J13: _________ | M13: Pre-Emerge | N13: Bicep II Magnum | O13: qt. | P13: 1 | Q13: 1.7 | R13: =+Herbicides!B19 -> 11.75 | S13: =P13*Q13*R13 -> 19.975 | T13: _________
C14: Machinery Rental | E14: Acre | F14: 0 | G14: 0 | H14: 0 | J14: _________ | N14: Other | R14: 0 | S14: 0 | T14: _________
C15: Custom Work | E15: Acre | F15: 0 | G15: 0 | H15: 0 | J15: _________ | M15: Post-Emerge | N15: Atrazine | O15: qt. | P15: 1 | Q15: 2 | R15: =+Herbicides!B10 -> 4.5 | S15: 9 | T15: _________
C16: Drying (Fuel/Electric) | E16: Bu | F16: =+F4 -> 125 | G16: 0 | H16: 0 | J16: _________ | M16: Harvest Aid | N16: Aim 2EC | O16: oz. | P16: 1 | Q16: 1.5 | R16: =+Herbicides!B6 -> 6 | S16: 9 | T16: _________
C17: Crop Insurance6 | E17: Acre | F17: 1 | G17: =+Inputs!C27 -> 6.27 | H17: =F17*G17 -> 6.27 | J17: _________ | L17: Insecticides | N17: Foliar | O17: acre | P17: 1 | Q17: 1 | R17: =Insecticides!B5 -> 30 | S17: =P17*Q17*R17 -> 30 | T17: _________
C18: Other | E18: Acre | F18: 1 | G18: 0 | H18: =F18*G18 -> 0 | J18: _________ | N18: Other | O18: acre | R18: 0 | S18: 0 | T18: _________
C19: Other | E19: Acre | F19: 1 | G19: 0 | H19: =(F19*G19)/2 -> 0 | J19: _________ | N19: Other | O19: acre | R19: 0 | S19: =P19*Q19*R19 -> 0 | T19: _________
C20: Operating Interest 7 | E20: % | F20: =SUM(H7:H19) -> 294.7798261 | G20: =+Inputs!C14 -> 0.075 | H20: =(F20*G20)/2 -> 11.05424348 | J20: _________ | L20: Total | S20: =SUM(S11:S19) -> 72.735 | T20: _________
B21: Total Variable Expenses | H21: =SUM(H7:H20) -> 305.8340696 | J21: _________ | L21: Table 3. Machinery 5
B22: Return Above Variable Expenses | H22: =H5-H21 -> 262.9159304 | J22: _________ | M22: Power Unit | N22: Implement | O22: Size | P22: Capital Recovery | Q22: Repairs & Maintenance | R22: Fuel, Oil & Filter | S22: Labor | T22: Total | U22: Your Farm ($/Acre)
B23: Fixed Expenses | L23: Burndown | M23: SP Boom Sprayer | O23: 90' | P23: =+'Field Operations'!F11 -> 9.179604108 | Q23: =+'Field Operations'!G11 -> 0.2942877349 | R23: =+'Field Operations'!H11 -> 0.3847708333 | S23: =+'Field Operations'!I11 -> 0.318287037 | T23: =SUM(P23:S23) -> 10.17694971 | U23: _________
C24: Machinery | L24: Plant | M24: Tractor, 215 hp | N24: Planter | O24: 16-row | P24: =+'Field Operations'!F8 -> 15.75385927 | Q24: =+'Field Operations'!G8 -> 2.938070049 | R24: =+'Field Operations'!H8 -> 2.397418269 | S24: =+'Field Operations'!I8 -> 1.586538462 | T24: =SUM(P24:S24) -> 22.67588605 | U24: _________
C25: Capital Recovery (Table 3) | E25: Acre | F25: 1 | G25: =+P34 -> 116.6183894 | H25: =+F25*G25 -> 116.6183894 | J25: _________ | L25: Fertilize | M25: Tractor, 215 hp | N25: Fertilize Spreader | P25: ='Field Operations'!F10 -> 5.248807987 | Q25: ='Field Operations'!G10 -> 1.66135077 | R25: ='Field Operations'!H10 -> 2.54419898 | S25: ='Field Operations'!I10 -> 1.683673469 | T25: ='Field Operations'!J10 -> 11.13803121 | U25: _________
C26: Other Fixed Machinery Costs | E26: Acre | F26: 1 | G26: 0 | H26: =+F26*G26 -> 0 | J26: _________ | L26: Weed Control | M26: SP Boom Sprayer | O26: 90' | P26: =+'Field Operations'!F11 -> 9.179604108 | Q26: =+'Field Operations'!G11 -> 0.2942877349 | R26: =+'Field Operations'!H11 -> 0.3847708333 | S26: =+'Field Operations'!I11 -> 0.318287037 | T26: =SUM(P26:S26) -> 10.17694971 | U26: _________
C27: General Overhead | E27: Acre | F27: 1 | G27: 20 | H27: =+F27*G27 -> 20 | J27: _________ | L27: Fertilize | M27: Tractor, 215 hp | N27: Fertilize Spreader | P27: =+'Field Operations'!F10 -> 5.248807987 | Q27: =+'Field Operations'!G10 -> 1.66135077 | R27: =+'Field Operations'!H10 -> 2.54419898 | S27: =+'Field Operations'!I10 -> 1.683673469 | T27: =SUM(P27:S27) -> 11.13803121 | U27: _________
C28: Cash Rent8 | E28: Acre | F28: 1 | G28: =Inputs!C23 -> 117 | H28: =+F28*G28 -> 117 | J28: _________ | L28: Weed Control | M28: SP Boom Sprayer | O28: 90' | P28: =+'Field Operations'!F11 -> 9.179604108 | Q28: =+'Field Operations'!G11 -> 0.2942877349 | R28: =+'Field Operations'!H11 -> 0.3847708333 | S28: =+'Field Operations'!I11 -> 0.318287037 | T28: =SUM(P28:S28) -> 10.17694971 | U28: _________
C29: Management Labor10 | E29: Acre | F29: 1 | G29: =+Inputs!C13 -> 25 | H29: =+F29*G29 -> 25 | J29: _________ | L29: Insecticide | M29: SP Boom Sprayer | O29: 90' | P29: =+'Field Operations'!F11 -> 9.179604108 | Q29: =+'Field Operations'!G11 -> 0.2942877349 | R29: =+'Field Operations'!H11 -> 0.3847708333 | S29: =+'Field Operations'!I11 -> 0.318287037 | T29: =SUM(P29:S29) -> 10.17694971 | U29: _________
C30: Other Fixed Costs | E30: Acre | F30: 1 | G30: 0 | H30: =+F30*G30 -> 0 | J30: _________ | L30: Insecticide | M30: SP Boom Sprayer | O30: 90' | P30: =+'Field Operations'!F11 -> 9.179604108 | Q30: =+'Field Operations'!G11 -> 0.2942877349 | R30: =+'Field Operations'!H11 -> 0.3847708333 | S30: =+'Field Operations'!I11 -> 0.318287037 | T30: =SUM(P30:S30) -> 10.17694971 | U30: _________
B31: Total Fixed Expenses | H31: =+SUM(H25:H30) -> 278.6183894 | J31: _________ | L31: Harvest | M31: Combine | N31: Grain Head | O31: 30' | P31: =+'Field Operations'!F13 -> 29.77963402 | Q31: =+'Field Operations'!G13 -> 28.88903352 | R31: =+'Field Operations'!H13 -> 6.678522321 | S31: =+'Field Operations'!I13 -> 2.455357143 | T31: 36.77389921 | U31: _________
B32: Total Expenses | H32: =H21+H31 -> 584.452459 | J32: _________ | L32: Haul | M32: Tractor, 215 hp | N32: Grain Cart | P32: =+'Field Operations'!F14 -> 7.009259565 | Q32: =+'Field Operations'!G14 -> 0.8751400134 | R32: =+'Field Operations'!H14 -> 1.558321875 | S32: =+'Field Operations'!I14 -> 1.03125 | T32: =SUM(P32:S32) -> 10.47397145 | U32: _________
B33: Return Above All Specified Expenses | H33: =H5-H21-H31 -> -15.70245896 | J33: _________ | L33: Haul | M33: Semi Tractor/Trailer | P33: =+'Field Operations'!F16 -> 7.68 | Q33: =+'Field Operations'!G16 -> 1.25 | R33: =+'Field Operations'!H16 -> 0.79 | S33: =+'Field Operations'!I16 -> 1.76 | T33: 9.93 | U33: _________
G34: Cash Cost per lb | H34: =(SUM(H7:H20)+H27+H28)/F4 -> 3.542672557 | J34: _________ | L34: Total | P34: =SUM(P23:P33) -> 116.6183894 | Q34: =SUM(Q23:Q33) -> 38.74638379 | R34: =SUM(R23:R33) -> 18.43651459 | S34: =SUM(S23:S33) -> 11.79192773 | T34: =SUM(T23:T33) -> 153.0145677 | U34: _________
G35: Economic Cost per lb | H35: =H32/F4 -> 4.675619672 | J35: _________
B37: Breakeven Price for Selected Yield | F37: Breakeven Yield for Selected Price
B38: Yield (bu) | C38: Variable Cost ($/bu) | D38: Total Specified Cost ($/bu) | F38: Price ($/bu) | G38: Variable Cost (bu) | I38: Total Specified Cost (bu)
B39: =SUM(B40-5) -> 105 | C39: =$H$21/B39 -> 2.912705425 | D39: =($H$21+$H$31)/B39 -> 5.566213895 | F39: =SUM(F40-0.05) -> 4.35 | G39: =+$H$21/F39 -> 70.30668266 | I39: =+($H$21+$H$31)/F39 -> 134.3568871
B40: 110 | C40: 2.780309724 | D40: 5.313204172 | F40: 4.4 | G40: =+$H$21/F40 -> 69.50774309 | I40: 132.8301043
B41: 115 | C41: 2.659426692 | D41: 5.082195295 | F41: 4.45 | G41: 68.72675721 | I41: 131.3376312
B42: =SUM(B43-5) -> 120 | C42: 2.548617247 | D42: 4.870437158 | F42: =SUM(F43-0.05) -> 4.5 | G42: 67.96312658 | I42: 129.8783242
B43: =+F4 -> 125 | C43: 2.446672557 | D43: 4.675619672 | F43: =+G4 -> 4.55 | G43: 67.21627903 | I43: 128.4510899
B44: =SUM(B43+5) -> 130 | C44: 2.352569766 | D44: 4.495788146 | F44: =SUM(F43+0.05) -> 4.6 | G44: 66.4856673 | I44: 127.0548824
B45: =SUM(B44+5) -> 135 | C45: 2.265437553 | D45: 4.329277474 | F45: =SUM(F44+0.05) -> 4.65 | G45: 65.77076765 | I45: 125.6887009
B46: 140 | C46: 2.184529069 | D46: 4.174660421 | F46: 4.7 | G46: 65.07107864 | I46: 124.351587
B47: 145 | C47: 2.10920048 | D47: 4.030706614 | F47: 4.75 | G47: 64.38611991 | I47: 123.0426229

Sheet Footnotes
A1: FOOTNOTES
A2: 1 Revenue
A3: Corn price was estimated using weighted average futures prices from September 2026 to July 2027, adjusted by five year average monthly basis in Tennessee. Corn yield is the predicted 2026 linear trend line yield for corn in Tennessee, using state average USDA-NASS yields from 2005-2025. Irrigated corn yield was estimated at 250 bu/acre.
A4: Soybean price was estimated using weighted average futures prices from November 2026 to August 2027, adjusted by average monthly basis in Tennessee. Soybean yield is the predicted 2026 linear trend line yield for soybeans in Tennessee, using state average USDA-NASS yields from 2005-2025. Irrigated soybean yield was estimated at 65 bu/acre.
A5: Wheat/Soybean. Soybean yield is the predicted 2026 linear trend line yield for soybeans in Tennessee, adjusted for double cropping system. Wheat price was estimated using weighted average futures prices from July 2026 to May 2027, adjusted by average monthly basis in Tennessee. Wheat yield is the predicted 2026 linear trend line yield for wheat in Tennessee, using state average yields from 2005-2025. If a market for wheat straw is available, add an appropriate amount to other revenue ($/acre) based on the expected yield and price of the straw, being sure to account for additional harvest and marketing costs.
A6: Cotton price was estimated using weighted average futures prices from December 2026 to July 2027, adjusted by average monthly basis in Tennessee. Cotton yield is the predicted 2026 linear trend line yield for cotton in Tennessee, using state average yields from 2005-2025. Most ginning arrangements provide producers cottonseed revenue net ginning costs, which should be included as additional revenue.
A7: Sorghum price is estimated 10 cents above the price of corn, based on expected market conditions. Due to low acres and limited market access, prices may swing dramatically. Recently, in Tennessee, sorghum has been 10-25 cents above the price of corn.
A9: 2 Seed Costs
A10: Corn: Assumes a bag of seed costs $294.40 and contains 80,000 seeds ($3.68/thousand seeds). Seeding rate of 32,000 seeds/acre (36,500 for irrigated). Seed treatment is included in the price. Seed cost varies by variety. Seed treatments included.
A11: Soybeans: Assumes a bag of seed costs $63 and contains 140,000 seeds ($0.45/thousand seeds). Seeding rate of 140,000 seeds/acre (150,000 for irrigated). Seed treatment is included in the price. Seed cost varies by variety. Seed treatments included. | H11: =3.1*50 -> 155
A12: Wheat: Assumes seeding rate of 2.5 bu/acre at $15.50 per bushel. Seed treatment is included in the price. Seed cost varies by variety. Seed treatments included.
A13: Cotton: Assumes $3.05/thousand seeds. Seeding rate of 50,000 seeds/acre (60,000 for irrigated). Seed treatment is included in the price. Seed cost varies by variety. Seed treatments included.
A14: Check with farm suppliers for rebates, discounts and incentives for seed and chemicals. Substantial cost savings may be available.
A16: 3 Fertilizer and Lime
A17: Lime is assumed to be applied once every four years at a rate of 2 tons per acre (includes the cost of application). N, P and K quantities and prices are shown in elemental lb. Check with farm suppliers for rebates, discounts and incentives for fertilizers, seed and chemicals. Substantial cost savings may be available. Substantial variation in prices for fertilizer exist based on quantity purchased, product purchased and location of purchase.
A19: 4 Chemicals
A20: Assumes a normal crop rotation with minimal weed infestation. A continuous monocrop system may require additional expenses for chemicals and/or land preparation. Weed control chemicals should be selected for specific weed or grass problems that are present. Generic chemicals may be a cost-effective option; contact your chemical supplier, qualified consultant or weed control specialist. Alternative weed control options are available in the University of Tennessee Weed Control Manual for Tennessee. Follow all labels, state and national regulations when using all chemicals. Check with farm suppliers for rebates, discounts and incentives for seed and chemicals. Substantial cost savings may be available. Seed treatments, such as some nematicide treatments, are optional and costs vary depending on product used.
A22: 5 Machinery
A23: Machinery expenses will vary dramatically by operation, financial resources and land base. The machinery cost estimates provided in Table 3 are provided as an estimate of cost of ownership and operation for specified pieces of machinery that would be available to a "representative" row-crop farm in Tennessee. To estimate machinery costs for a specific set of equipment, interested parties can utilize the Excel version of the budgets and modify the Machinery Assumptions Table.
A25: 6 Crop Insurance
A26: Crop insurance is an estimate and will vary by policy, county and coverage election. The estimate provided is the average premium paid per insured acre for each commodity in Tennessee for the previous production year, as reported by USDA RMA's Summary of Business Report.
A28: 7 Operating Interest
A29: Operating interest is assumed to be charged on half of all variable expenses.
A31: 8 Cash Rental Rates
A32: Cash rental rates are the 2025 USDA-NASS reported cash rental rates for cropland in Tennessee. Substantial differences may exist in cash rental rates reported by NASS and the prevailing rate in your location.
A34: 9 Irrigation
A35: Center-pivot irrigation costs are estimated using the following assumptions: purchase price and installation cost of $95,000; useful life of 20 years; and an irrigated acreage of 125 acres. Well depth and energy source will dramatically impact irrigation costs. Irrigation rates should be adjusted to meet commodity- and farm-specific applications. Irrigation costs are site and energy-source specific.
A37: 10 Management Labor
A38: Management labor for irrigated acreage is assumed to be double that of dryland acres.

Sheet Field Operations
A1: Field Operations | S1: Machinery Assumptions
W2: Current Price | AA2: Efficiency Factor | AB2: Field Capacity | AC2: Repair Factors | AF2: Accumulated hours | AH2: Depreciation Factors | AQ2: R&M | AT2: Depreciation | AW2: Interest | AZ2: Taxes, Insurance, & Housing | BC2: Total Capital Recovery
A3: Commodity | B3: Process | C3: Power Unit | D3: Implement | E3: Size | F3: Capital Recovery | G3: Repair & Maintenance | H3: Fuel | I3: Labor | J3: Total | T3: Power | U3: Implement | V3: Size | W3: Power | X3: Implement | Y3: Speed | Z3: Width | AC3: RF1 | AD3: RF2 | AE3: Use (hrs) | AG3: Age | AH3: DF1 | AI3: DF2 | AJ3: DF3 | AK3: RVn | AL3: RVn-1 | AM3: Fuel | AN3: Oil and Filter | AO3: Total Fuel | AP3: Labor | AQ3: Tractor | AR3: Implement | AS3: Total | AT3: Implement | AU3: Tractor | AV3: Total | AW3: Implement | AX3: Tractor | AY3: Total | AZ3: Implement | BA3: Tractor | BB3: Total
A4: All | B4: Chisel | C4: Tractor, 215 hp | D4: Chisel Plow | E4: 21' | F4: =BC4 -> 7.153539609 | G4: =AS4 -> 2.123869033 | H4: =AO4 -> 3.492037815 | I4: 2.31092437 | J4: =SUM(F4:I4) -> 15.08037083 | S4: Chisel | T4: Tractor, 215 hp | U4: Chisel Plow | V4: 21' | W4: 325000 | X4: 35000 | Y4: 5 | Z4: 21 | AA4: 85 | AB4: =(Y4*Z4*(AA4/100))/8.25 -> 10.81818182 | AC4: 0.28 | AD4: 1.4 | AE4: =$AB$32/AB4 -> 92.43697479 | AF4: =AE4*5 -> 462.1848739 | AG4: =AF4/AE4 -> 5 | AH4: 0.7382 | AI4: 0.051 | AJ4: 0 | AK4: =X4*(AH4-AI4*(AG4^0.5)-AJ4*(AE4^0.5))^2 -> 13635.17299 | AL4: =X4*(AH4-AI4*((AG4-1)^0.5)-AJ4*(AE4^0.5))^2 -> 14166.2654 | AM4: =Inputs!$C$10*0.73*(0.06*250)*(1/AB4) -> 3.036554622 | AN4: =AM4*0.15 -> 0.4554831933 | AO4: =+AM4+AN4 -> 3.492037815 | AP4: =Inputs!$C$12*1.25*(1/AB4) -> 2.31092437 | AQ4: =((W4*$AC$27*(($AF$27+$AE$27)/1000)^$AD$27)-(W4*$AC$27*($AF$27/1000)^$AD$27))/$AE$27*(1/AB4) -> 1.156617647 | AR4: =((X4*AC4*((AF4+AE4)/1000)^AD4)-(X4*AC4*(AF4/1000)^AD4))/AE4*(1/AB4) -> 0.9672513858 | AS4: =AQ4+AR4 -> 2.123869033 | AT4: =((AL4-AK4)/AE4)*(1/AB4) -> 0.5310924101 | AU4: =(($AL$27-$AK$27)/$AE$27)*(1/AB4) -> 2.295476038 | AV4: =+AT4+AU4 -> 2.826568449 | AW4: =((Inputs!$C$15*AK4)/AE4)*(1/AB4) -> 0.8181103794 | AX4: =((Inputs!$C$15*$AK$27)/$AE$27)*(1/AB4) -> 1.607180109 | AY4: =AW4+AX4 -> 2.425290489 | AZ4: =(X4*0.02/AE4)*(1/AB4) -> 0.7 | BA4: =(W4*0.02/$AE$27)*(1/AB4) -> 1.201680672 | BB4: =+AZ4+BA4 -> 1.901680672 | BC4: =+AV4+AY4+BB4 -> 7.153539609
B5: Disk | C5: Tractor, 215 hp | D5: Tandem Disk | E5: 29' | F5: 11.61881621 | G5: 2.086710265 | H5: 2.809685598 | I5: 1.859364435 | J5: =SUM(F5:I5) -> 18.37457651 | S5: Disk | T5: Tractor, 215 hp | U5: Tandem Disk | V5: 29' | W5: 325000 | X5: 95000 | Y5: 4.5 | Z5: 29 | AA5: 85 | AB5: 13.44545455 | AC5: 0.18 | AD5: 1.7 | AE5: =$AB$32/AB5 -> 74.37457742 | AF5: =AE5*5 -> 371.8728871 | AG5: =AF5/AE5 -> 5 | AH5: 0.8906 | AI5: 0.1095 | AJ5: 0 | AK5: =X5*(AH5-AI5*(AG5^0.5)-AJ5*(AE5^0.5))^2 -> 39614.40921 | AL5: =X5*(AH5-AI5*((AG5-1)^0.5)-AJ5*(AE5^0.5))^2 -> 42849.4232 | AM5: =Inputs!$C$10*0.73*(0.06*250)*(1/AB5) -> 2.443204868 | AN5: 0.3664807302 | AO5: 2.809685598 | AP5: =Inputs!$C$12*1.25*(1/AB5) -> 1.859364435 | AQ5: 0.9306118999 | AR5: =((X5*AC5*((AF5+AE5)/1000)^AD5)-(X5*AC5*(AF5/1000)^AD5))/AE5*(1/AB5) -> 1.156098365 | AS5: 2.086710265 | AT5: =((AL5-AK5)/AE5)*(1/AB5) -> 3.235013989 | AU5: 1.846934744 | AV5: =+AT5+AU5 -> 5.081948732 | AW5: =((Inputs!$C$15*AK5)/AE5)*(1/AB5) -> 2.376864553 | AX5: =((Inputs!$C$15*$AK$27)/$AE$27)*(1/AB5) -> 1.293133421 | AY5: =AW5+AX5 -> 3.669997974 | AZ5: 1.9 | BA5: 0.9668695064 | BB5: =+AZ5+BA5 -> 2.866869506 | BC5: =+AV5+AY5+BB5 -> 11.61881621
B6: Prepare Seedbed | C6: Tractor, 215 hp | D6: Do-All | E6: 26.5' | F6: 7.463277784 | G6: 1.811688795 | H6: 2.940229953 | I6: 1.945754717 | J6: 14.16095125 | S6: Prepare Seedbed | T6: Tractor, 215 hp | U6: Do-All | V6: 26.5' | W6: 325000 | X6: 40000 | Y6: 5 | Z6: 26.5 | AA6: 80 | AB6: 12.84848485 | AC6: 0.27 | AD6: 1.4 | AE6: 77.83018868 | AF6: 389.1509434 | AG6: 5 | AH6: 0.891 | AI6: 0.11 | AJ6: 0 | AK6: 16642.6782 | AL6: 18009.64 | AM6: =Inputs!$C$10*0.73*(0.06*250)*(1/AB6) -> 2.556721698 | AN6: 0.3835082547 | AO6: 2.940229953 | AP6: =Inputs!$C$12*1.25*(1/AB6) -> 1.945754717 | AQ6: 0.9738502358 | AR6: 0.8378385593 | AS6: 1.811688795 | AT6: 1.366961798 | AU6: 1.932747513 | AV6: 3.299709311 | AW6: =((Inputs!$C$15*AK6)/AE6)*(1/AB6) -> 0.9985606921 | AX6: =((Inputs!$C$15*$AK$27)/$AE$27)*(1/AB6) -> 1.353215328 | AY6: 2.35177602 | AZ6: 0.8 | BA6: 1.011792453 | BB6: 1.811792453 | BC6: 7.463277784
B7: Prepare Seedbed | C7: Tractor, 215 hp | D7: Cultimulcher | E7: 20' | F7: 8.464357944 | G7: 2.377454393 | H7: 3.895804688 | I7: 2.578125 | J7: 17.31574202 | S7: Prepare Seedbed | T7: Tractor, 215 hp | U7: Cultimulcher | V7: 20' | W7: 325000 | X7: 35000 | Y7: 5 | Z7: 20 | AA7: 80 | AB7: 9.696969697 | AC7: 0.27 | AD7: 1.4 | AE7: 103.125 | AF7: 515.625 | AG7: 5 | AH7: 0.891 | AI7: 0.11 | AJ7: 0 | AK7: 14562.34343 | AL7: 15758.435 | AM7: =Inputs!$C$10*0.73*(0.06*250)*(1/AB7) -> 3.38765625 | AN7: 0.5081484375 | AO7: =+AM7+AN7 -> 3.895804688 | AP7: =Inputs!$C$12*1.25*(1/AB7) -> 2.578125 | AQ7: 1.290351562 | AR7: 1.08710283 | AS7: 2.377454393 | AT7: 1.196091573 | AU7: 2.560890455 | AV7: 3.756982029 | AW7: =((Inputs!$C$15*AK7)/AE7)*(1/AB7) -> 0.8737406056 | AX7: =((Inputs!$C$15*$AK$27)/$AE$27)*(1/AB7) -> 1.793010309 | AY7: 2.666750915 | AZ7: 0.7 | BA7: 1.340625 | BB7: 2.040625 | BC7: 8.464357944
B8: Plant | C8: Tractor, 215 hp | D8: Planter | E8: 16-row | F8: =BC8 -> 15.75385927 | G8: =AS8 -> 2.938070049 | H8: =AO8 -> 2.397418269 | I8: =AP8 -> 1.586538462 | J8: 22.67588605 | S8: Plant | T8: Tractor, 215 hp | U8: Planter | V8: 16-row | W8: 325000 | X8: 160000 | Y8: 5 | Z8: 40 | AA8: 65 | AB8: 15.75757576 | AC8: 0.32 | AD8: 2.1 | AE8: 63.46153846 | AF8: 317.3076923 | AG8: 5 | AH8: 0.883 | AI8: 0.078 | AJ8: 0 | AK8: 80335.21732 | AL8: 84564.64 | AM8: =Inputs!$C$10*0.73*(0.06*250)*(1/AB8) -> 2.084711538 | AN8: 0.3127067308 | AO8: 2.397418269 | AP8: =Inputs!$C$12*1.25*(1/AB8) -> 1.586538462 | AQ8: 0.7940625 | AR8: 2.144007549 | AS8: 2.938070049 | AT8: 4.229422682 | AU8: 1.575932588 | AV8: 5.80535527 | AW8: =((Inputs!$C$15*AK8)/AE8)*(1/AB8) -> 4.820113039 | AX8: =((Inputs!$C$15*$AK$27)/$AE$27)*(1/AB8) -> 1.10339096 | AY8: 5.923503999 | AZ8: 3.2 | BA8: 0.825 | BB8: 4.025 | BC8: 15.75385927
B9: Plant | C9: Tractor, 215 hp | D9: Grain Drill | E9: 20' | F9: 12.62776552 | G9: 5.408117902 | H9: 4.452348214 | I9: 2.946428571 | J9: 25.43466021 | S9: Plant | T9: Tractor, 215 hp | U9: Grain Drill | V9: 20 ft | W9: 325000 | X9: 80000 | Y9: 5 | Z9: 20 | AA9: 70 | AB9: 8.484848485 | AC9: 0.32 | AD9: 2.1 | AE9: 117.8571429 | AF9: 589.2857143 | AG9: 5 | AH9: 0.8826 | AI9: 0.0778 | AJ9: 0 | AK9: 40172.96163 | AL9: 42282.32 | AM9: =Inputs!$C$10*0.73*(0.06*250)*(1/AB9) -> 3.871607143 | AN9: 0.5807410714 | AO9: 4.452348214 | AP9: =Inputs!$C$12*1.25*(1/AB9) -> 2.946428571 | AQ9: 1.4746875 | AR9: 3.933430402 | AS9: 5.408117902 | AT9: 2.109358375 | AU9: 2.926731949 | AV9: 5.036090324 | AW9: =((Inputs!$C$15*AK9)/AE9)*(1/AB9) -> 2.410377698 | AX9: =((Inputs!$C$15*$AK$27)/$AE$27)*(1/AB9) -> 2.049154639 | AY9: 4.459532337 | AZ9: 1.6 | BA9: 1.532142857 | BB9: 3.132142857 | BC9: 12.62776552
B10: Fertilize | C10: Tractor, 215 hp | D10: Fertilizer Spreader | F10: 5.248807987 | G10: 1.66135077 | H10: 2.54419898 | I10: 1.683673469 | J10: 11.13803121 | S10: Fertilize | T10: Tractor, 215 hp | U10: Fertilizer Spreader | V10: 900# | W10: 325000 | X10: 20000 | Y10: 7 | Z10: 25 | AA10: 70 | AB10: 14.84848485 | AC10: 0.63 | AD10: 1.3 | AE10: 67.34693878 | AF10: 336.7346939 | AG10: 5 | AH10: 0.8826 | AI10: 0.0778 | AJ10: 0 | AK10: 10043.24041 | AL10: 10570.58 | AM10: =Inputs!$C$10*0.73*(0.06*250)*(1/AB10) -> 2.212346939 | AN10: 0.3318520408 | AO10: 2.54419898 | AP10: =Inputs!$C$12*1.25*(1/AB10) -> 1.683673469 | AQ10: 0.8426785714 | AR10: 0.8186721986 | AS10: 1.66135077 | AT10: 0.5273395937 | AU10: 1.672418257 | AV10: 2.19975785 | AW10: =((Inputs!$C$15*AK10)/AE10)*(1/AB10) -> 0.6025944244 | AX10: =((Inputs!$C$15*$AK$27)/$AE$27)*(1/AB10) -> 1.170945508 | AY10: 1.773539933 | AZ10: 0.4 | BA10: 0.8755102041 | BB10: 1.275510204 | BC10: 5.248807987
B11: Spray | C11: SP Boom Sprayer | E11: 90' | F11: 9.179604108 | G11: 0.2942877349 | H11: 0.3847708333 | I11: 0.318287037 | J11: 10.17694971 | S11: Weed Control | T11: SP Boom Sprayer | V11: 90' | X11: 300000 | Y11: 12 | Z11: 90 | AA11: 60 | AB11: =(Y11*Z11*(AA11/100))/8.25 -> 78.54545455 | AC11: 0.1 | AD11: 1.3 | AE11: =$AB$32*2.5/AB11 -> 31.8287037 | AF11: 159.1435185 | AG11: 5 | AH11: 0.8826 | AI11: 0.0778 | AJ11: 0 | AK11: 150648.6061 | AL11: 158558.7 | AM11: =Inputs!$C$10*0.73*(0.06*200)*(1/AB11) -> 0.3345833333 | AN11: 0.0501875 | AO11: 0.3847708333 | AP11: =Inputs!$C$12*1.25*(1/AB11) -> 0.318287037 | AQ11: 0 | AR11: 0.2942877349 | AS11: 0.2942877349 | AT11: 3.164037562 | AU11: 0 | AV11: 3.164037562 | AW11: =((Inputs!$C$15*AK11)/AE11)*(1/AB11) -> 3.615566546 | AX11: 0 | AY11: 3.615566546 | AZ11: =(X11*0.02/AE11)*(1/AB11) -> 2.4 | BA11: 0 | BB11: 2.4 | BC11: =+AV11+AY11+BB11 -> 9.179604108
B12: Harvest | C12: Combine | D12: Corn Head | E12: 8-row | F12: 40.09238289 | G12: 38.86883545 | H12: 8.904696429 | I12: 3.273809524 | J12: 91.1397243 | S12: Harvest | T12: Combine | U12: Corn Head | V12: 8-row | W12: 500000 | X12: 70000 | Y12: 4.5 | Z12: 20 | AA12: 70 | AB12: 7.636363636 | AC12: 0.05 | AD12: 2.3 | AE12: 130.952381 | AF12: 654.7619048 | AG12: 5 | AH12: 1.1318 | AI12: 0.1645 | AJ12: 0 | AK12: 40855.1709 | AL12: 45114.1488 | AM12: =Inputs!$C$10*0.73*(0.06*450)*(1/AB12) -> 7.743214286 | AN12: 1.161482143 | AO12: 8.904696429 | AP12: =Inputs!$C$12*1.25*(1/AB12) -> 3.273809524 | AQ12: =((W12*$AC$28*(($AF$28+$AE$28)/1000)^$AD$28)-(W12*$AC$28*($AF$28/1000)^$AD$28))/$AE$28*(1/AB12) -> 38.18040266 | AR12: =((X12*AC12*((AF12+AE12)/1000)^AD12)-(X12*AC12*(AF12/1000)^AD12))/AE12*(1/AB12) -> 0.6884327868 | AS12: 38.86883545 | AT12: =((AL12-AK12)/AE12)*(1/AB12) -> 4.258977902 | AU12: =(($AL$28-$AK$28)/$AE$28)*(1/AB12) -> 17.07796887 | AV12: 21.33694677 | AW12: =((Inputs!$C$15*AK12)/AE12)*(1/AB12) -> 2.451310254 | AX12: =((Inputs!$C$15*$AK$28)/$AE$28)*(1/AB12) -> 8.356506821 | AY12: 10.80781708 | AZ12: =(X12*0.02/AE12)*(1/AB12) -> 1.4 | BA12: =(W12*0.02/$AE$28)*(1/AB12) -> 6.547619048 | BB12: =+AZ12+BA12 -> 7.947619048 | BC12: 40.09238289
B13: Harvest | C13: Combine | D13: Grain Head | E13: 30' | F13: 29.77963402 | G13: 28.88903352 | H13: 6.678522321 | I13: 2.455357143 | J13: 67.802547 | S13: Harvest | T13: Combine | U13: Grain Head | V13: 30 ft | W13: 500000 | X13: 50000 | Y13: 4 | Z13: 30 | AA13: 70 | AB13: 10.18181818 | AC13: 0.05 | AD13: 2.3 | AE13: =$AB$32/AB13 -> 98.21428571 | AF13: 491.0714286 | AG13: 5 | AH13: 1.1318 | AI13: 0.1645 | AJ13: 0 | AK13: 29182.26493 | AL13: 32224.392 | AM13: =Inputs!$C$10*0.73*(0.06*450)*(1/AB13) -> 5.807410714 | AN13: 0.8711116071 | AO13: 6.678522321 | AP13: =Inputs!$C$12*1.25*(1/AB13) -> 2.455357143 | AQ13: =((W13*$AC$28*(($AF$28+$AE$28)/1000)^$AD$28)-(W13*$AC$28*($AF$28/1000)^$AD$28))/$AE$28*(1/AB13) -> 28.635302 | AR13: =((X13*AC13*((AF13+AE13)/1000)^AD13)-(X13*AC13*(AF13/1000)^AD13))/AE13*(1/AB13) -> 0.2537315168 | AS13: 28.88903352 | AT13: =((AL13-AK13)/AE13)*(1/AB13) -> 3.042127073 | AU13: =(($AL$28-$AK$28)/$AE$28)*(1/AB13) -> 12.80847665 | AV13: 15.85060373 | AW13: =((Inputs!$C$15*AK13)/AE13)*(1/AB13) -> 1.750935896 | AX13: =((Inputs!$C$15*$AK$28)/$AE$28)*(1/AB13) -> 6.267380116 | AY13: 8.018316012 | AZ13: =(X13*0.02/AE13)*(1/AB13) -> 1 | BA13: =(W13*0.02/$AE$28)*(1/AB13) -> 4.910714286 | BB13: =+AZ13+BA13 -> 5.910714286 | BC13: 29.77963402
B14: Haul | C14: Tractor, 215 hp | D14: Grain Cart | E14: 800 bu | F14: 7.009259565 | G14: 0.8751400134 | H14: 1.558321875 | I14: 1.03125 | J14: 10.47397145 | S14: Haul | T14: Tractor, 215 hp | U14: Grain Cart | W14: 325000 | X14: 55000 | Y14: 8 | Z14: 25 | AA14: 100 | AB14: 24.24242424 | AC14: 0.19 | AD14: 1.3 | AE14: 41.25 | AF14: 206.25 | AG14: 5 | AH14: 0.9427 | AI14: 0.1111 | AJ14: 0 | AK14: 26510.81329 | AL14: 28551.61375 | AM14: =Inputs!$C$10*0.73*(0.06*250)*(1/AB14) -> 1.3550625 | AN14: 0.203259375 | AO14: 1.558321875 | AP14: =Inputs!$C$12*1.25*(1/AB14) -> 1.03125 | AQ14: =((W14*$AC$27*(($AF$27+$AE$27)/1000)^$AD$27)-(W14*$AC$27*($AF$27/1000)^$AD$27))/$AE$27*(1/AB14) -> 0.516140625 | AR14: =((X14*AC14*((AF14+AE14)/1000)^AD14)-(X14*AC14*(AF14/1000)^AD14))/AE14*(1/AB14) -> 0.3589993884 | AS14: 0.8751400134 | AT14: =((AL14-AK14)/AE14)*(1/AB14) -> 2.040800462 | AU14: =(($AL$27-$AK$27)/$AE$27)*(1/AB14) -> 1.024356182 | AV14: 3.065156644 | AW14: =((Inputs!$C$15*AK14)/AE14)*(1/AB14) -> 1.590648797 | AX14: =((Inputs!$C$15*$AK$27)/$AE$27)*(1/AB14) -> 0.7172041238 | AY14: =AW14+AX14 -> 2.307852921 | AZ14: =(X14*0.02/AE14)*(1/AB14) -> 1.1 | BA14: =(W14*0.02/$AE$27)*(1/AB14) -> 0.53625 | BB14: =+AZ14+BA14 -> 1.63625 | BC14: 7.009259565
B15: Haul (soybean) | C15: Semi Tractor/Trailer | F15: 5.91 | G15: 0.32 | H15: 0.25 | I15: 0.55 | J15: 7.03
B16: Haul (corn) | C16: Semi Tractor/Trailer | F16: 7.68 | G16: 1.25 | H16: 0.79 | I16: 1.76 | J16: 11.48
B17: Haul (wheat) | C17: Semi Tractor/Trailer | F17: 6.17 | G17: 0.43 | H17: 0.35 | I17: 0.77 | J17: 7.72
A18: Cotton | B18: Chop Stalks | C18: Tractor, 215 hp | D18: Rotary Mower | E18: 15' | F18: 8.239992248 | G18: 4.310239158 | H18: 3.710290179 | I18: 2.455357143 | J18: 18.71587873 | S18: Chop Stalks | T18: Tractor, 215 hp | U18: Rotary Mower | V18: 15' | W18: 325000 | X18: 55000 | Y18: 7 | Z18: 15 | AA18: 80 | AB18: 10.18181818 | AC18: 0.44 | AD18: 2 | AE18: =$AB$33/AB18 -> 117.8571429 | AF18: 589.2857143 | AG18: 5 | AH18: 0.7557 | AI18: 0.0672 | AJ18: 0 | AK18: 20160.4167 | AL18: 21230.75295 | AM18: =Inputs!$C$10*0.73*(0.06*250)*(1/AB18) -> 3.226339286 | AN18: 0.4839508929 | AO18: 3.710290179 | AP18: =Inputs!$C$12*1.25*(1/AB18) -> 2.455357143 | AQ18: =((W18*$AC$27*(($AF$27+$AE$27)/1000)^$AD$27)-(W18*$AC$27*($AF$27/1000)^$AD$27))/$AE$27*(1/AB18) -> 1.22890625 | AR18: =((X18*AC18*((AF18+AE18)/1000)^AD18)-(X18*AC18*(AF18/1000)^AD18))/AE18*(1/AB18) -> 3.081332908 | AS18: 4.310239158 | AT18: =((AL18-AK18)/AE18)*(1/AB18) -> 0.8919468749 | AU18: =(($AL$27-$AK$27)/$AE$27)*(1/AB18) -> 2.438943291 | AV18: 3.330890166 | AW18: =((Inputs!$C$15*AK18)/AE18)*(1/AB18) -> 1.008020835 | AX18: =((Inputs!$C$15*$AK$27)/$AE$27)*(1/AB18) -> 1.707628866 | AY18: =AW18+AX18 -> 2.715649701 | AZ18: =(X18*0.02/AE18)*(1/AB18) -> 0.9166666667 | BA18: =(W18*0.02/$AE$27)*(1/AB18) -> 1.276785714 | BB18: =+AZ18+BA18 -> 2.193452381 | BC18: =+AV18+AY18+BB18 -> 8.239992248
B19: Plant | C19: Tractor, 215 hp | D19: Planter | E19: 12-row | F19: 13.27831025 | G19: 5.103678167 | H19: 3.196557692 | I19: 2.115384615 | J19: 23.69393072 | S19: Plant | T19: Tractor, 215 hp | U19: Planter | V19: 12-row | W19: 325000 | X19: 135000 | Y19: 5 | Z19: 30 | AA19: 65 | AB19: 11.81818182 | AC19: 0.32 | AD19: 2.1 | AE19: =$AB$33/AB19 -> 101.5384615 | AF19: 507.6923077 | AG19: 5 | AH19: 0.8826 | AI19: 0.0778 | AJ19: 0 | AK19: 67791.87274 | AL19: 71351.415 | AM19: =Inputs!$C$10*0.73*(0.06*250)*(1/AB19) -> 2.779615385 | AN19: 0.4169423077 | AO19: 3.196557692 | AP19: =Inputs!$C$12*1.25*(1/AB19) -> 2.115384615 | AQ19: =((W19*$AC$27*(($AF$27+$AE$27)/1000)^$AD$27)-(W19*$AC$27*($AF$27/1000)^$AD$27))/$AE$27*(1/AB19) -> 1.05875 | AR19: 4.044928167 | AS19: 5.103678167 | AT19: 2.966285214 | AU19: =(($AL$27-$AK$27)/$AE$27)*(1/AB19) -> 2.101243451 | AV19: 5.067528665 | AW19: =((Inputs!$C$15*AK19)/AE19)*(1/AB19) -> 3.389593637 | AX19: =((Inputs!$C$15*$AK$27)/$AE$27)*(1/AB19) -> 1.471187946 | AY19: 4.860781583 | AZ19: 2.25 | BA19: =(W19*0.02/$AE$27)*(1/AB19) -> 1.1 | BB19: 3.35 | BC19: 13.27831025
B20: Weed Control | C20: Tractor, 215 hp | D20: Hooded Sprayer | E20: 90 | F20: 2.373226987 | G20: 0.4015077006 | H20: 0.8879326923 | I20: 0.5876068376 | J20: 4.250274218 | S20: Spray | T20: Tractor, 215 hp | U20: Hooded Sprayer | W20: 325000 | X20: 15000 | Y20: 6 | Z20: 90 | AA20: 65 | AB20: 42.54545455 | AC20: 0.41 | AD20: 1.3 | AE20: 28.20512821 | AF20: 141.025641 | AG20: 5 | AH20: 0.9427 | AI20: 0.1111 | AJ20: 0 | AK20: 7230.221806 | AL20: 7786.80375 | AM20: =Inputs!$C$10*0.73*(0.06*250)*(1/AB20) -> 0.7721153846 | AN20: 0.1158173077 | AO20: 0.8879326923 | AP20: =Inputs!$C$12*1.25*(1/AB20) -> 0.5876068376 | AQ20: =((W20*$AC$27*(($AF$27+$AE$27)/1000)^$AD$27)-(W20*$AC$27*($AF$27/1000)^$AD$27))/$AE$27*(1/AB20) -> 0.2940972222 | AR20: 0.1074104784 | AS20: 0.4015077006 | AT20: 0.4638182868 | AU20: =(($AL$27-$AK$27)/$AE$27)*(1/AB20) -> 0.5836787363 | AV20: 1.047497023 | AW20: =((Inputs!$C$15*AK20)/AE20)*(1/AB20) -> 0.3615110903 | AX20: =((Inputs!$C$15*$AK$27)/$AE$27)*(1/AB20) -> 0.4086633184 | AY20: 0.7701744087 | AZ20: 0.25 | BA20: =(W20*0.02/$AE$27)*(1/AB20) -> 0.3055555556 | BB20: =+AZ20+BA20 -> 0.5555555556 | BC20: 2.373226987
B21: Harvest | C21: SP Cotton Picker | E21: 6-row | F21: 28.79791036 | G21: 9.980475073 | H21: 10.01778348 | I21: 3.683035714 | J21: 52.47920463 | S21: Harvest | T21: SP Cotton Picker | X21: 350000 | Y21: 4 | Z21: 20 | AA21: 70 | AB21: =(Y21*Z21*(AA21/100))/8.25 -> 6.787878788 | AC21: 0.11 | AD21: 1.8 | AE21: =$AB$33/AB21 -> 176.7857143 | AF21: 883.9285714 | AG21: 5 | AH21: 1.1318 | AI21: 0.1645 | AJ21: 0.0079 | AK21: 151965.0434 | AL21: =X21*(AH21-AI21*((AG21-1)^0.5)-AJ21*(AE21^0.5))^2 -> 170404.6332 | AM21: =Inputs!$C$10*0.73*(0.06*450)*(1/AB21) -> 8.711116071 | AN21: 1.306667411 | AO21: 10.01778348 | AP21: =Inputs!$C$12*1.25*(1/AB21) -> 3.683035714 | AR21: 9.980475073 | AS21: 9.980475073 | AT21: 15.36632486 | AV21: 15.36632486 | AW21: =((Inputs!$C$15*AK21)/AE21)*(1/AB21) -> 7.598252168 | AY21: 7.598252168 | AZ21: 5.833333333 | BB21: 5.833333333 | BC21: 28.79791036
B22: Harvest | C22: Tractor, 215 hp | D22: Boll Buggy | F22: 7.765513896 | G22: 1.199650371 | H22: 3.895804688 | I22: 2.578125 | J22: 15.43909395 | S22: Haul-Boll Buggy | T22: Tractor, 215 hp | U22: Boll Buggy | W22: 325000 | X22: 45000 | Y22: 4 | Z22: 20 | AA22: 100 | AB22: 9.696969697 | AC22: 0.19 | AD22: 1.3 | AE22: 123.75 | AF22: 618.75 | AG22: 5 | AH22: 0.9427 | AI22: 0.1111 | AJ22: 0 | AK22: =X22*(AH22-AI22*(AG22^0.5)-AJ22*(AE22^0.5))^2 -> 21690.66542 | AL22: =X22*(AH22-AI22*((AG22-1)^0.5)-AJ22*(AE22^0.5))^2 -> 23360.41125 | AM22: =Inputs!$C$10*0.73*(0.06*250)*(1/AB22) -> 3.38765625 | AN22: =AM22*0.15 -> 0.5081484375 | AO22: 3.895804688 | AP22: =Inputs!$C$12*1.25*(1/AB22) -> 2.578125 | AQ22: =((X22*$AC$27*(($AF$27+$AE$27)/1000)^$AD$27)-(X22*$AC$27*($AF$27/1000)^$AD$27))/$AE$27*(1/AB22) -> 0.1786640625 | AR22: =((X22*AC22*((AF22+AE22)/1000)^AD22)-(X22*AC22*(AF22/1000)^AD22))/AE22*(1/AB22) -> 1.020986308 | AS22: 1.199650371 | AT22: =((AL22-AK22)/AE22)*(1/AB22) -> 1.391454861 | AU22: =(($AL$27-$AK$27)/$AE$27)*(1/AB22) -> 2.560890455 | AV22: 3.952345316 | AW22: =((Inputs!$C$15*AK22)/AE22)*(1/AB22) -> 1.084533271 | AX22: =((Inputs!$C$15*$AK$27)/$AE$27)*(1/AB22) -> 1.793010309 | AY22: =AW22+AX22 -> 2.87754358 | AZ22: =(X22*0.02/AE22)*(1/AB22) -> 0.75 | BA22: =(X22*0.02/$AE$27)*(1/AB22) -> 0.185625 | BB22: 0.935625 | BC22: 7.765513896
B23: Harvest | C23: Tractor, 215 hp | D23: Module Builder | E23: 32' | F23: 8.032852744 | G23: 1.271898692 | H23: 3.478397042 | I23: 2.301897321 | J23: 15.0850458 | S23: Module Builder | T23: Tractor, 215 hp | U23: Module Builder | V23: 32' | W23: 325000 | X23: 55000 | Y23: 4 | Z23: 32 | AA23: 70 | AB23: 10.86060606 | AC23: 0.19 | AD23: 1.3 | AE23: 110.4910714 | AF23: 552.4553571 | AG23: 5 | AH23: 0.9427 | AI23: 0.1111 | AJ23: 0 | AK23: 26510.81329 | AL23: =X23*(AH23-AI23*((AG23-1)^0.5)-AJ23*(AE23^0.5))^2 -> 28551.61375 | AM23: =Inputs!$C$10*0.73*(0.06*250)*(1/AB23) -> 3.02469308 | AN23: =AM23*0.15 -> 0.4537039621 | AO23: 3.478397042 | AP23: =Inputs!$C$12*1.25*(1/AB23) -> 2.301897321 | AQ23: =((X23*$AC$27*(($AF$27+$AE$27)/1000)^$AD$27)-(X23*$AC$27*($AF$27/1000)^$AD$27))/$AE$27*(1/AB23) -> 0.1949707031 | AR23: 1.076927989 | AS23: 1.271898692 | AT23: =((AL23-AK23)/AE23)*(1/AB23) -> 1.700667052 | AU23: =(($AL$27-$AK$27)/$AE$27)*(1/AB23) -> 2.286509335 | AV23: 3.987176387 | AW23: =((Inputs!$C$15*AK23)/AE23)*(1/AB23) -> 1.325540664 | AX23: =((Inputs!$C$15*$AK$27)/$AE$27)*(1/AB23) -> 1.600902062 | AY23: 2.926442726 | AZ23: 0.9166666667 | BA23: =(X23*0.02/$AE$27)*(1/AB23) -> 0.2025669643 | BB23: 1.119233631 | BC23: =+AV23+AY23+BB23 -> 8.032852744
B24: Harvest | C24: Picker/Module Builder (Round) | E24: 6-row | F24: =BC24 -> 66.69555868 | G24: =AS24 -> 16.95163302 | H24: =AO24 -> 11.13693787 | I24: =AP24 -> 3.122918055 | J24: 97.90704763 | S24: Harvest | T24: Picker/Module Builder (Round) | W24: 800000 | Y24: 4.4 | Z24: =38/12*6 -> 19 | AA24: 79 | AB24: =(Y24*Z24*(AA24/100))/8.25 -> 8.005333333 | AC24: 0.11 | AD24: 1.8 | AE24: =$AB$33/AB24 -> 149.9000666 | AF24: 749.5003331 | AG24: 5 | AH24: 1.1318 | AI24: 0.1645 | AJ24: 0.0079 | AK24: =W24*(AH24-AI24*(AG24^0.5)-AJ24*(AE24^0.5))^2 -> 356171.8669 | AL24: =W24*(AH24-AI24*((AG24-1)^0.5)-AJ24*(AE24^0.5))^2 -> 398836.2253 | AM24: =Inputs!$C$10*0.73*(0.06*590)*(1/AB24) -> 9.684293804 | AN24: =AM24*0.15 -> 1.452644071 | AO24: 11.13693787 | AP24: =Inputs!$C$12*1.25*(1/AB24) -> 3.122918055 | AQ24: =((W24*$AC$24*(($AF$24+$AE$24)/1000)^$AD$24)-(W24*$AC$24*($AF$24/1000)^$AD$24))/$AE$24*(1/AB24) -> 16.95163302 | AS24: 16.95163302 | AT24: =((AL24-AK24)/AE24)*(1/AB24) -> 35.55363201 | AV24: 35.55363201 | AW24: =((Inputs!$C$15*AK24)/AE24)*(1/AB24) -> 17.80859334 | AY24: 17.80859334 | AZ24: =(W24*0.02/AE24)*(1/AB24) -> 13.33333333 | BB24: 13.33333333 | BC24: 66.69555868
B25: Harvest | C25: Tractor, 215 hp | D25: Module Handler | F25: =BC25 -> 3.37545082 | G25: =AS25 -> 0.8997332535 | H25: =AO25 -> 2.359520736 | I25: =AP25 -> 1.561459027 | J25: =SUM(F25:I25) -> 8.196163837 | S25: Harvest | T25: Tractor, 215 hp | U25: Round Module Mover | W25: 325000 | X25: 10000 | AB25: =AB24*2 -> 16.01066667 | AC25: 0.19 | AD25: 1.3 | AE25: =AE24/2 -> 74.95003331 | AF25: =AF24/2 -> 374.7501666 | AG25: 5 | AH25: 0.94 | AI25: 0.11 | AJ25: 0 | AK25: =X25*(AH25-AI25*(AG25^0.5)-AJ25*(AE25^0.5))^2 -> 4816.811423 | AL25: =X25*(AH25-AI25*((AG25-1)^0.5)-AJ25*(AE25^0.5))^2 -> 5184 | AM25: =Inputs!$C$10*0.73*(0.06*250)*(1/AB25) -> 2.051757162 | AN25: =AM25*0.15 -> 0.3077635743 | AO25: 2.359520736 | AP25: =Inputs!$C$12*1.25*(1/AB25) -> 1.561459027 | AQ25: =((W25*$AC$27*(($AF$27+$AE$27)/1000)^$AD$27)-(W25*$AC$27*($AF$27/1000)^$AD$27))/$AE$27*(1/AB25) -> 0.7815102432 | AR25: =((X25*AC25*((AF25+AE25)/1000)^AD25)-(X25*AC25*(AF25/1000)^AD25))/AE25*(1/AB25) -> 0.1182230103 | AS25: =AQ25+AR25 -> 0.8997332535 | AT25: =((AL25-AK25)/AE25)*(1/AB25) -> 0.3059904812 | AU25: =(($AL$27-$AK$27)/$AE$27)*(1/AB25) -> 1.551020808 | AV25: 1.857011289 | AW25: =((Inputs!$C$15*AK25)/AE25)*(1/AB25) -> 0.2408405711 | AX25: =((Inputs!$C$15*$AK$27)/$AE$27)*(1/AB25) -> 1.085948949 | AY25: =AW25+AX25 -> 1.32678952 | AZ25: =(X25*0.02/AE25)*(1/AB25) -> 0.1666666667 | BA25: =(X25*0.02/$AE$27)*(1/AB25) -> 0.02498334444 | BB25: 0.1916500111 | BC25: =+AV25+AY25+BB25 -> 3.37545082
AB27: Tractor | AC27: 0.007 | AD27: 2 | AE27: 500 | AF27: =+AE27*5 -> 2500 | AG27: =+AF27/AE27 -> 5 | AH27: 0.9756 | AI27: 0.1187 | AJ27: 0.0019 | AK27: =W4*(AH27-AI27*(AG27^0.5)-AJ27*(AE27^0.5))^2 -> 144889.722 | AL27: =W4*(AH27-AI27*((AG27-1)^0.5)-AJ27*(AE27^0.5))^2 -> 157306.1605
AB28: Combine | AC28: 0.25 | AD28: 2.1 | AE28: 200 | AF28: =+AE28*5 -> 1000 | AG28: =+AF28/AE28 -> 5 | AH28: 1.1318 | AI28: 0.1645 | AJ28: 0.0079 | AK28: =W12*(AH28-AI28*(AG28^0.5)-AJ28*(AE28^0.5))^2 -> 212711.0827 | AL28: =W12*(AH28-AI28*((AG28-1)^0.5)-AJ28*(AE28^0.5))^2 -> 238793.7988
Z32: Acres | AA32: Corn | AB32: 1000
AA33: Cotton | AB33: 1200

Sheet Budget Summary
B1: Summary of Revenue, Variable and Fixed Expenses, and Profit or Loss for Each Commodity and Production Method
B3: Commodity & Production Process | C3: Revenue ($/Acre) | D3: Variable Expenses ($/Acre) | E3: Fixed Expenses ($/Acre) | F3: Returns Over Specified Costs
B4: Corn No-Till, Non-Irrigated | C4: ='Corn NT Non-Irr'!H7 -> 822.5 | D4: ='Corn NT Non-Irr'!H23 -> 550.7995496 | E4: ='Corn NT Non-Irr'!H34 -> 285.0003421 | F4: ='Corn NT Non-Irr'!H36 -> -13.29989173
B5: Corn Conventional Tillage, Non-Irrigated | C5: ='Corn CT Non-Irr'!H7 -> 822.5 | D5: ='Corn CT Non-Irr'!H23 -> 564.3108285 | E5: ='Corn CT Non-Irr'!H34 -> 302.0563716 | F5: ='Corn CT Non-Irr'!H36 -> -43.86720008
B6: Corn No-Till, Irrigated | C6: ='Corn Irr'!H7 -> 1175 | D6: ='Corn Irr'!H26 -> 729.6340046 | E6: ='Corn Irr'!H39 -> 503.0532614 | F6: ='Corn Irr'!H41 -> -57.68726595
B7: Soybeans No-Till, Non-Irrigated | C7: ='Soybeans NT Non-Irr'!H7 -> 535 | D7: ='Soybeans NT Non-Irr'!H23 -> 291.5381255 | E7: ='Soybeans NT Non-Irr'!H34 -> 271.5995814 | F7: ='Soybeans NT Non-Irr'!H36 -> -28.13770689
B8: Soybeans No-Till, Irrigated | C8: ='Soybeans Irr'!H7 -> 695.5 | D8: ='Soybeans Irr'!H26 -> 358.988707 | E8: ='Soybeans Irr'!H39 -> 484.0406683 | F8: ='Soybeans Irr'!H41 -> -147.5293754
B9: SRW Wheat | C9: ='SRW Wheat'!H7 -> 440 | D9: ='SRW Wheat'!H24 -> 341.6926865 | E9: ='SRW Wheat'!H35 -> 264.8026915 | F9: ='SRW Wheat'!H37 -> -166.495378
B10: Wheat & Soybean, Double Cropped | C10: ='Wheat & Soybean DC'!H8 -> 921.5 | D10: ='Wheat & Soybean DC'!H26 -> 581.2089172 | E10: ='Wheat & Soybean DC'!H37 -> 386.841485 | F10: ='Wheat & Soybean DC'!H39 -> -46.55040223
B11: Cotton No-Till, Non-Irrigated | C11: ='Cotton NT'!H7 -> 793.5 | D11: ='Cotton NT'!H24 -> 584.6111451 | E11: ='Cotton NT'!H35 -> 330.7173837 | F11: ='Cotton NT'!H37 -> -121.8285289
B12: Cotton Conventional Tillage, Non-Irrigated | C12: ='Cotton CT'!H7 -> 793.5 | D12: ='Cotton CT'!H24 -> 595.2938988 | E12: ='Cotton CT'!H35 -> 348.7744934 | F12: ='Cotton CT'!H37 -> -150.5683921
B13: Cotton No-Till, Irrigated | C13: ='Cotton Irr'!H7 -> 1035 | D13: ='Cotton Irr'!H27 -> 698.3730201 | E13: ='Cotton Irr'!H40 -> 550.7173837 | F13: ='Cotton Irr'!H42 -> -214.0904039
B14: Grain Sorghum, No-Till, Non-Irrigated | C14: =+'G. Sorghum NT'!H5 -> 568.75 | D14: =+'G. Sorghum NT'!H21 -> 305.8340696 | E14: =+'G. Sorghum NT'!H31 -> 278.6183894 | F14: =+'G. Sorghum NT'!H33 -> -15.70245896

Sheet Enterprise Summary
B1: Enterprise Summary
B3: Commodity & Production Process | C3: Acres | D3: Total Revenue ($) | E3: Variable Expenses ($/Acre) | F3: Fixed Expenses ($/Acre) | G3: Profit (Loss)
B4: ='Budget Summary'!B4 -> Corn No-Till, Non-Irrigated | C4: 200 | D4: =C4*'Budget Summary'!C4 -> 164500 | E4: ='Budget Summary'!D4*C4 -> 110159.9099 | F4: ='Budget Summary'!E4*C4 -> 57000.06842 | G4: =D4-E4-F4 -> -2659.978346
B5: ='Budget Summary'!B5 -> Corn Conventional Tillage, Non-Irrigated | C5: 0 | D5: =C5*'Budget Summary'!C5 -> 0 | E5: ='Budget Summary'!D5*C5 -> 0 | F5: ='Budget Summary'!E5*C5 -> 0 | G5: =D5-E5-F5 -> 0
B6: ='Budget Summary'!B6 -> Corn No-Till, Irrigated | C6: 250 | D6: =C6*'Budget Summary'!C6 -> 293750 | E6: ='Budget Summary'!D6*C6 -> 182408.5011 | F6: ='Budget Summary'!E6*C6 -> 125763.3153 | G6: -14421.81649
B7: ='Budget Summary'!B7 -> Soybeans No-Till, Non-Irrigated | C7: 200 | D7: =C7*'Budget Summary'!C7 -> 107000 | E7: ='Budget Summary'!D7*C7 -> 58307.6251 | F7: ='Budget Summary'!E7*C7 -> 54319.91628 | G7: -5627.541377
B8: ='Budget Summary'!B8 -> Soybeans No-Till, Irrigated | C8: 0 | D8: =C8*'Budget Summary'!C8 -> 0 | E8: ='Budget Summary'!D8*C8 -> 0 | F8: ='Budget Summary'!E8*C8 -> 0 | G8: 0
B9: Wheat | C9: 0 | D9: =C9*'Budget Summary'!C9 -> 0 | E9: =C9*'Budget Summary'!D9 -> 0 | F9: =C9*'Budget Summary'!E9 -> 0 | G9: =D9-E9-F9 -> 0
B10: ='Budget Summary'!B10 -> Wheat & Soybean, Double Cropped | C10: 100 | D10: =C10*'Budget Summary'!C10 -> 92150 | E10: ='Budget Summary'!D10*C10 -> 58120.89172 | F10: ='Budget Summary'!E10*C10 -> 38684.1485 | G10: -4655.040223
B11: ='Budget Summary'!B11 -> Cotton No-Till, Non-Irrigated | C11: 0 | D11: =C11*'Budget Summary'!C11 -> 0 | E11: ='Budget Summary'!D11*C11 -> 0 | F11: ='Budget Summary'!E11*C11 -> 0 | G11: 0
B12: ='Budget Summary'!B12 -> Cotton Conventional Tillage, Non-Irrigated | C12: 250 | D12: =C12*'Budget Summary'!C12 -> 198375 | E12: ='Budget Summary'!D12*C12 -> 148823.4747 | F12: ='Budget Summary'!E12*C12 -> 87193.62334 | G12: -37642.09803
B13: ='Budget Summary'!B14 -> Grain Sorghum, No-Till, Non-Irrigated | C13: 0 | D13: =C13*'Budget Summary'!C14 -> 0 | E13: ='Budget Summary'!D14*C13 -> 0 | F13: ='Budget Summary'!E14*C13 -> 0 | G13: 0
B14: Total | C14: =SUM(C4:C13) -> 1000 | D14: =SUM(D4:D13) -> 855775 | E14: =SUM(E4:E13) -> 557820.4026 | F14: =SUM(F4:F13) -> 362961.0719 | G14: =SUM(G4:G13) -> -65006.47447
B16: This worksheet allows the user to enter acreage for different commodities and production processes in order to obtain an estimated profit and loss statement for the entire enterprise. This worksheet will automatically update the information contained in individual budgets, As such users should only adjust acreage for each commodity/production process on this worksheet.
